Workbook

Sheet skema
B1: Turnering | T1: Distance | Y1: rund ned på | Z1: Kegler | AC1: For stort snit | AD1: =IF(W1>0,1,IF(W2>0,1,0)) -> 0 | AE1: =IF(AB1>0,1,IF(AB2>0,1,0)) -> 0 | AF1: =W5 -> 50 | AG1: =W6 -> 5 | AH1: Elite | AI1: 1000 | AJ1: 800 | AK1: 100 | AL1: 50 | AM1: =IF($AB$1>0,AI1,AK1) -> 100 | AN1: =IF(AB$1>0,AJ1,AL1) -> 50 | AO1: x
T2: Klasse Distance kegler 3 bande | Z2: 2 decimal | AD2: =IF(AC7>0,2,3) -> 3 | AH2: M rk | AI2: 69.99 | AJ2: 700 | AK2: 0.899 | AL2: 40 | AM2: =IF($AB$1>0,AI2,AK2) -> 0.899 | AN2: 40
Z3: 3 Bande | AB3: =IF(AE1>0,"",AO1) -> x | AC3: =IF(AB1>0,+EVEN(D8*$AF$1+$AG$1)) -> FALSE | AH3: A rk | AI3: 34.99 | AJ3: 600 | AK3: 0.649 | AL3: 35 | AM3: 0.649 | AN3: 35
T4: Handicap | W4: =IF(AD1>0,"",AO1) -> x | Y4: Betinget formatering | AB4: x | AC4: =IF(AB1<1,ROUNDUP(D8*$AF$1+$AG$1,0)) -> 5 | AH4: B rk | AI4: 19.99 | AJ4: 500 | AK4: 0.449 | AL4: 25 | AM4: 0.449 | AN4: 25
G5: Spilles færdig senest | O5: 2022-12-31 | T5: Indgange | W5: 50 | Y5: Udskriv | AC5: =IF(AB1>0,1) -> FALSE | AH5: C rk | AI5: 13.99 | AJ5: 400 | AK5: 0.249 | AL5: 20 | AM5: 0.249 | AN5: 20
B6: Skriv navn og snit | D6: Snit | E6: 1 | G6: 2 | I6: 3 | K6: 4 | M6: MP | N6: Score | O6: Indg | P6: Snit | Q6: Serie | R6: Plac. | S6: Snit % | U6: + | W6: 5 | AC6: =IF(AB2>0,1) -> FALSE | AH6: D rk | AI6: 8.99 | AJ6: 300 | AM6: 0 | AN6: 0
B7: Navn | D7: Dist. | E7: =IF($B8<1,"",$B8) ->  | G7: =IF($B10<1,"",$B10) ->  | I7: =IF($B12<1,"",$B12) ->  | K7: =IF($B14<1,"",$B14) ->  | T7: Mindst distance | W7: 12 | Y7: Størst distance | AA7: 50 | AC7: =SUM(AC5:AC6) -> 0 | AH7: E rk | AI7: 4.99 | AJ7: 200 | AM7: 0 | AN7: 0 | AS7: MP | BB7: sum | BC7: Snit | BD7: Snit % | BE7: Score | BF7: Score % | BG7: Serie | BH7: Serie % | BI7: Indg. | BJ7: MP | BK7: Snit | BL7: Snit % | BM7: Score | BN7: Score % | BO7: Serie | BP7: Serie % | BQ7: I alt
A8: 1 | E8: Score | F8: Indg. | M8: =IF(BI8<1," ",BB8) ->  | N8: =IF(BI8<1," ",SUM(BE8)) ->  | O8: =IF(BI8<1," ",SUM(BI8)) ->  | P8: =IF(BI8<1," ",SUM(BC8)) ->  | Q8: =IF(BI8<1," ",SUM(BG8)) ->  | R8: =IF(BI8<1," ",RANK(BQ8,BQ$8:BQ$15,1)) ->  | S8: =IF(BI8<1,"",BD8) ->  | T8: =IF($AB$1>0,+EVEN(D8*$AF$1+$AG$1)) -> FALSE | U8: =IF($W$1>0,0,IF($W$2>0,0,IF($AB$1>0,T8,T9))) -> 5 | V8: =IF(D8>AM$2,AN$1,IF(D8>AM$3,AN$2,IF(D8>AM$4,AN$3,IF(D8>AM$5,AN$4,IF(D8>AM$6,AN$5,IF(D8>AM$7,AN$6,AN$7)))))) -> 0 | W8: Hjælp se kommentar | AU8: =IF($W$1<1,0,IF(H8<1,0,IF(G8>$E10,2,IF(G8=$E10,1,0)))) -> 0 | AW8: =IF($W$1<1,0,IF(J8<1,0,IF(I8>$E12,2,IF(I8=$E12,1,0)))) -> 0 | AY8: =IF($W$1<1,0,IF(L8<1,0,IF(K8>$E14,2,IF(K8=$E14,1,0)))) -> 0 | BB8: =SUM(AS8:BA9) -> 0 | BC8: =IF(BI8<1," ",ROUNDDOWN(BE8/BI8,$AD$2)) ->  | BD8: =IF(BI8<1,"",BC8/D8) ->  | BE8: =SUM(G8,I8,K8) -> 0 | BF8: =IF(BI8<1,"",BE8/D9) ->  | BG8: =MAX(G9,I9,K9) -> 0 | BH8: =IF(BI8<1,"",BG8/D9) ->  | BI8: =SUM(H8,J8,L8) -> 0 | BJ8: =RANK(BB8,BB$8:BB$15)*10000000 -> 10000000 | BK8: =IF($W$1<1,0,RANK(BC8,BC$8:BC$15)*100000) -> 0 | BL8: =IF($W$1>0,0,RANK(BD8,BD$8:BD$15)*100000) ->  | BM8: =IF($W$1<1,0,RANK(BE8,BE$8:BE$15)*1000) -> 0 | BN8: =IF($W$1>0,0,RANK(BF8,BF$8:BF$15)*1000) ->  | BO8: =IF($W$1<1,0,RANK(BG8,BG$8:BG$15)) -> 0 | BP8: =IF($W$1>0,0,RANK(BH8,BH$8:BH$15)) ->  | BQ8: =IF(BI8<1,"",SUM(BJ8:BP8)) -> 
D9: =IF(D8="","",IF($W$1>0,$W$1,IF(W$2>0,V8,IF(U8>$AA$7,AC$1,IF(U8<$W$7,$W$7,U8))))) ->  | E9: Serie | F9: Snit | H9: =IF(H8<1,"",ROUND(H27,$AD$2)) ->  | J9: =IF(J8<1,"",ROUND(J27,$AD$2)) ->  | L9: =IF(L8<1,"",ROUND(L27,$AD$2)) ->  | T9: =IF($AB$1<1,ROUNDUP(D8*$AF$1+$AG$1,0)) -> 5 | V9: =IF($B8<1,0,IF(G8=$D9,1,0)) -> 0 | W9: =IF($B8<1,0,IF(I8=$D9,1,0)) -> 0 | X9: =IF($B8<1,0,IF(K8=$D9,1,0)) -> 0 | AS9: =IF($W$1>0,0,IF(U9+$U9<1,0,IF(U9>$U9,2,IF(U9=$U9,1,0)))) -> 0 | AT9: =IF($W$1>0,0,IF(V9+$U11<1,0,IF(V9>$U11,2,IF(V9=$U11,1,0)))) -> 0 | AU9: =IF($W$1>0,0,IF(W9+$U13<1,0,IF(W9>$U13,2,IF(W9=$U13,1,0)))) -> 0 | AV9: =IF($W$1>0,0,IF(X9+$U15<1,0,IF(X9>$U15,2,IF(X9=$U15,1,0)))) -> 0
A10: 2 | F10: =IF($H$8<1," ",$H$8) ->  | M10: =IF(BI10<1," ",BB10) ->  | N10: =IF(BI10<1," ",SUM(BE10)) ->  | O10: =IF(BI10<1," ",SUM(BI10)) ->  | P10: =IF(BI10<1," ",SUM(BC10)) ->  | Q10: =IF(BI10<1," ",SUM(BG10)) ->  | R10: =IF(BI10<1," ",RANK(BQ10,BQ$8:BQ$15,1)) ->  | S10: =IF(BI10<1,"",BD10) ->  | T10: =IF($AB$1>0,+EVEN(D10*$AF$1+$AG$1)) -> FALSE | U10: =IF($W$1>0,0,IF($W$2>0,0,IF($AB$1>0,T10,T11))) -> 5 | V10: =IF(D10>AM$2,AN$1,IF(D10>AM$3,AN$2,IF(D10>AM$4,AN$3,IF(D10>AM$5,AN$4,IF(D10>AM$6,AN$5,IF(D10>AM$7,AN$6,AN$7)))))) -> 0 | AS10: =IF($W$1<1,0,IF($H8<1,0,IF(E10>$G8,2,IF(E10=$G8,1,0)))) -> 0 | AW10: =IF($W$1<1,0,IF(J10<1,0,IF(I10>$G12,2,IF(I10=$G12,1,0)))) -> 0 | AY10: =IF($W$1<1,0,IF(L10<1,0,IF(K10>$G14,2,IF(K10=$G14,1,0)))) -> 0 | BB10: =SUM(AS10:BA11) -> 0 | BC10: =IF(BI10<1," ",ROUNDDOWN(BE10/BI10,$AD$2)) ->  | BD10: =IF(BI10<1,"",BC10/D10) ->  | BE10: =SUM(E10,G10,I10,K10) -> 0 | BF10: =IF(BI10<1,"",BE10/D11) ->  | BG10: =MAX(E11,G11,I11,K11) -> 0 | BH10: =IF(BI10<1,"",BG10/D11) ->  | BI10: =SUM(F10,H10,J10,L10) -> 0 | BJ10: =RANK(BB10,BB$8:BB$15)*10000000 -> 10000000 | BK10: =IF($W$1<1,0,RANK(BC10,BC$8:BC$15)*100000) -> 0 | BL10: =IF($W$1>0,0,RANK(BD10,BD$8:BD$15)*100000) ->  | BM10: =IF($W$1<1,0,RANK(BE10,BE$8:BE$15)*1000) -> 0 | BN10: =IF($W$1>0,0,RANK(BF10,BF$8:BF$15)*1000) ->  | BO10: =IF($W$1<1,0,RANK(BG10,BG$8:BG$15)) -> 0 | BP10: =IF($W$1>0,0,RANK(BH10,BH$8:BH$15)) ->  | BQ10: =IF(BI10<1,"",SUM(BJ10:BP10)) -> 
D11: =IF(D10="","",IF($W$1>0,$W$1,IF(W$2>0,V10,IF(U10>$AA$7,AC$1,IF(U10<$W$7,$W$7,U10))))) ->  | F11: =IF(F28<1,"",ROUND(F29,$AD$2)) ->  | J11: =IF(J10<1,"",ROUND(J29,$AD$2)) ->  | L11: =IF(L10<1,"",ROUND(L29,$AD$2)) ->  | T11: =IF($AB$1<1,ROUNDUP(D10*$AF$1+$AG$1,0)) -> 5 | U11: =IF($B10<1,0,IF(E10=$D11,1,0)) -> 0 | V11: =IF($B10<1,0,IF(G10=$D11,1,0)) -> 0 | W11: =IF($B10<1,0,IF(I10=$D11,1,0)) -> 0 | X11: =IF($B10<1,0,IF(K10=$D11,1,0)) -> 0 | AS11: =IF($W$1>0,0,IF(U11+$V9<1,0,IF(U11>$V9,2,IF(U11=$V9,1,0)))) -> 0 | AT11: =IF($W$1>0,0,IF(V11+$V11<1,0,IF(V11>$V11,2,IF(V11=$V11,1,0)))) -> 0 | AU11: =IF($W$1>0,0,IF(W11+$V13<1,0,IF(W11>$V13,2,IF(W11=$V13,1,0)))) -> 0 | AV11: =IF($W$1>0,0,IF(X11+$V15<1,0,IF(X11>V15,2,IF(X11=$V15,1,0)))) -> 0
A12: 3 | F12: =IF($J8<1," ",$J8) ->  | H12: =IF($J10<1," ",$J10) ->  | M12: =IF(BI12<1," ",BB12) ->  | N12: =IF(BI12<1," ",SUM(BE12)) ->  | O12: =IF(BI12<1," ",SUM(BI12)) ->  | P12: =IF(BI12<1," ",SUM(BC12)) ->  | Q12: =IF(BI12<1," ",SUM(BG12)) ->  | R12: =IF(BI12<1," ",RANK(BQ12,BQ$8:BQ$15,1)) ->  | S12: =IF(BI12<1,"",BD12) ->  | T12: =IF($AB$1>0,+EVEN(D12*$AF$1+$AG$1)) -> FALSE | U12: =IF($W$1>0,0,IF($W$2>0,0,IF($AB$1>0,T12,T13))) -> 5 | V12: =IF(D12>AM$2,AN$1,IF(D12>AM$3,AN$2,IF(D12>AM$4,AN$3,IF(D12>AM$5,AN$4,IF(D12>AM$6,AN$5,IF(D12>AM$7,AN$6,AN$7)))))) -> 0 | AS12: =IF($W$1<1,0,IF($J8<1,0,IF(E12>$I8,2,IF(E12=$I8,1,0)))) -> 0 | AU12: =IF($W$1<1,0,IF($J10<1,0,IF(G12>$I10,2,IF(G12=$I10,1,0)))) -> 0 | AY12: =IF($W$1<1,0,IF(L12<1,0,IF(K12>$I14,2,IF(K12=$I14,1,0)))) -> 0 | BB12: =SUM(AS12:BA13) -> 0 | BD12: =IF(BI12<1,"",BC12/D12) ->  | BE12: =SUM(E12,G12,I12,K12) -> 0 | BF12: =IF(BI12<1,"",BE12/D13) ->  | BG12: =MAX(E13,G13,I13,K13) -> 0 | BH12: =IF(BI12<1,"",BG12/D13) ->  | BI12: =SUM(F12,H12,J12,L12) -> 0 | BJ12: =RANK(BB12,BB$8:BB$15)*10000000 -> 10000000 | BK12: =IF($W$1<1,0,RANK(BC12,BC$8:BC$15)*100000) -> 0 | BL12: =IF($W$1>0,0,RANK(BD12,BD$8:BD$15)*100000) ->  | BM12: =IF($W$1<1,0,RANK(BE12,BE$8:BE$15)*1000) -> 0 | BN12: =IF($W$1>0,0,RANK(BF12,BF$8:BF$15)*1000) ->  | BO12: =IF($W$1<1,0,RANK(BG12,BG$8:BG$15)) -> 0 | BP12: =IF($W$1>0,0,RANK(BH12,BH$8:BH$15)) ->  | BQ12: =IF(BI12<1,"",SUM(BJ12:BP12)) -> 
D13: =IF(D12="","",IF($W$1>0,$W$1,IF(W$2>0,V12,IF(U12>$AA$7,AC$1,IF(U12<$W$7,$W$7,U12))))) ->  | F13: =IF(F30<1,"",ROUND(F31,$AD$2)) ->  | H13: =IF(H30<1,"",ROUND(H31,$AD$2)) ->  | L13: =IF(L12<1,"",ROUND(L31,$AD$2)) ->  | T13: =IF($AB$1<1,ROUNDUP(D12*$AF$1+$AG$1,0)) -> 5 | U13: =IF($B12<1,0,IF(E12=$D13,1,0)) -> 0 | V13: =IF($B12<1,0,IF(G12=$D13,1,0)) -> 0 | W13: =IF($B12<1,0,IF(I12=$D13,1,0)) -> 0 | X13: =IF($B12<1,0,IF(K12=$D13,1,0)) -> 0 | AS13: =IF($W$1>0,0,IF(U13+$W9<1,0,IF(U13>$W9,2,IF(U13=$W9,1,0)))) -> 0 | AT13: =IF($W$1>0,0,IF(V13+$W11<1,0,IF(V13>$W11,2,IF(V13=$W11,1,0)))) -> 0 | AU13: =IF($W$1>0,0,IF(W13+$W13<1,0,IF(W13>$W13,2,IF(W13=$W13,1,0)))) -> 0 | AV13: =IF($W$1>0,0,IF(X13+$W15<1,0,IF(X13>$W15,2,IF(X13=$W15,1,0)))) -> 0
A14: 4 | F14: =IF($L8<1," ",$L8) ->  | H14: =IF($L10<1," ",$L10) ->  | J14: =IF($L12<1," ",$L12) ->  | M14: =IF(BI14<1," ",BB14) ->  | N14: =IF(BI14<1," ",SUM(BE14)) ->  | O14: =IF(BI14<1," ",SUM(BI14)) ->  | P14: =IF(BI14<1," ",SUM(BC14)) ->  | Q14: =IF(BI14<1," ",SUM(BG14)) ->  | R14: =IF(BI14<1," ",RANK(BQ14,BQ$8:BQ$15,1)) ->  | S14: =IF(BI14<1,"",BD14) ->  | T14: =IF($AB$1>0,+EVEN(D14*$AF$1+$AG$1)) -> FALSE | U14: =IF($W$1>0,0,IF($W$2>0,0,IF($AB$1>0,T14,T15))) -> 5 | V14: =IF(D14>AM$2,AN$1,IF(D14>AM$3,AN$2,IF(D14>AM$4,AN$3,IF(D14>AM$5,AN$4,IF(D14>AM$6,AN$5,IF(D14>AM$7,AN$6,AN$7)))))) -> 0 | AS14: =IF($W$1<1,0,IF($L8<1,0,IF(E14>$K8,2,IF(E14=$K8,1,0)))) -> 0 | AU14: =IF($W$1<1,0,IF($L10<1,0,IF(G14>$K10,2,IF(G14=$K10,1,0)))) -> 0 | AW14: =IF($W$1<1,0,IF($L12<1,0,IF(I14>$K12,2,IF(I14=$K12,1,0)))) -> 0 | BB14: =SUM(AS14:BA15) -> 0 | BD14: =IF(BI14<1,"",BC14/D14) ->  | BE14: =SUM(E14,G14,I14,K14) -> 0 | BF14: =IF(BI14<1,"",BE14/D15) ->  | BG14: =MAX(E15,G15,I15,K15) -> 0 | BH14: =IF(BI14<1,"",BG14/D15) ->  | BI14: =SUM(F14,H14,J14,L14) -> 0 | BJ14: =RANK(BB14,BB$8:BB$15)*10000000 -> 10000000 | BK14: =IF($W$1<1,0,RANK(BC14,BC$8:BC$15)*100000) -> 0 | BL14: =IF($W$1>0,0,RANK(BD14,BD$8:BD$15)*100000) ->  | BM14: =IF($W$1<1,0,RANK(BE14,BE$8:BE$15)*1000) -> 0 | BN14: =IF($W$1>0,0,RANK(BF14,BF$8:BF$15)*1000) ->  | BO14: =IF($W$1<1,0,RANK(BG14,BG$8:BG$15)) -> 0 | BP14: =IF($W$1>0,0,RANK(BH14,BH$8:BH$15)) ->  | BQ14: =IF(BI14<1,"",SUM(BJ14:BP14)) -> 
D15: =IF(D14="","",IF($W$1>0,$W$1,IF(W$2>0,V14,IF(U14>$AA$7,AC$1,IF(U14<$W$7,$W$7,U14))))) ->  | F15: =IF(F32<1,"",ROUND(F33,$AD$2)) ->  | H15: =IF(H32<1,"",ROUND(H33,$AD$2)) ->  | J15: =IF(J32<1,"",ROUND(J33,$AD$2)) ->  | T15: =IF($AB$1<1,ROUNDUP(D14*$AF$1+$AG$1,0)) -> 5 | U15: =IF($B14<1,0,IF(E14=$D15,1,0)) -> 0 | V15: =IF($B14<1,0,IF(G14=$D15,1,0)) -> 0 | W15: =IF($B14<1,0,IF(I14=$D15,1,0)) -> 0 | X15: =IF($B14<1,0,IF(K14=$D15,1,0)) -> 0 | AS15: =IF($W$1>0,0,IF(U15+$X9<1,0,IF(U15>$X9,2,IF(U15=$X9,1,0)))) -> 0 | AT15: =IF($W$1>0,0,IF(V15+$X11<1,0,IF(V15>$X11,2,IF(V15=$X11,1,0)))) -> 0 | AU15: =IF($W$1>0,0,IF(W15+$X13<1,0,IF(W15>$X13,2,IF(W15=$X13,1,0)))) -> 0 | AV15: =IF($W$1>0,0,IF(X15+$X15<1,0,IF(X15>$X15,2,IF(X15=$X15,1,0)))) -> 0
M16: Totalsnit | P16: =IF(O17<1,"",ROUNDDOWN(N17/O17,2)) -> 
E17: 1 | G17: 2 | I17: 3 | K17: 4 | N17: =SUM(N8:N15) -> 0 | O17: =SUM(O8:O15) -> 0
B18: =IF(E22>0,0,0.01) -> 0.01 | D18: 1 | E18: =IF($AB$4<1,0,IF($G$8>0,1,0)) -> 0
D19: 2 | E19: =IF($AB$4<1,0,IF($I$8>0,1,0)) -> 0 | G19: =IF($AB$4<1,0,IF($I$10>0,1,0)) -> 0
D20: 3 | E20: =IF($AB$4<1,0,IF($K$8>0,1,0)) -> 0 | G20: =IF($AB$4<1,0,IF($K$10>0,1,0)) -> 0 | I20: =IF($AB$4<1,0,IF($K$12>0,1,0)) -> 0
E22: =MAX(E18:L20) -> 0
H26: =H8 -> 0 | J26: =J8 -> 0 | L26: =L8 -> 0
D27: 1 | H27: =ROUNDDOWN(G8/H8,$AD$2) ->  | J27: =IF(J8<1," ",ROUNDDOWN(I8/J8,$AD$2)) ->  | L27: =IF(L8<1," ",ROUNDDOWN(K8/L8,$AD$2)) -> 
E28: =E10 -> 0 | F28: =H8 -> 0
D29: 2 | F29: =ROUNDDOWN(E28/F28,$AD$2) ->  | J29: =IF(J10<1," ",ROUNDDOWN(I10/J10,$AD$2)) ->  | L29: =IF(L10<1," ",ROUNDDOWN(K10/L10,$AD$2)) -> 
E30: =E12 -> 0 | F30: =J8 -> 0 | G30: =G12 -> 0 | H30: =J10 -> 0
D31: 3 | F31: =ROUNDDOWN(E30/F30,$AD$2) ->  | H31: =ROUNDDOWN(G30/H30,$AD$2) ->  | L31: =IF(L12<1," ",ROUNDDOWN(K12/L12,$AD$2)) -> 
E32: =E14 -> 0 | F32: =L8 -> 0 | G32: =G14 -> 0 | H32: =L10 -> 0 | I32: =I14 -> 0 | J32: =L12 -> 0
D33: 4 | F33: =ROUNDDOWN(E32/F32,$AD$2) ->  | H33: =ROUNDDOWN(G32/H32,$AD$2) ->  | J33: =ROUNDDOWN(I32/J32,$AD$2) -> 

Sheet Licens (hidden)
A1: Klubnr+Lic. | B1: Licens | C1: Spiller navn | D1: Klubnr | E1: Klub (auto.) | F1: Kegle | G1: 3-b | H1: 1-b | I1: Fri | J1: Aktiv-Lic. | K1: Oldboys / Hcp. | M1: Kv div. | N1: 3-b | P1: Stafet | Q1: Par | R1: Kgl. | T1: Spiller navn, der indsættes | U1: Fri | W1: Max hcp: | X1: 800 | Y1: =(X1-30)/30 -> 25.66666667 | AD1: Par
A2: =IF(D2&B2="","*",D2&B2) -> 1114564 | B2: 114564 | C2: Bent Holm | D2: 1 | E2: Nexø BK | F2: 10.27 | I2: 0.88 | J2: 1-2 | K2: =IF(L2="","",IF(L2>$X$1,"max",CEILING(L2,2))) -> 340 | L2: =IF(F2="","",F2*30+30) -> 338.1 | M2: =IF(R2="","",IF(R2<3,150,IF(R2<5,200,IF(R2<7.5,250,IF(R2<10,350,IF(R2>9.99,450,)))))) -> 450 | N2: =IF(O2="","",CEILING(O2,1)) ->  | O2: =IF(G2="","",G2*50+5) ->  | P2: =IF(R2="","",IF(R2<5,200,IF(R2<7,250,IF(R2<9,300,IF(R2<11.5,350,IF(R2<14,400,IF(R2<17.5,450,IF(R2<30,500,)))))))) -> 350 | Q2: =IF(R2="","",IF(R2>$AD$8,IF(R2>$AD$9,IF(R2>$AD$10,IF(R2>$AD$11,IF(R2>$AD$12,$AE$13,$AE$12),$AE$11),$AE$10),$AE$9),IF(R2>$AD$3,IF(R2>$AD$4,IF(R2>$AD$5,IF(R2>$AD$6,IF(R2>$AD$7,IF(R2>$AD$8,,$AE$8),$AE$7),$AE$6),$AE$5),$AE$4),$AE$3))) -> 110 | R2: =IF(F2="","",F2*1) -> 10.27 | T2: =IF(C2="","?",C2) -> Bent Holm | U2: =IF(V2="","",CEILING(V2,1)) -> 32 | V2: =IF(I2="","",I2*30+5) -> 31.4 | AC2: Snit grænse | AE2: distance | AF2: distance
A3: 1118786 | B3: 118786 | C3: Bernt Andersen | D3: 1 | E3: Nexø BK | F3: 5.87 | J3: 1-2 | K3: 208 | L3: =IF(F3="","",F3*30+30) -> 206.1 | M3: =IF(R3="","",IF(R3<3,150,IF(R3<5,200,IF(R3<7.5,250,IF(R3<10,350,IF(R3>9.99,450,)))))) -> 250 | O3: =IF(G3="","",G3*50+5) ->  | P3: =IF(R3="","",IF(R3<5,200,IF(R3<7,250,IF(R3<9,300,IF(R3<11.5,350,IF(R3<14,400,IF(R3<17.5,450,IF(R3<30,500,)))))))) -> 250 | Q3: 80 | R3: =IF(F3="","",F3*1) -> 5.87 | T3: =IF(C3="","?",C3) -> Bernt Andersen | V3: =IF(I3="","",I3*30+5) ->  | AC3: 0 | AD3: 2.99 | AE3: 60 | AF3: 60
A4: 1111531 | B4: 111531 | C4: Birgith Håkansson | D4: 1 | E4: Nexø BK | F4: 3.88 | J4: 1-2 | K4: 148 | L4: =IF(F4="","",F4*30+30) -> 146.4 | M4: =IF(R4="","",IF(R4<3,150,IF(R4<5,200,IF(R4<7.5,250,IF(R4<10,350,IF(R4>9.99,450,)))))) -> 200 | O4: =IF(G4="","",G4*50+5) ->  | P4: =IF(R4="","",IF(R4<5,200,IF(R4<7,250,IF(R4<9,300,IF(R4<11.5,350,IF(R4<14,400,IF(R4<17.5,450,IF(R4<30,500,)))))))) -> 200 | Q4: 70 | R4: =IF(F4="","",F4*1) -> 3.88 | T4: Birgith Håkansson | V4: =IF(I4="","",I4*30+5) ->  | AC4: 3 | AD4: 4.99 | AE4: 70 | AF4: 70
A5: 1115447 | B5: 115447 | C5: Carsten Håkansson | D5: 1 | E5: Nexø BK | F5: 14.12 | I5: 0.99 | J5: 1-2 | K5: 454 | L5: 453.6 | M5: =IF(R5="","",IF(R5<3,150,IF(R5<5,200,IF(R5<7.5,250,IF(R5<10,350,IF(R5>9.99,450,)))))) -> 450 | O5: =IF(G5="","",G5*50+5) ->  | P5: 450 | Q5: 170 | R5: 14.12 | T5: Carsten Håkansson | U5: 35 | V5: =IF(I5="","",I5*30+5) -> 34.7 | AC5: 5 | AD5: 6.99 | AE5: 80 | AF5: 80
A6: 1116824 | B6: 116824 | C6: Claus Andreasen | D6: 1 | E6: Nexø BK | F6: 30.72 | H6: 1.25 | I6: 5.63 | J6: 1-2 | K6: max | L6: 951.6 | M6: 450 | P6: 0 | Q6: 300 | R6: 30.72 | T6: Claus Andreasen | U6: 174 | V6: 173.9 | AC6: 7 | AD6: 8.99 | AE6: 90 | AF6: 90
A7: 1120210 | B7: 120210 | C7: Eddie Bruun | D7: 1 | E7: Nexø BK | F7: 4.73 | J7: 1-2 | K7: 172 | L7: 171.9 | M7: 200 | P7: 200 | Q7: 70 | R7: 4.73 | T7: Eddie Bruun | AC7: 9 | AD7: 10.99 | AE7: 110 | AF7: 110
A8: 1121372 | B8: 121372 | C8: Erik Eriksen | D8: 1 | E8: Nexø BK | F8: 9.91 | I8: 1.09 | J8: 1-2 | K8: 328 | L8: 327.3 | M8: 350 | P8: 350 | Q8: 110 | R8: 9.91 | T8: Erik Eriksen | U8: 38 | V8: 37.7 | AC8: 11 | AD8: 13.99 | AE8: 140 | AF8: 140
A9: 1113928 | B9: 113928 | C9: Erling Hansen | D9: 1 | E9: Nexø BK | F9: 2.89 | J9: 1-2 | K9: 118 | L9: 116.7 | M9: 150 | P9: 200 | Q9: 60 | R9: 2.89 | T9: Erling Hansen | AC9: 14 | AD9: 16.99 | AE9: 170 | AF9: 170
A10: 1116813 | B10: 116813 | C10: Flemming Andersen | D10: 1 | E10: Nexø BK | F10: 4.89 | J10: 1-2 | K10: 178 | L10: 176.7 | M10: 200 | P10: 200 | Q10: 70 | R10: 4.89 | T10: Flemming Andersen | AC10: 17 | AD10: 19.99 | AE10: 200 | AF10: 200
A11: 1115171 | B11: 115171 | C11: Flemming Kofoed Hansen | D11: 1 | E11: Nexø BK | F11: 6.4 | I11: 0.54 | J11: 1-2 | K11: 222 | L11: 222 | M11: 250 | P11: 250 | Q11: 80 | R11: 6.4 | T11: Flemming Kofoed Hansen | U11: 22 | V11: 21.2 | AC11: 20 | AD11: 24.99 | AE11: 230 | AF11: 230
A12: 1118412 | B12: 118412 | C12: Freddy Edwards | D12: 1 | E12: Nexø BK | F12: 45.58 | H12: 1.06 | I12: 1.83 | J12: 1-2 | K12: max | L12: 1397.4 | M12: 450 | P12: 0 | Q12: 300 | R12: 45.58 | T12: Freddy Edwards | U12: 60 | V12: 59.9 | AC12: 25 | AD12: 29.99 | AE12: 260 | AF12: 260
A13: 1120710 | B13: 120710 | C13: Jesper Larsen | D13: 1 | E13: Nexø BK | F13: 7.07 | J13: 1-2 | K13: 244 | L13: 242.1 | M13: 250 | P13: 300 | Q13: 90 | R13: 7.07 | T13: Jesper Larsen | AC13: 30 | AD13: 34.99 | AE13: 300 | AF13: 300
A14: 1120761 | B14: 120761 | C14: Kai Lund-Hansen | D14: 1 | E14: Nexø BK | F14: 3.16 | J14: 1-2 | K14: 126 | L14: 124.8 | M14: 200 | P14: 200 | Q14: 70 | R14: 3.16 | T14: Kai Lund-Hansen
A15: 1113015 | B15: 113015 | C15: Keld Nielsen | D15: 1 | E15: Nexø BK | F15: 5.12 | J15: 1-2 | K15: 184 | L15: 183.6 | M15: 250 | P15: 250 | Q15: 80 | R15: 5.12 | T15: Keld Nielsen
A16: 1111307 | B16: 111307 | C16: Kurt Horsner | D16: 1 | E16: Nexø BK | F16: 4.02 | J16: 1-2 | K16: 152 | L16: 150.6 | M16: 200 | P16: 200 | Q16: 70 | R16: 4.02 | T16: Kurt Horsner
A17: 1121830 | B17: 121830 | C17: Martin Reckendorff | D17: 1 | E17: Nexø BK | F17: 11.05 | J17: 1-2 | K17: 362 | L17: 361.5 | M17: 450 | P17: 350 | Q17: 140 | R17: 11.05 | T17: Martin Reckendorff
A18: 1110997 | B18: 110997 | C18: Niels Finne | D18: 1 | E18: Nexø BK | F18: 8.01 | I18: 0.54 | J18: 1-2 | K18: 272 | L18: 270.3 | M18: 350 | P18: 300 | Q18: 90 | R18: 8.01 | T18: Niels Finne | U18: 22 | V18: 21.2
A19: 1122059 | B19: 122059 | C19: Ole Dalgaard Nielsen | D19: 1 | E19: Nexø BK | F19: 3.33 | J19: 1-2 | K19: 130 | L19: 129.9 | M19: 200 | P19: 200 | Q19: 70 | R19: 3.33 | T19: Ole Dalgaard Nielsen
A20: 1119165 | B20: 119165 | C20: Peter Høst | D20: 1 | E20: Nexø BK | F20: 9.04 | G20: 0.213 | I20: 0.72 | J20: 1-2 | K20: 302 | L20: 301.2 | M20: 350 | N20: 16 | O20: 15.65 | P20: 350 | Q20: 110 | R20: 9.04 | T20: Peter Høst | U20: 27 | V20: 26.6
A21: 1115060 | B21: 115060 | C21: Rene Pedersen | D21: 1 | E21: Nexø BK | F21: 6.1 | J21: 1-2 | K21: 214 | L21: 213 | M21: 250 | P21: 250 | Q21: 80 | R21: 6.1 | T21: Rene Pedersen
A22: 1118841 | B22: 118841 | C22: Steen Grønnegaard | D22: 1 | E22: Nexø BK | F22: 3.98 | J22: 1-2 | K22: 150 | L22: 149.4 | M22: 200 | P22: 200 | Q22: 70 | R22: 3.98 | T22: Steen Grønnegaard
A23: 1112605 | B23: 112605 | C23: Aage Pedersen | D23: 1 | E23: Nexø BK | F23: 10.27 | G23: 0.23 | I23: 0.8 | J23: 1-2 | K23: 340 | L23: 338.1 | M23: 450 | N23: 17 | O23: 16.5 | P23: 350 | Q23: 110 | R23: 10.27 | T23: Aage Pedersen | U23: 29 | V23: 29
A24: 2120019 | B24: 120019 | C24: Bent Hansen | D24: 2 | E24: Nordbornh. BK | F24: 3.23 | J24: 1-2 | K24: 128 | L24: 126.9 | M24: 200 | P24: 200 | Q24: 70 | R24: 3.23 | T24: Bent Hansen
A25: 2110795 | B25: 110795 | C25: Bent Pedersen | D25: 2 | E25: Nordbornh. BK | F25: 7.09 | I25: 0.49 | J25: 1-2 | K25: 244 | L25: 242.7 | M25: 250 | P25: 300 | Q25: 90 | R25: 7.09 | T25: Bent Pedersen | U25: 20 | V25: 19.7
A26: 2114104 | B26: 114104 | C26: Birger K. Madsen | D26: 2 | E26: Nordbornh. BK | F26: 9.23 | I26: 0.77 | J26: 1-2 | K26: 308 | L26: 306.9 | M26: 350 | P26: 350 | Q26: 110 | R26: 9.23 | T26: Birger K. Madsen | U26: 29 | V26: 28.1
A27: 2117783 | B27: 117783 | C27: Birthe Ipsen | D27: 2 | E27: Nordbornh. BK | F27: 4.11 | J27: 1-2 | K27: 154 | L27: 153.3 | M27: 200 | P27: 200 | Q27: 70 | R27: 4.11 | T27: Birthe Ipsen
A28: 2121630 | B28: 121630 | C28: Brian Jensen | D28: 2 | E28: Nordbornh. BK | F28: 12.4 | I28: 0.93 | J28: 1-2 | K28: 402 | L28: 402 | M28: 450 | P28: 400 | Q28: 140 | R28: 12.4 | T28: Brian Jensen | U28: 33 | V28: 32.9
A29: 2122648 | B29: 122648 | C29: Carsten Reker Hansen | D29: 2 | E29: Nordbornh. BK | F29: 3.2 | J29: 1-2 | K29: 126 | L29: 126 | M29: 200 | P29: 200 | Q29: 70 | R29: 3.2 | T29: Carsten Reker Hansen
A30: 2110287 | B30: 110287 | C30: Elof Sellberg | D30: 2 | E30: Nordbornh. BK | F30: 4.61 | I30: 0.43 | J30: 1-2 | K30: 170 | L30: 168.3 | M30: 200 | P30: 200 | Q30: 70 | R30: 4.61 | T30: Elof Sellberg | U30: 18 | V30: 17.9
A31: 2116870 | B31: 116870 | C31: Erik Høst | D31: 2 | E31: Nordbornh. BK | F31: 11.61 | H31: 0.54 | I31: 1.14 | J31: 1-2 | K31: 380 | L31: 378.3 | M31: 450 | P31: 400 | Q31: 140 | R31: 11.61 | T31: Erik Høst | U31: 40 | V31: 39.2
A32: 2116354 | B32: 116354 | C32: Flemming Nielsen | D32: 2 | E32: Nordbornh. BK | F32: 7.91 | J32: 1-2 | K32: 268 | L32: 267.3 | M32: 350 | P32: 300 | Q32: 90 | R32: 7.91 | T32: Flemming Nielsen
A33: 2121629 | B33: 121629 | C33: Hans-Henrik Nielsen | D33: 2 | E33: Nordbornh. BK | F33: 9.67 | J33: 1-2 | K33: 322 | L33: 320.1 | M33: 350 | P33: 350 | Q33: 110 | R33: 9.67 | T33: Hans-Henrik Nielsen
A34: 2118859 | B34: 118859 | C34: Henning Dahl Olsen | D34: 2 | E34: Nordbornh. BK | F34: 3.28 | I34: 0.29 | J34: 1-2 | K34: 130 | L34: 128.4 | M34: 200 | P34: 200 | Q34: 70 | R34: 3.28 | T34: Henning Dahl Olsen | U34: 14 | V34: 13.7
A35: 2120048 | B35: 120048 | C35: Jacob Jørgensen | D35: 2 | E35: Nordbornh. BK | F35: 3.73 | J35: 1-2 | K35: 142 | L35: 141.9 | M35: 200 | P35: 200 | Q35: 70 | R35: 3.73 | T35: Jacob Jørgensen
A36: 2114490 | B36: 114490 | C36: Jan Jensen | D36: 2 | E36: Nordbornh. BK | F36: 5.52 | J36: 1-2 | K36: 196 | L36: 195.6 | M36: 250 | P36: 250 | Q36: 80 | R36: 5.52 | T36: Jan Jensen
A37: 2110650 | B37: 110650 | C37: Johan Lind | D37: 2 | E37: Nordbornh. BK | F37: 6.93 | J37: 1-2 | K37: 238 | L37: 237.9 | M37: 250 | P37: 250 | Q37: 80 | R37: 6.93 | T37: Johan Lind
A38: 2121970 | B38: 121970 | C38: Jonas Nielsen | D38: 2 | E38: Nordbornh. BK | F38: 11.82 | J38: 1-2 | K38: 386 | L38: 384.6 | M38: 450 | P38: 400 | Q38: 140 | R38: 11.82 | T38: Jonas Nielsen
A39: 2110217 | B39: 110217 | C39: Kim Westh | D39: 2 | E39: Nordbornh. BK | F39: 20.7 | I39: 1.14 | J39: 1-2 | K39: 652 | L39: 651 | M39: 450 | P39: 500 | Q39: 230 | R39: 20.7 | T39: Kim Westh | U39: 40 | V39: 39.2
A40: 2117445 | B40: 117445 | C40: Kurt Ipsen | D40: 2 | E40: Nordbornh. BK | F40: 6.38 | I40: 0.5 | J40: 1-2 | K40: 222 | L40: 221.4 | M40: 250 | P40: 250 | Q40: 80 | R40: 6.38 | T40: Kurt Ipsen | U40: 20 | V40: 20
A41: 2113532 | B41: 113532 | C41: Martin Randrup | D41: 2 | E41: Nordbornh. BK | F41: 12.88 | J41: 1-2 | K41: 418 | L41: 416.4 | M41: 450 | P41: 400 | Q41: 140 | R41: 12.88 | T41: Martin Randrup
A42: 2121751 | B42: 121751 | C42: Michael Andersen | D42: 2 | E42: Nordbornh. BK | F42: 6 | I42: 0.54 | J42: 1-2 | K42: 210 | L42: 210 | M42: 250 | P42: 250 | Q42: 80 | R42: 6 | T42: Michael Andersen | U42: 22 | V42: 21.2
A43: 2111383 | B43: 111383 | C43: Michael Wolfsberg | D43: 2 | E43: Nordbornh. BK | F43: 6.16 | I43: 0.68 | J43: 1-2 | K43: 216 | L43: 214.8 | M43: 250 | P43: 250 | Q43: 80 | R43: 6.16 | T43: Michael Wolfsberg | U43: 26 | V43: 25.4
A44: 2122114 | B44: 122114 | C44: Ole Bjørn Gjøg | D44: 2 | E44: Nordbornh. BK | F44: 3.88 | J44: 1-2 | K44: 148 | L44: 146.4 | M44: 200 | P44: 200 | Q44: 70 | R44: 3.88 | T44: Ole Bjørn Gjøg
A45: 2110125 | B45: 110125 | C45: Ole Hansen | D45: 2 | E45: Nordbornh. BK | F45: 5.59 | J45: 1-2 | K45: 198 | L45: 197.7 | M45: 250 | P45: 250 | Q45: 80 | R45: 5.59 | T45: Ole Hansen
A46: 2113581 | B46: 113581 | C46: Palle Skærbæk Jensen | D46: 2 | E46: Nordbornh. BK | F46: 5.87 | I46: 0.44 | J46: 1-2 | K46: 208 | L46: 206.1 | M46: 250 | P46: 250 | Q46: 80 | R46: 5.87 | T46: Palle Skærbæk Jensen | U46: 19 | V46: 18.2
A47: 2119723 | B47: 119723 | C47: Poul Bloch | D47: 2 | E47: Nordbornh. BK | F47: 5.78 | I47: 0.56 | J47: 1-2 | K47: 204 | L47: 203.4 | M47: 250 | P47: 250 | Q47: 80 | R47: 5.78 | T47: Poul Bloch | U47: 22 | V47: 21.8
A48: 2110530 | B48: 110530 | C48: Poul Ole Holm | D48: 2 | E48: Nordbornh. BK | F48: 4.14 | I48: 0.39 | J48: 1-2 | K48: 156 | L48: 154.2 | M48: 200 | P48: 200 | Q48: 70 | R48: 4.14 | T48: Poul Ole Holm | U48: 17 | V48: 16.7
A49: 2120891 | B49: 120891 | C49: Preben Myhre | D49: 2 | E49: Nordbornh. BK | F49: 5.15 | J49: 1-2 | K49: 186 | L49: 184.5 | M49: 250 | P49: 250 | Q49: 80 | R49: 5.15 | T49: Preben Myhre
A50: 2122507 | B50: 122507 | C50: Rasmus Knudsen | D50: 2 | E50: Nordbornh. BK | F50: 4.6 | J50: 1-2 | K50: 168 | L50: 168 | M50: 200 | P50: 200 | Q50: 70 | R50: 4.6 | T50: Rasmus Knudsen
A51: 2117767 | B51: 117767 | C51: Trygve Høst | D51: 2 | E51: Nordbornh. BK | F51: 8.29 | H51: 0.43 | I51: 0.72 | J51: 1-2 | K51: 280 | L51: 278.7 | M51: 350 | P51: 300 | Q51: 90 | R51: 8.29 | T51: Trygve Høst | U51: 27 | V51: 26.6
A52: 3119152 | B52: 119152 | C52: Bengt Pedersen | D52: 3 | E52: Rønne BK | F52: 7.3 | I52: 0.6 | J52: 1-2 | K52: 250 | L52: 249 | M52: 250 | P52: 300 | Q52: 90 | R52: 7.3 | T52: Bengt Pedersen | U52: 23 | V52: 23
A53: 3119282 | B53: 119282 | C53: Birgith Kleist | D53: 3 | E53: Rønne BK | F53: 2.48 | J53: 1-2 | K53: 106 | L53: 104.4 | M53: 150 | P53: 200 | Q53: 60 | R53: 2.48 | T53: Birgith Kleist
A54: 3120521 | B54: 120521 | C54: Bjarne Koefoed | D54: 3 | E54: Rønne BK | F54: 4.27 | J54: 1-2 | K54: 160 | L54: 158.1 | M54: 200 | P54: 200 | Q54: 70 | R54: 4.27 | T54: Bjarne Koefoed
A55: 3119066 | B55: 119066 | C55: Børge Leth | D55: 3 | E55: Rønne BK | F55: 3.95 | J55: 1-2 | K55: 150 | L55: 148.5 | M55: 200 | P55: 200 | Q55: 70 | R55: 3.95 | T55: Børge Leth
A56: 3113392 | B56: 113392 | C56: Christian Göttig | D56: 3 | E56: Rønne BK | F56: 5.06 | J56: 1-2 | K56: 182 | L56: 181.8 | M56: 250 | P56: 250 | Q56: 80 | R56: 5.06 | T56: Christian Göttig
A57: 3119212 | B57: 119212 | C57: Christian Jensen | D57: 3 | E57: Rønne BK | F57: 3.18 | J57: 1-2 | K57: 126 | L57: 125.4 | M57: 200 | P57: 200 | Q57: 70 | R57: 3.18 | T57: Christian Jensen
A58: 3118346 | B58: 118346 | C58: Erik Sørensen | D58: 3 | E58: Rønne BK | F58: 4.74 | J58: 1-2 | K58: 174 | L58: 172.2 | M58: 200 | P58: 200 | Q58: 70 | R58: 4.74 | T58: Erik Sørensen
A59: 3119809 | B59: 119809 | C59: Flemming Larsen (Nyker) | D59: 3 | E59: Rønne BK | F59: 3.92 | J59: 1-2 | K59: 148 | L59: 147.6 | M59: 200 | P59: 200 | Q59: 70 | R59: 3.92 | T59: Flemming Larsen (Nyker)
A60: 3119469 | B60: 119469 | C60: Flemming Larsen (Rønne ) | D60: 3 | E60: Rønne BK | F60: 3.69 | J60: 1-2 | K60: 142 | L60: 140.7 | M60: 200 | P60: 200 | Q60: 70 | R60: 3.69 | T60: Flemming Larsen (Rønne )
A61: 3119073 | B61: 119073 | C61: Harley Jensen | D61: 3 | E61: Rønne BK | F61: 4.97 | J61: 1-2 | K61: 180 | L61: 179.1 | M61: 200 | P61: 200 | Q61: 70 | R61: 4.97 | T61: Harley Jensen
A62: 3112174 | B62: 112174 | C62: Henrik O. L. Jørgensen | D62: 3 | E62: Rønne BK | F62: 13.95 | I62: 0.86 | J62: 1-2 | K62: 450 | L62: 448.5 | M62: 450 | P62: 400 | Q62: 140 | R62: 13.95 | T62: Henrik O. L. Jørgensen | U62: 31 | V62: 30.8
A63: 3119067 | B63: 119067 | C63: Jørgen Petersen | D63: 3 | E63: Rønne BK | F63: 11.08 | J63: 1-2 | K63: 364 | L63: 362.4 | M63: 450 | P63: 350 | Q63: 140 | R63: 11.08 | T63: Jørgen Petersen
A64: 3121179 | B64: 121179 | C64: Jørn Møller Rasmussen | D64: 3 | E64: Rønne BK | F64: 9.8 | I64: 0.91 | J64: 1-2 | K64: 324 | L64: 324 | M64: 350 | P64: 350 | Q64: 110 | R64: 9.8 | T64: Jørn Møller Rasmussen | U64: 33 | V64: 32.3
A65: 3119810 | B65: 119810 | C65: Knud Veje | D65: 3 | E65: Rønne BK | F65: 8.17 | J65: 1-2 | K65: 276 | L65: 275.1 | M65: 350 | P65: 300 | Q65: 90 | R65: 8.17 | T65: Knud Veje
A66: =IF(D66&B66="","*",D66&B66) -> 3112582 | B66: 112582 | C66: Konrad Pedersen | D66: 3 | E66: Rønne BK | F66: 6.23 | J66: 1-2 | K66: =IF(L66="","",IF(L66>$X$1,"max",CEILING(L66,2))) -> 218 | L66: 216.9 | M66: 250 | N66: =IF(O66="","",CEILING(O66,1)) ->  | P66: 250 | Q66: =IF(R66="","",IF(R66>$AD$8,IF(R66>$AD$9,IF(R66>$AD$10,IF(R66>$AD$11,IF(R66>$AD$12,$AE$13,$AE$12),$AE$11),$AE$10),$AE$9),IF(R66>$AD$3,IF(R66>$AD$4,IF(R66>$AD$5,IF(R66>$AD$6,IF(R66>$AD$7,IF(R66>$AD$8,,$AE$8),$AE$7),$AE$6),$AE$5),$AE$4),$AE$3))) -> 80 | R66: 6.23 | T66: Konrad Pedersen | U66: =IF(V66="","",CEILING(V66,1)) -> 
A67: 3119283 | B67: 119283 | C67: Lars Andersen | D67: 3 | E67: Rønne BK | F67: 6.36 | J67: 1-2 | K67: 222 | L67: 220.8 | M67: 250 | P67: 250 | Q67: 80 | R67: 6.36 | T67: =IF(C67="","?",C67) -> Lars Andersen
A68: 3120925 | B68: 120925 | C68: Poul Tolstrup | D68: 3 | E68: Rønne BK | F68: 3.33 | J68: 1-2 | K68: 130 | L68: =IF(F68="","",F68*30+30) -> 129.9 | M68: 200 | P68: =IF(R68="","",IF(R68<5,200,IF(R68<7,250,IF(R68<9,300,IF(R68<11.5,350,IF(R68<14,400,IF(R68<17.5,450,IF(R68<30,500,)))))))) -> 200 | Q68: 70 | R68: =IF(F68="","",F68*1) -> 3.33 | T68: Poul Tolstrup
A69: 3120926 | B69: 120926 | C69: René Jeppson | D69: 3 | E69: Rønne BK | F69: 9.21 | I69: 0.74 | J69: 1-2 | K69: 308 | L69: 306.3 | M69: =IF(R69="","",IF(R69<3,150,IF(R69<5,200,IF(R69<7.5,250,IF(R69<10,350,IF(R69>9.99,450,)))))) -> 350 | O69: =IF(G69="","",G69*50+5) ->  | P69: 350 | Q69: 110 | R69: 9.21 | T69: René Jeppson | U69: 28 | V69: =IF(I69="","",I69*30+5) -> 27.2
A70: 3121748 | B70: 121748 | C70: Torben Jørgensen | D70: 3 | E70: Rønne BK | F70: 10.85 | J70: 1-2 | K70: 356 | L70: 355.5 | M70: 450 | P70: 350 | Q70: 110 | R70: 10.85 | T70: Torben Jørgensen
A71: 4120479 | B71: 120479 | C71: Bent Christensen | D71: 4 | E71: Østermarie BK | F71: 7.42 | J71: 1-2 | K71: 254 | L71: 252.6 | M71: 250 | P71: 300 | Q71: 90 | R71: 7.42 | T71: Bent Christensen
A72: 4110012 | B72: 110012 | C72: Dorte Henriksen | D72: 4 | E72: Østermarie BK | F72: 3.13 | J72: 1-2 | K72: 124 | L72: 123.9 | M72: 200 | P72: 200 | Q72: 70 | R72: 3.13 | T72: Dorte Henriksen
A73: 4117624 | B73: 117624 | C73: Erik Burrack | D73: 4 | E73: Østermarie BK | F73: 15.14 | G73: 0.569 | H73: 1.25 | I73: 1.21 | J73: 1-2 | K73: 486 | L73: 484.2 | M73: 450 | N73: 34 | O73: 33.45 | P73: 450 | Q73: 170 | R73: 15.14 | T73: Erik Burrack | U73: 42 | V73: 41.3
A74: 4116759 | B74: 116759 | C74: Flemming Jensen | D74: 4 | E74: Østermarie BK | F74: 7.29 | I74: 0.71 | J74: 1-2 | K74: 250 | L74: 248.7 | M74: 250 | P74: 300 | Q74: 90 | R74: 7.29 | T74: Flemming Jensen | U74: 27 | V74: 26.3
A75: 4122452 | B75: 122452 | C75: Hans Jacob Jensen | D75: 4 | E75: Østermarie BK | F75: 2.34 | J75: 1-2 | K75: 102 | L75: 100.2 | M75: 150 | P75: 200 | Q75: 60 | R75: 2.34 | T75: Hans Jacob Jensen
A76: 4116222 | B76: 116222 | C76: Henrik K. Sørensen | D76: 4 | E76: Østermarie BK | F76: 4.21 | I76: 0.4 | J76: 1-2 | K76: 158 | L76: 156.3 | M76: 200 | P76: 200 | Q76: 70 | R76: 4.21 | T76: Henrik K. Sørensen | U76: 17 | V76: 17
A77: 4120949 | B77: 120949 | C77: Jacob Augustesen | D77: 4 | E77: Østermarie BK | F77: 7.8 | I77: 0.56 | J77: 1-2 | K77: 264 | L77: 264 | M77: 350 | P77: 300 | Q77: 90 | R77: 7.8 | T77: Jacob Augustesen | U77: 22 | V77: 21.8
A78: 4119148 | B78: 119148 | C78: Jens Høstner | D78: 4 | E78: Østermarie BK | F78: 7.06 | I78: 0.42 | J78: 1-2 | K78: 242 | L78: 241.8 | M78: 250 | P78: 300 | Q78: 90 | R78: 7.06 | T78: Jens Høstner | U78: 18 | V78: 17.6
A79: 4116191 | B79: 116191 | C79: Lise Nielsen | D79: 4 | E79: Østermarie BK | F79: 3.45 | I79: 0.24 | J79: 1-2 | K79: 134 | L79: 133.5 | M79: 200 | P79: 200 | Q79: 70 | R79: 3.45 | T79: Lise Nielsen | U79: 13 | V79: 12.2
A80: 4111044 | B80: 111044 | C80: Marianne Krag | D80: 4 | E80: Østermarie BK | F80: 4.14 | J80: 1-2 | K80: 156 | L80: 154.2 | M80: 200 | P80: 200 | Q80: 70 | R80: 4.14 | T80: Marianne Krag
A81: 4115998 | B81: 115998 | C81: Mogens S. Sørensen | D81: 4 | E81: Østermarie BK | F81: 5.7 | I81: 0.47 | J81: 1-2 | K81: 202 | L81: 201 | M81: 250 | P81: 250 | Q81: 80 | R81: 5.7 | T81: Mogens S. Sørensen | U81: 20 | V81: 19.1
A82: 4120302 | B82: 120302 | C82: Palle Knudsen | D82: 4 | E82: Østermarie BK | F82: 3.27 | I82: 0.5 | J82: 1-2 | K82: 130 | L82: 128.1 | M82: 200 | P82: 200 | Q82: 70 | R82: 3.27 | T82: Palle Knudsen | U82: 20 | V82: 20
A83: 4120748 | B83: 120748 | C83: Sonny Burrack | D83: 4 | E83: Østermarie BK | F83: 7.87 | G83: 0.181 | I83: 0.79 | J83: 1-2 | K83: 268 | L83: 266.1 | M83: 350 | N83: 15 | O83: 14.05 | P83: 300 | Q83: 90 | R83: 7.87 | T83: Sonny Burrack | U83: 29 | V83: 28.7
A84: 4113266 | B84: 113266 | C84: Stie von Elling | D84: 4 | E84: Østermarie BK | F84: 5.19 | I84: 0.44 | J84: 1-2 | K84: 186 | L84: 185.7 | M84: 250 | P84: 250 | Q84: 80 | R84: 5.19 | T84: Stie von Elling | U84: 19 | V84: 18.2
A85: 4121854 | B85: 121854 | C85: Thomas Espersen | D85: 4 | E85: Østermarie BK | F85: 6.41 | G85: 0.192 | I85: 0.56 | J85: 1-2 | K85: 224 | L85: 222.3 | M85: 250 | N85: 15 | O85: 14.6 | P85: 250 | Q85: 80 | R85: 6.41 | T85: Thomas Espersen | U85: 22 | V85: 21.8
A86: 4116704 | B86: 116704 | C86: Tina Kjeldsen | D86: 4 | E86: Østermarie BK | F86: 4.45 | J86: 1-2 | K86: 164 | L86: 163.5 | M86: 200 | P86: 200 | Q86: 70 | R86: 4.45 | T86: Tina Kjeldsen
A87: 5113748 | B87: 113748 | C87: Bent Mattsson | D87: 5 | E87: Åkirkeby BK | F87: 5.23 | J87: 1-2 | K87: 188 | L87: 186.9 | M87: 250 | P87: 250 | Q87: 80 | R87: 5.23 | T87: Bent Mattsson
A88: 5117627 | B88: 117627 | C88: Hans Henning Pedersen | D88: 5 | E88: Åkirkeby BK | F88: 6.33 | J88: 1-2 | K88: 220 | L88: 219.9 | M88: 250 | P88: 250 | Q88: 80 | R88: 6.33 | T88: Hans Henning Pedersen
A89: 5113650 | B89: 113650 | C89: Miki Sonne | D89: 5 | E89: Åkirkeby BK | F89: 4.46 | J89: 1-2 | K89: 164 | L89: 163.8 | M89: 200 | P89: 200 | Q89: 70 | R89: 4.46 | T89: Miki Sonne
A90: 5111835 | B90: 111835 | C90: Peter Folkmann | D90: 5 | E90: Åkirkeby BK | F90: 5.91 | J90: 1-2 | K90: 208 | L90: 207.3 | M90: 250 | P90: 250 | Q90: 80 | R90: 5.91 | T90: Peter Folkmann
A91: 5114625 | B91: 114625 | C91: Tim Mortensen | D91: 5 | E91: Åkirkeby BK | F91: 3.31 | J91: 1-2 | K91: 130 | L91: 129.3 | M91: 200 | P91: 200 | Q91: 70 | R91: 3.31 | T91: Tim Mortensen
A92: 5110533 | B92: 110533 | C92: Viggo Hansen | D92: 5 | E92: Åkirkeby BK | F92: 3.27 | J92: 1-2 | K92: 130 | L92: 128.1 | M92: 200 | P92: 200 | Q92: 70 | R92: 3.27 | T92: Viggo Hansen
A93: 101116938 | B93: 116938 | C93: Allan M Jensen | D93: 101 | E93: BK Amagerbro | G93: 0.552 | J93: 1-2 | N93: 33 | O93: 32.6 | T93: Allan M Jensen
A94: 101115075 | B94: 115075 | C94: Danny Korte | D94: 101 | E94: BK Amagerbro | G94: 0.914 | J94: 1-2 | N94: 51 | O94: 50.7 | T94: Danny Korte
A95: 101118460 | B95: 118460 | C95: Glenn Bloch | D95: 101 | E95: BK Amagerbro | G95: 0.714 | J95: 1-2 | N95: 41 | O95: 40.7 | T95: Glenn Bloch
A96: 101120233 | B96: 120233 | C96: Glenn Telvig | D96: 101 | E96: BK Amagerbro | F96: 20.75 | G96: 0.599 | J96: 1-2 | K96: 654 | L96: 652.5 | M96: 450 | N96: 35 | O96: 34.95 | P96: 500 | Q96: 230 | R96: 20.75 | T96: Glenn Telvig
A97: 101113360 | B97: 113360 | C97: Henrik Jensen | D97: 101 | E97: BK Amagerbro | G97: 0.92 | J97: 1-2 | N97: 51 | O97: 51 | T97: Henrik Jensen
A98: 101121951 | B98: 121951 | C98: Henrik Jung | D98: 101 | E98: BK Amagerbro | G98: 0.64 | J98: 1-2 | N98: 37 | O98: 37 | T98: Henrik Jung
A99: 101113740 | B99: 113740 | C99: Jørgen Wissing | D99: 101 | E99: BK Amagerbro | G99: 0.388 | J99: 1-2 | N99: 25 | O99: 24.4 | T99: Jørgen Wissing
A100: 101114061 | B100: 114061 | C100: Keld Jørgensen | D100: 101 | E100: BK Amagerbro | G100: 0.416 | J100: 1-2 | N100: 26 | O100: 25.8 | T100: Keld Jørgensen
A101: 101117074 | B101: 117074 | C101: Michael Jensen | D101: 101 | E101: BK Amagerbro | G101: 0.816 | J101: 1-2 | N101: 46 | O101: 45.8 | T101: Michael Jensen
A102: 101111959 | B102: 111959 | C102: Michel Jensen | D102: 101 | E102: BK Amagerbro | G102: 0.482 | J102: 1-2 | N102: 30 | O102: 29.1 | T102: Michel Jensen
A103: 101114877 | B103: 114877 | C103: Nick Månsson | D103: 101 | E103: BK Amagerbro | G103: 0.783 | J103: 1-2 | N103: 45 | O103: 44.15 | T103: Nick Månsson
A104: 101113686 | B104: 113686 | C104: Thomas Andersen | D104: 101 | E104: BK Amagerbro | F104: 44.44 | G104: 0.952 | H104: 2.725 | J104: 1-2 | K104: max | L104: 1363.2 | M104: 450 | N104: 53 | O104: 52.6 | P104: 0 | Q104: 300 | R104: 44.44 | T104: Thomas Andersen
A105: 101116726 | B105: 116726 | C105: Tom Pedersen | D105: 101 | E105: BK Amagerbro | G105: 0.547 | J105: 1-2 | N105: 33 | O105: 32.35 | T105: Tom Pedersen
A106: 103122062 | B106: 122062 | C106: Brian Jensen | D106: 103 | E106: CC Brønshøj | J106: 1-2 | T106: Brian Jensen
A107: 103111097 | B107: 111097 | C107: Carsten Hjøllund | D107: 103 | E107: CC Brønshøj | G107: 1.29 | J107: 1-2 | N107: 70 | O107: 69.5 | T107: Carsten Hjøllund
A108: 103113548 | B108: 113548 | C108: Dan Johansen | D108: 103 | E108: CC Brønshøj | G108: 0.834 | J108: 1-2 | N108: 47 | O108: 46.7 | T108: Dan Johansen
A109: 103116935 | B109: 116935 | C109: Hans Laursen | D109: 103 | E109: CC Brønshøj | G109: 0.936 | J109: 1-2 | N109: 52 | O109: 51.8 | T109: Hans Laursen
A110: 103114387 | B110: 114387 | C110: John Hansen | D110: 103 | E110: CC Brønshøj | F110: 50 | G110: 0.84 | J110: 1-2 | K110: max | L110: 1530 | M110: 450 | N110: 47 | O110: 47 | P110: 0 | Q110: 300 | R110: 50 | T110: John Hansen
A111: 103119342 | B111: 119342 | C111: Jonas Raagner | D111: 103 | E111: CC Brønshøj | F111: 30.94 | J111: 1-2 | K111: max | L111: 958.2 | M111: 450 | P111: 0 | Q111: 300 | R111: 30.94 | T111: Jonas Raagner
A112: 103115586 | B112: 115586 | C112: Rene Hendriksen | D112: 103 | E112: CC Brønshøj | F112: 65.19 | G112: 1.123 | H112: 2.08 | J112: 1-2 | K112: max | L112: 1985.7 | M112: 450 | N112: 62 | O112: 61.15 | P112: 0 | Q112: 300 | R112: 65.19 | T112: Rene Hendriksen
A113: 103118500 | B113: 118500 | C113: Steen Petersen | D113: 103 | E113: CC Brønshøj | G113: 0.689 | J113: 1-2 | N113: 40 | O113: 39.45 | T113: Steen Petersen
A114: 103122035 | B114: 122035 | C114: Tejs Tafdrup | D114: 103 | E114: CC Brønshøj | J114: 1-2 | T114: Tejs Tafdrup
A115: 103110686 | B115: 110686 | C115: Thomas Larsen | D115: 103 | E115: CC Brønshøj | F115: 24.68 | G115: 0.512 | J115: 1-2 | K115: 772 | L115: 770.4 | M115: 450 | N115: 31 | O115: 30.6 | P115: 500 | Q115: 230 | R115: 24.68 | T115: Thomas Larsen
A116: 103120239 | B116: 120239 | C116: Tommy Ebeling | D116: 103 | E116: CC Brønshøj | G116: 1.06 | J116: 1-2 | N116: 58 | O116: 58 | T116: Tommy Ebeling
A117: 107120121 | B117: 120121 | C117: Alex Tanev Persson | D117: 107 | E117: C.P.S.C. | J117: 1-2 | T117: Alex Tanev Persson
A118: 107122170 | B118: 122170 | C118: Alfred Melbye | D118: 107 | E118: C.P.S.C. | J118: 1-2 | T118: Alfred Melbye
A119: 107116848 | B119: 116848 | C119: Allan Bruun | D119: 107 | E119: C.P.S.C. | J119: 1-2 | T119: Allan Bruun
A120: 107122103 | B120: 122103 | C120: Anders Frydenlund | D120: 107 | E120: C.P.S.C. | J120: 1-2 | T120: Anders Frydenlund
A121: 107119581 | B121: 119581 | C121: Andreas Koll Petersen | D121: 107 | E121: C.P.S.C. | J121: 1-2 | T121: Andreas Koll Petersen
A122: 107122229 | B122: 122229 | C122: Carl-Emil Hartig Rysgaard | D122: 107 | E122: C.P.S.C. | J122: 1-2 | T122: Carl-Emil Hartig Rysgaard
A123: 107120591 | B123: 120591 | C123: Christian Austin | D123: 107 | E123: C.P.S.C. | J123: 1-2 | T123: Christian Austin
A124: 107121722 | B124: 121722 | C124: Daniel Broed | D124: 107 | E124: C.P.S.C. | J124: 1-2 | T124: Daniel Broed
A125: 107122530 | B125: 122530 | C125: Daniel Nedergaard | D125: 107 | E125: C.P.S.C. | J125: 1-2 | T125: Daniel Nedergaard
A126: 107122223 | B126: 122223 | C126: Dimitar Dimitrov | D126: 107 | E126: C.P.S.C. | J126: 1-2 | T126: Dimitar Dimitrov
A127: 107121716 | B127: 121716 | C127: Finn Deis | D127: 107 | E127: C.P.S.C. | J127: 1-2 | T127: Finn Deis
A128: 107112466 | B128: 112466 | C128: Gert Laursen | D128: 107 | E128: C.P.S.C. | J128: 1-2 | T128: Gert Laursen
A129: 107111006 | B129: 111006 | C129: Janick Navne | D129: 107 | E129: C.P.S.C. | J129: 1-2 | T129: Janick Navne
A130: =IF(D130&B130="","*",D130&B130) -> 107119230 | B130: 119230 | C130: Jens H. Petersen | D130: 107 | E130: C.P.S.C. | J130: 1-2 | K130: =IF(L130="","",IF(L130>$X$1,"max",CEILING(L130,2))) ->  | N130: =IF(O130="","",CEILING(O130,1)) ->  | Q130: =IF(R130="","",IF(R130>$AD$8,IF(R130>$AD$9,IF(R130>$AD$10,IF(R130>$AD$11,IF(R130>$AD$12,$AE$13,$AE$12),$AE$11),$AE$10),$AE$9),IF(R130>$AD$3,IF(R130>$AD$4,IF(R130>$AD$5,IF(R130>$AD$6,IF(R130>$AD$7,IF(R130>$AD$8,,$AE$8),$AE$7),$AE$6),$AE$5),$AE$4),$AE$3))) ->  | T130: Jens H. Petersen | U130: =IF(V130="","",CEILING(V130,1)) -> 
A131: 107120035 | B131: 120035 | C131: Jeppe Thyde | D131: 107 | E131: C.P.S.C. | J131: 1-2 | T131: =IF(C131="","?",C131) -> Jeppe Thyde
A132: 107120134 | B132: 120134 | C132: Johannes Mann | D132: 107 | E132: C.P.S.C. | J132: 1-2 | L132: =IF(F132="","",F132*30+30) ->  | P132: =IF(R132="","",IF(R132<5,200,IF(R132<7,250,IF(R132<9,300,IF(R132<11.5,350,IF(R132<14,400,IF(R132<17.5,450,IF(R132<30,500,)))))))) ->  | R132: =IF(F132="","",F132*1) ->  | T132: Johannes Mann
A133: 107122155 | B133: 122155 | C133: Kitti Olsen | D133: 107 | E133: C.P.S.C. | J133: 1-2 | M133: =IF(R133="","",IF(R133<3,150,IF(R133<5,200,IF(R133<7.5,250,IF(R133<10,350,IF(R133>9.99,450,)))))) ->  | O133: =IF(G133="","",G133*50+5) ->  | T133: Kitti Olsen | V133: =IF(I133="","",I133*30+5) -> 
A134: 107120972 | B134: 120972 | C134: Lasse Buhl | D134: 107 | E134: C.P.S.C. | J134: 1-2 | T134: Lasse Buhl
A135: 107120078 | B135: 120078 | C135: Mads Brundbjerg | D135: 107 | E135: C.P.S.C. | J135: 1-2 | T135: Mads Brundbjerg
A136: 107120132 | B136: 120132 | C136: Michelle Hein | D136: 107 | E136: C.P.S.C. | J136: 1-2 | T136: Michelle Hein
A137: 107122517 | B137: 122517 | C137: Monty Melbye | D137: 107 | E137: C.P.S.C. | J137: 1-2 | T137: Monty Melbye
A138: 107119748 | B138: 119748 | C138: Nicklas Olsen | D138: 107 | E138: C.P.S.C. | J138: 1-2 | T138: Nicklas Olsen
A139: 107119233 | B139: 119233 | C139: Per Ingebrightsen | D139: 107 | E139: C.P.S.C. | J139: 1-2 | T139: Per Ingebrightsen
A140: 107119172 | B140: 119172 | C140: Per Micki Christensen | D140: 107 | E140: C.P.S.C. | J140: 1-2 | T140: Per Micki Christensen
A141: 107119662 | B141: 119662 | C141: Robin Tønnesen | D141: 107 | E141: C.P.S.C. | J141: 1-2 | T141: Robin Tønnesen
A142: 107116026 | B142: 116026 | C142: Rune Kampe | D142: 107 | E142: C.P.S.C. | F142: 114.71 | G142: 0.705 | J142: 1-2 | K142: max | L142: 3471.3 | M142: 450 | N142: 41 | O142: 40.25 | P142: 0 | Q142: 300 | R142: 114.71 | T142: Rune Kampe
A143: 107119976 | B143: 119976 | C143: Thomas Bøgeskov | D143: 107 | E143: C.P.S.C. | J143: 1-2 | T143: Thomas Bøgeskov
A144: 107122161 | B144: 122161 | C144: Tomasz Wtadystaw Czorniak | D144: 107 | E144: C.P.S.C. | J144: 1-2 | T144: Tomasz Wtadystaw Czorniak
A145: 107118930 | B145: 118930 | C145: William Bjerregaard Jakobsen | D145: 107 | E145: C.P.S.C. | F145: 11.65 | J145: 1-2 | K145: 380 | L145: 379.5 | M145: 450 | P145: 400 | Q145: 140 | R145: 11.65 | T145: William Bjerregaard Jakobsen
A146: 107120971 | B146: 120971 | C146: William Damkjer Buhl | D146: 107 | E146: C.P.S.C. | J146: 1-2 | T146: William Damkjer Buhl
A147: 108112638 | B147: 112638 | C147: Arne Schibelfeldt | D147: 108 | E147: Friheden BK | F147: 8.84 | G147: 0.2 | J147: 1-2 | K147: 296 | L147: 295.2 | M147: 350 | N147: 15 | O147: 15 | P147: 300 | Q147: 90 | R147: 8.84 | T147: Arne Schibelfeldt
A148: 108122042 | B148: 122042 | C148: Arne Walther Larsen | D148: 108 | E148: Friheden BK | F148: 5.82 | J148: 1-2 | K148: 206 | L148: 204.6 | M148: 250 | P148: 250 | Q148: 80 | R148: 5.82 | T148: Arne Walther Larsen
A149: 108111492 | B149: 111492 | C149: Bent Knudsen | D149: 108 | E149: Friheden BK | F149: 6.28 | J149: 1-2 | K149: 220 | L149: 218.4 | M149: 250 | P149: 250 | Q149: 80 | R149: 6.28 | T149: Bent Knudsen
A150: 108122040 | B150: 122040 | C150: Bent Lundsgaard Møller | D150: 108 | E150: Friheden BK | F150: 3.44 | J150: 1-2 | K150: 134 | L150: 133.2 | M150: 200 | P150: 200 | Q150: 70 | R150: 3.44 | T150: Bent Lundsgaard Møller
A151: 108120385 | B151: 120385 | C151: Bo Geugjes | D151: 108 | E151: Friheden BK | F151: 20.97 | J151: 1-2 | K151: 660 | L151: 659.1 | M151: 450 | P151: 500 | Q151: 230 | R151: 20.97 | T151: Bo Geugjes
A152: 108122370 | B152: 122370 | C152: Christian Hasemann Poulsen | D152: 108 | E152: Friheden BK | F152: 7.19 | J152: 1-2 | K152: 246 | L152: 245.7 | M152: 250 | P152: 300 | Q152: 90 | R152: 7.19 | T152: Christian Hasemann Poulsen
A153: 108113414 | B153: 113414 | C153: Erik Adrian | D153: 108 | E153: Friheden BK | F153: 24.12 | J153: 1-2 | K153: 754 | L153: 753.6 | M153: 450 | P153: 500 | Q153: 230 | R153: 24.12 | T153: Erik Adrian
A154: 108115452 | B154: 115452 | C154: Erling Hansen | D154: 108 | E154: Friheden BK | F154: 12.8 | J154: 1-2 | K154: 414 | L154: 414 | M154: 450 | P154: 400 | Q154: 140 | R154: 12.8 | T154: Erling Hansen
A155: 108122197 | B155: 122197 | C155: Flemming Pedersen | D155: 108 | E155: Friheden BK | F155: 15.6 | J155: 1-2 | K155: 498 | L155: 498 | M155: 450 | P155: 450 | Q155: 170 | R155: 15.6 | T155: Flemming Pedersen
A156: 108113932 | B156: 113932 | C156: Geert Skatholm | D156: 108 | E156: Friheden BK | F156: 7.42 | J156: 1-2 | K156: 254 | L156: 252.6 | M156: 250 | P156: 300 | Q156: 90 | R156: 7.42 | T156: Geert Skatholm
A157: 108119824 | B157: 119824 | C157: Gert M. Nielsen | D157: 108 | E157: Friheden BK | F157: 7.3 | J157: 1-2 | K157: 250 | L157: 249 | M157: 250 | P157: 300 | Q157: 90 | R157: 7.3 | T157: Gert M. Nielsen
A158: 108119462 | B158: 119462 | C158: Helge M. Frederiksen | D158: 108 | E158: Friheden BK | F158: 6.97 | J158: 1-2 | K158: 240 | L158: 239.1 | M158: 250 | P158: 250 | Q158: 80 | R158: 6.97 | T158: Helge M. Frederiksen
A159: 108116516 | B159: 116516 | C159: Hugo Hvidkvist | D159: 108 | E159: Friheden BK | F159: 17.95 | J159: 1-2 | K159: 570 | L159: 568.5 | M159: 450 | P159: 500 | Q159: 200 | R159: 17.95 | T159: Hugo Hvidkvist
A160: 108117229 | B160: 117229 | C160: Ib Jørnå Pedersen | D160: 108 | E160: Friheden BK | F160: 5.21 | J160: 1-2 | K160: 188 | L160: 186.3 | M160: 250 | P160: 250 | Q160: 80 | R160: 5.21 | T160: Ib Jørnå Pedersen
A161: 108120016 | B161: 120016 | C161: Jan Beyer | D161: 108 | E161: Friheden BK | F161: 27.6 | J161: 1-2 | K161: max | L161: 858 | M161: 450 | P161: 500 | Q161: 260 | R161: 27.6 | T161: Jan Beyer
A162: 108112705 | B162: 112705 | C162: Jørgen Pontoppidan | D162: 108 | E162: Friheden BK | F162: 4.91 | J162: 1-2 | K162: 178 | L162: 177.3 | M162: 200 | P162: 200 | Q162: 70 | R162: 4.91 | T162: Jørgen Pontoppidan
A163: 108120456 | B163: 120456 | C163: Jørn K.B. Christiansen | D163: 108 | E163: Friheden BK | F163: 7.47 | J163: 1-2 | K163: 256 | L163: 254.1 | M163: 250 | P163: 300 | Q163: 90 | R163: 7.47 | T163: Jørn K.B. Christiansen
A164: 108121375 | B164: 121375 | C164: Keld Pedersen | D164: 108 | E164: Friheden BK | F164: 5.04 | J164: 1-2 | K164: 182 | L164: 181.2 | M164: 250 | P164: 250 | Q164: 80 | R164: 5.04 | T164: Keld Pedersen
A165: 108115714 | B165: 115714 | C165: Kim Thorberg | D165: 108 | E165: Friheden BK | F165: 5.17 | J165: 1-2 | K165: 186 | L165: 185.1 | M165: 250 | P165: 250 | Q165: 80 | R165: 5.17 | T165: Kim Thorberg
A166: 108122041 | B166: 122041 | C166: Kimmo Brødbæk | D166: 108 | E166: Friheden BK | F166: 3.85 | J166: 1-2 | K166: 146 | L166: 145.5 | M166: 200 | P166: 200 | Q166: 70 | R166: 3.85 | T166: Kimmo Brødbæk
A167: 108121376 | B167: 121376 | C167: Lars Jensen | D167: 108 | E167: Friheden BK | F167: 5.43 | J167: 1-2 | K167: 194 | L167: 192.9 | M167: 250 | P167: 250 | Q167: 80 | R167: 5.43 | T167: Lars Jensen
A168: 108119623 | B168: 119623 | C168: Lasse Sørensen | D168: 108 | E168: Friheden BK | F168: 6.58 | J168: 1-2 | K168: 228 | L168: 227.4 | M168: 250 | P168: 250 | Q168: 80 | R168: 6.58 | T168: Lasse Sørensen
A169: 108120468 | B169: 120468 | C169: Mads Kristian Olesen | D169: 108 | E169: Friheden BK | F169: 7.18 | J169: 2-2 | K169: 246 | L169: 245.4 | M169: 250 | P169: 300 | Q169: 90 | R169: 7.18 | T169: Mads Kristian Olesen
A170: 108114939 | B170: 114939 | C170: Mette Jensen | D170: 108 | E170: Friheden BK | F170: 5.32 | J170: 1-2 | K170: 190 | L170: 189.6 | M170: 250 | P170: 250 | Q170: 80 | R170: 5.32 | T170: Mette Jensen
A171: 108111896 | B171: 111896 | C171: Ole Barnhard Larsen | D171: 108 | E171: Friheden BK | F171: 17.32 | J171: 1-2 | K171: 550 | L171: 549.6 | M171: 450 | P171: 450 | Q171: 200 | R171: 17.32 | T171: Ole Barnhard Larsen
A172: 108110888 | B172: 110888 | C172: Per Hansen | D172: 108 | E172: Friheden BK | F172: 11.14 | J172: 1-2 | K172: 366 | L172: 364.2 | M172: 450 | P172: 350 | Q172: 140 | R172: 11.14 | T172: Per Hansen
A173: 108116316 | B173: 116316 | C173: Peter Gendrup | D173: 108 | E173: Friheden BK | F173: 10.36 | G173: 0.201 | J173: 1-2 | K173: 342 | L173: 340.8 | M173: 450 | N173: 16 | O173: 15.05 | P173: 350 | Q173: 110 | R173: 10.36 | T173: Peter Gendrup
A174: 108119465 | B174: 119465 | C174: Peter Ryom Rommedahl | D174: 108 | E174: Friheden BK | F174: 25.01 | I174: 1.91 | J174: 1-2 | K174: 782 | L174: 780.3 | M174: 450 | P174: 500 | Q174: 260 | R174: 25.01 | T174: Peter Ryom Rommedahl | U174: 63 | V174: 62.3
A175: 108120784 | B175: 120784 | C175: Peter Rytter Nielsen | D175: 108 | E175: Friheden BK | F175: 11.18 | J175: 1-2 | K175: 366 | L175: 365.4 | M175: 450 | P175: 350 | Q175: 140 | R175: 11.18 | T175: Peter Rytter Nielsen
A176: 108114408 | B176: 114408 | C176: Steen Cassøe | D176: 108 | E176: Friheden BK | F176: 5.88 | J176: 1-2 | K176: 208 | L176: 206.4 | M176: 250 | P176: 250 | Q176: 80 | R176: 5.88 | T176: Steen Cassøe
A177: 108122656 | B177: 122656 | C177: Steen Hedegård Poulsen | D177: 108 | E177: Friheden BK | F177: 6.82 | J177: 1-2 | K177: 236 | L177: 234.6 | M177: 250 | P177: 250 | Q177: 80 | R177: 6.82 | T177: Steen Hedegård Poulsen
A178: 108114988 | B178: 114988 | C178: Steen Larsen | D178: 108 | E178: Friheden BK | F178: 7.31 | J178: 1-2 | K178: 250 | L178: 249.3 | M178: 250 | P178: 300 | Q178: 90 | R178: 7.31 | T178: Steen Larsen
A179: 108119464 | B179: 119464 | C179: Steingrim Samuelsen | D179: 108 | E179: Friheden BK | F179: 22.53 | J179: 1-2 | K179: 706 | L179: 705.9 | M179: 450 | P179: 500 | Q179: 230 | R179: 22.53 | T179: Steingrim Samuelsen
A180: 108113288 | B180: 113288 | C180: Stig Jensen | D180: 108 | E180: Friheden BK | F180: 14.63 | J180: 1-2 | K180: 470 | L180: 468.9 | M180: 450 | P180: 450 | Q180: 170 | R180: 14.63 | T180: Stig Jensen
A181: 108121713 | B181: 121713 | C181: Svend-Erik Christensen | D181: 108 | E181: Friheden BK | F181: 21.33 | J181: 1-2 | K181: 670 | L181: 669.9 | M181: 450 | P181: 500 | Q181: 230 | R181: 21.33 | T181: Svend-Erik Christensen
A182: 108118498 | B182: 118498 | C182: Vagn Morton | D182: 108 | E182: Friheden BK | F182: 7.56 | J182: 1-2 | K182: 258 | L182: 256.8 | M182: 350 | P182: 300 | Q182: 90 | R182: 7.56 | T182: Vagn Morton
A183: 110116933 | B183: 116933 | C183: Albert Brohauge | D183: 110 | E183: Gladsaxe BK | F183: 9.09 | J183: 1-2 | K183: 304 | L183: 302.7 | M183: 350 | P183: 350 | Q183: 110 | R183: 9.09 | T183: Albert Brohauge
A184: 110117275 | B184: 117275 | C184: Allan Christensen | D184: 110 | E184: Gladsaxe BK | F184: 5.57 | J184: 1-2 | K184: 198 | L184: 197.1 | M184: 250 | P184: 250 | Q184: 80 | R184: 5.57 | T184: Allan Christensen
A185: 110111260 | B185: 111260 | C185: Erik Wessing | D185: 110 | E185: Gladsaxe BK | F185: 3.09 | G185: 0.088 | H185: 0.315 | I185: 0.38 | J185: 1-2 | K185: 124 | L185: 122.7 | M185: 200 | N185: 10 | O185: 9.4 | P185: 200 | Q185: 70 | R185: 3.09 | T185: Erik Wessing | U185: 17 | V185: 16.4
A186: 110112610 | B186: 112610 | C186: Hans Jørgen Bentson | D186: 110 | E186: Gladsaxe BK | F186: 14.56 | J186: 1-2 | K186: 468 | L186: 466.8 | M186: 450 | P186: 450 | Q186: 170 | R186: 14.56 | T186: Hans Jørgen Bentson
A187: 110118793 | B187: 118793 | C187: Henrik Fabricius | D187: 110 | E187: Gladsaxe BK | F187: 8.48 | J187: 1-2 | K187: 286 | L187: 284.4 | M187: 350 | P187: 300 | Q187: 90 | R187: 8.48 | T187: Henrik Fabricius
A188: 110113824 | B188: 113824 | C188: Jan Jensen | D188: 110 | E188: Gladsaxe BK | F188: 8.72 | J188: 1-2 | K188: 292 | L188: 291.6 | M188: 350 | P188: 300 | Q188: 90 | R188: 8.72 | T188: Jan Jensen
A189: 110113431 | B189: 113431 | C189: Mac Allerup | D189: 110 | E189: Gladsaxe BK | F189: 6.13 | J189: 1-2 | K189: 214 | L189: 213.9 | M189: 250 | P189: 250 | Q189: 80 | R189: 6.13 | T189: Mac Allerup
A190: 110112564 | B190: 112564 | C190: Michael Rasmussen | D190: 110 | E190: Gladsaxe BK | F190: 13.57 | J190: 1-2 | K190: 438 | L190: 437.1 | M190: 450 | P190: 400 | Q190: 140 | R190: 13.57 | T190: Michael Rasmussen
A191: 110117444 | B191: 117444 | C191: Mogens Berthelsen | D191: 110 | E191: Gladsaxe BK | F191: 8.15 | J191: 1-2 | K191: 276 | L191: 274.5 | M191: 350 | P191: 300 | Q191: 90 | R191: 8.15 | T191: Mogens Berthelsen
A192: 110121441 | B192: 121441 | C192: Mogens Petersen | D192: 110 | E192: Gladsaxe BK | F192: 6.28 | J192: 1-2 | K192: 220 | L192: 218.4 | M192: 250 | P192: 250 | Q192: 80 | R192: 6.28 | T192: Mogens Petersen
A193: 110118511 | B193: 118511 | C193: Nabil Aziz | D193: 110 | E193: Gladsaxe BK | F193: 6.35 | J193: 1-2 | K193: 222 | L193: 220.5 | M193: 250 | P193: 250 | Q193: 80 | R193: 6.35 | T193: Nabil Aziz
A194: =IF(D194&B194="","*",D194&B194) -> 110118442 | B194: 118442 | C194: Ole Olsen | D194: 110 | E194: Gladsaxe BK | F194: 6.64 | J194: 1-2 | K194: =IF(L194="","",IF(L194>$X$1,"max",CEILING(L194,2))) -> 230 | L194: 229.2 | M194: 250 | N194: =IF(O194="","",CEILING(O194,1)) ->  | P194: 250 | Q194: =IF(R194="","",IF(R194>$AD$8,IF(R194>$AD$9,IF(R194>$AD$10,IF(R194>$AD$11,IF(R194>$AD$12,$AE$13,$AE$12),$AE$11),$AE$10),$AE$9),IF(R194>$AD$3,IF(R194>$AD$4,IF(R194>$AD$5,IF(R194>$AD$6,IF(R194>$AD$7,IF(R194>$AD$8,,$AE$8),$AE$7),$AE$6),$AE$5),$AE$4),$AE$3))) -> 80 | R194: 6.64 | T194: Ole Olsen | U194: =IF(V194="","",CEILING(V194,1)) -> 
A195: 110120378 | B195: 120378 | C195: Peer Jørgensen | D195: 110 | E195: Gladsaxe BK | F195: 4.38 | J195: 1-2 | K195: 162 | L195: 161.4 | M195: 200 | P195: 200 | Q195: 70 | R195: 4.38 | T195: =IF(C195="","?",C195) -> Peer Jørgensen
A196: 110111976 | B196: 111976 | C196: Per Kæseler | D196: 110 | E196: Gladsaxe BK | F196: 5.4 | J196: 1-2 | K196: 192 | L196: =IF(F196="","",F196*30+30) -> 192 | M196: 250 | P196: =IF(R196="","",IF(R196<5,200,IF(R196<7,250,IF(R196<9,300,IF(R196<11.5,350,IF(R196<14,400,IF(R196<17.5,450,IF(R196<30,500,)))))))) -> 250 | Q196: 80 | R196: =IF(F196="","",F196*1) -> 5.4 | T196: Per Kæseler
A197: 111112647 | B197: 112647 | C197: Allan Stoffer | D197: 111 | E197: BK Grøndal | G197: 0.628 | J197: 1-2 | M197: =IF(R197="","",IF(R197<3,150,IF(R197<5,200,IF(R197<7.5,250,IF(R197<10,350,IF(R197>9.99,450,)))))) ->  | N197: 37 | O197: =IF(G197="","",G197*50+5) -> 36.4 | T197: Allan Stoffer | V197: =IF(I197="","",I197*30+5) -> 
A198: 111119887 | B198: 119887 | C198: Bo Halvorsen | D198: 111 | E198: BK Grøndal | G198: 0.489 | J198: 1-2 | N198: 30 | O198: 29.45 | T198: Bo Halvorsen
A199: 111114579 | B199: 114579 | C199: Brian Knudsen | D199: 111 | E199: BK Grøndal | G199: 1.512 | J199: 1-2 | N199: 81 | O199: 80.6 | T199: Brian Knudsen
A200: 111117093 | B200: 117093 | C200: Bruno Arndt | D200: 111 | E200: BK Grøndal | G200: 0.632 | J200: 1-2 | N200: 37 | O200: 36.6 | T200: Bruno Arndt
... 4300 more rows

Sheet Webdata2 (hidden)
A1: Licensnr | B1: Fornavn | C1: Efternavn | D1: Navn | E1: Klubnr | F1: Klubnavn | G1: KnrTal | H1: Kortnavn | I1: Kegle | J1: Kgl | K1: Caram_3B | L1: Car3B | M1: Caram_1B | N1: Car1B | O1: Caram_Fri | P1: CarFri | Q1: Kegle_5 | R1: Biathlon | S1: Aktiv_status | T1: Licenskort | U1: DOB | V1: Cadre_47_2 | W1: Cadre_71_2 | X1: Aktiv_Lic | Y1: Har_snit | AA1: =COUNTA(A2:A12580) -> 9313
A2: 100001 | B2: Tina | C2: Skovshoved | D2: =Tabel_DDBU_Data3[Fornavn]&" "&Tabel_DDBU_Data3[Efternavn] -> Tina Skovshoved | E2: 0 | G2: =VALUE(Tabel_DDBU_Data3[Klubnr]) -> 0 | J2: =IF(Tabel_DDBU_Data3[Kegle]>0,Tabel_DDBU_Data3[Kegle]/1000,"") ->  | L2: =IF(Tabel_DDBU_Data3[Caram_3B]>0,Tabel_DDBU_Data3[Caram_3B]/1000,"") ->  | N2: =IF(Tabel_DDBU_Data3[Caram_1B]>0,Tabel_DDBU_Data3[Caram_1B]/1000,"") ->  | P2: =IF(Tabel_DDBU_Data3[Caram_Fri]>0,Tabel_DDBU_Data3[Caram_Fri]/1000,"") ->  | S2: 0 | T2: 0 | U2: 0000-00-00 | X2: =Tabel_DDBU_Data3[Aktiv_status] &"-" & Tabel_DDBU_Data3[Licenskort] -> 0-0 | Y2: =IF(Tabel_DDBU_Data3[Kegle]+Tabel_DDBU_Data3[Caram_3B]+Tabel_DDBU_Data3[Caram_1B]+Tabel_DDBU_Data3[Caram_Fri]>0,1,0) -> 0
A3: 100002 | B3: Michelle | C3: Nielsen | D3: =Tabel_DDBU_Data3[Fornavn]&" "&Tabel_DDBU_Data3[Efternavn] -> Michelle Nielsen | E3: 0 | G3: =VALUE(Tabel_DDBU_Data3[Klubnr]) -> 0 | J3: =IF(Tabel_DDBU_Data3[Kegle]>0,Tabel_DDBU_Data3[Kegle]/1000,"") ->  | L3: =IF(Tabel_DDBU_Data3[Caram_3B]>0,Tabel_DDBU_Data3[Caram_3B]/1000,"") ->  | N3: =IF(Tabel_DDBU_Data3[Caram_1B]>0,Tabel_DDBU_Data3[Caram_1B]/1000,"") ->  | P3: =IF(Tabel_DDBU_Data3[Caram_Fri]>0,Tabel_DDBU_Data3[Caram_Fri]/1000,"") ->  | S3: 0 | T3: 0 | U3: 1899-12-30 | X3: =Tabel_DDBU_Data3[Aktiv_status] &"-" & Tabel_DDBU_Data3[Licenskort] -> 0-0 | Y3: =IF(Tabel_DDBU_Data3[Kegle]+Tabel_DDBU_Data3[Caram_3B]+Tabel_DDBU_Data3[Caram_1B]+Tabel_DDBU_Data3[Caram_Fri]>0,1,0) -> 0
A4: 100003 | B4: Charlotte | C4: Sørensen | D4: =Tabel_DDBU_Data3[Fornavn]&" "&Tabel_DDBU_Data3[Efternavn] -> Charlotte Sørensen | E4: 0 | G4: =VALUE(Tabel_DDBU_Data3[Klubnr]) -> 0 | J4: =IF(Tabel_DDBU_Data3[Kegle]>0,Tabel_DDBU_Data3[Kegle]/1000,"") ->  | L4: =IF(Tabel_DDBU_Data3[Caram_3B]>0,Tabel_DDBU_Data3[Caram_3B]/1000,"") ->  | N4: =IF(Tabel_DDBU_Data3[Caram_1B]>0,Tabel_DDBU_Data3[Caram_1B]/1000,"") ->  | P4: =IF(Tabel_DDBU_Data3[Caram_Fri]>0,Tabel_DDBU_Data3[Caram_Fri]/1000,"") ->  | S4: 0 | T4: 0 | U4: 1899-12-30 | X4: =Tabel_DDBU_Data3[Aktiv_status] &"-" & Tabel_DDBU_Data3[Licenskort] -> 0-0 | Y4: =IF(Tabel_DDBU_Data3[Kegle]+Tabel_DDBU_Data3[Caram_3B]+Tabel_DDBU_Data3[Caram_1B]+Tabel_DDBU_Data3[Caram_Fri]>0,1,0) -> 0
A5: 100004 | B5: Thomas | C5: Hansen | D5: =Tabel_DDBU_Data3[Fornavn]&" "&Tabel_DDBU_Data3[Efternavn] -> Thomas Hansen | E5: 0 | G5: =VALUE(Tabel_DDBU_Data3[Klubnr]) -> 0 | J5: =IF(Tabel_DDBU_Data3[Kegle]>0,Tabel_DDBU_Data3[Kegle]/1000,"") ->  | L5: =IF(Tabel_DDBU_Data3[Caram_3B]>0,Tabel_DDBU_Data3[Caram_3B]/1000,"") ->  | N5: =IF(Tabel_DDBU_Data3[Caram_1B]>0,Tabel_DDBU_Data3[Caram_1B]/1000,"") ->  | P5: =IF(Tabel_DDBU_Data3[Caram_Fri]>0,Tabel_DDBU_Data3[Caram_Fri]/1000,"") ->  | S5: 0 | T5: 0 | U5: 1899-12-30 | X5: =Tabel_DDBU_Data3[Aktiv_status] &"-" & Tabel_DDBU_Data3[Licenskort] -> 0-0 | Y5: =IF(Tabel_DDBU_Data3[Kegle]+Tabel_DDBU_Data3[Caram_3B]+Tabel_DDBU_Data3[Caram_1B]+Tabel_DDBU_Data3[Caram_Fri]>0,1,0) -> 0
A6: 100005 | B6: Michael | C6: Kofoed | D6: =Tabel_DDBU_Data3[Fornavn]&" "&Tabel_DDBU_Data3[Efternavn] -> Michael Kofoed | E6: 0 | G6: =VALUE(Tabel_DDBU_Data3[Klubnr]) -> 0 | J6: =IF(Tabel_DDBU_Data3[Kegle]>0,Tabel_DDBU_Data3[Kegle]/1000,"") ->  | L6: =IF(Tabel_DDBU_Data3[Caram_3B]>0,Tabel_DDBU_Data3[Caram_3B]/1000,"") ->  | N6: =IF(Tabel_DDBU_Data3[Caram_1B]>0,Tabel_DDBU_Data3[Caram_1B]/1000,"") ->  | P6: =IF(Tabel_DDBU_Data3[Caram_Fri]>0,Tabel_DDBU_Data3[Caram_Fri]/1000,"") ->  | S6: 0 | T6: 0 | U6: 1899-12-30 | X6: =Tabel_DDBU_Data3[Aktiv_status] &"-" & Tabel_DDBU_Data3[Licenskort] -> 0-0 | Y6: =IF(Tabel_DDBU_Data3[Kegle]+Tabel_DDBU_Data3[Caram_3B]+Tabel_DDBU_Data3[Caram_1B]+Tabel_DDBU_Data3[Caram_Fri]>0,1,0) -> 0
A7: 100007 | B7: Jesper | C7: Larsen | D7: =Tabel_DDBU_Data3[Fornavn]&" "&Tabel_DDBU_Data3[Efternavn] -> Jesper Larsen | E7: 0 | G7: =VALUE(Tabel_DDBU_Data3[Klubnr]) -> 0 | J7: =IF(Tabel_DDBU_Data3[Kegle]>0,Tabel_DDBU_Data3[Kegle]/1000,"") ->  | L7: =IF(Tabel_DDBU_Data3[Caram_3B]>0,Tabel_DDBU_Data3[Caram_3B]/1000,"") ->  | N7: =IF(Tabel_DDBU_Data3[Caram_1B]>0,Tabel_DDBU_Data3[Caram_1B]/1000,"") ->  | P7: =IF(Tabel_DDBU_Data3[Caram_Fri]>0,Tabel_DDBU_Data3[Caram_Fri]/1000,"") ->  | S7: 0 | T7: 0 | U7: 1899-12-30 | X7: =Tabel_DDBU_Data3[Aktiv_status] &"-" & Tabel_DDBU_Data3[Licenskort] -> 0-0 | Y7: =IF(Tabel_DDBU_Data3[Kegle]+Tabel_DDBU_Data3[Caram_3B]+Tabel_DDBU_Data3[Caram_1B]+Tabel_DDBU_Data3[Caram_Fri]>0,1,0) -> 0
A8: 100008 | B8: Tommy | C8: Nielsen | D8: =Tabel_DDBU_Data3[Fornavn]&" "&Tabel_DDBU_Data3[Efternavn] -> Tommy Nielsen | E8: 0 | G8: =VALUE(Tabel_DDBU_Data3[Klubnr]) -> 0 | J8: =IF(Tabel_DDBU_Data3[Kegle]>0,Tabel_DDBU_Data3[Kegle]/1000,"") ->  | L8: =IF(Tabel_DDBU_Data3[Caram_3B]>0,Tabel_DDBU_Data3[Caram_3B]/1000,"") ->  | N8: =IF(Tabel_DDBU_Data3[Caram_1B]>0,Tabel_DDBU_Data3[Caram_1B]/1000,"") ->  | P8: =IF(Tabel_DDBU_Data3[Caram_Fri]>0,Tabel_DDBU_Data3[Caram_Fri]/1000,"") ->  | S8: 0 | T8: 0 | U8: 1899-12-30 | X8: =Tabel_DDBU_Data3[Aktiv_status] &"-" & Tabel_DDBU_Data3[Licenskort] -> 0-0 | Y8: =IF(Tabel_DDBU_Data3[Kegle]+Tabel_DDBU_Data3[Caram_3B]+Tabel_DDBU_Data3[Caram_1B]+Tabel_DDBU_Data3[Caram_Fri]>0,1,0) -> 0
A9: 100009 | B9: Karsten | C9: Lieberkind | D9: =Tabel_DDBU_Data3[Fornavn]&" "&Tabel_DDBU_Data3[Efternavn] -> Karsten Lieberkind | E9: 0 | G9: =VALUE(Tabel_DDBU_Data3[Klubnr]) -> 0 | J9: =IF(Tabel_DDBU_Data3[Kegle]>0,Tabel_DDBU_Data3[Kegle]/1000,"") ->  | L9: =IF(Tabel_DDBU_Data3[Caram_3B]>0,Tabel_DDBU_Data3[Caram_3B]/1000,"") ->  | N9: =IF(Tabel_DDBU_Data3[Caram_1B]>0,Tabel_DDBU_Data3[Caram_1B]/1000,"") ->  | P9: =IF(Tabel_DDBU_Data3[Caram_Fri]>0,Tabel_DDBU_Data3[Caram_Fri]/1000,"") ->  | S9: 0 | T9: 0 | U9: 1899-12-30 | X9: =Tabel_DDBU_Data3[Aktiv_status] &"-" & Tabel_DDBU_Data3[Licenskort] -> 0-0 | Y9: =IF(Tabel_DDBU_Data3[Kegle]+Tabel_DDBU_Data3[Caram_3B]+Tabel_DDBU_Data3[Caram_1B]+Tabel_DDBU_Data3[Caram_Fri]>0,1,0) -> 0
A10: 100010 | B10: Michael | C10: Mikkelsen | D10: =Tabel_DDBU_Data3[Fornavn]&" "&Tabel_DDBU_Data3[Efternavn] -> Michael Mikkelsen | E10: 0 | G10: =VALUE(Tabel_DDBU_Data3[Klubnr]) -> 0 | J10: =IF(Tabel_DDBU_Data3[Kegle]>0,Tabel_DDBU_Data3[Kegle]/1000,"") ->  | L10: =IF(Tabel_DDBU_Data3[Caram_3B]>0,Tabel_DDBU_Data3[Caram_3B]/1000,"") ->  | N10: =IF(Tabel_DDBU_Data3[Caram_1B]>0,Tabel_DDBU_Data3[Caram_1B]/1000,"") ->  | P10: =IF(Tabel_DDBU_Data3[Caram_Fri]>0,Tabel_DDBU_Data3[Caram_Fri]/1000,"") ->  | S10: 0 | T10: 0 | U10: 1899-12-30 | X10: =Tabel_DDBU_Data3[Aktiv_status] &"-" & Tabel_DDBU_Data3[Licenskort] -> 0-0 | Y10: =IF(Tabel_DDBU_Data3[Kegle]+Tabel_DDBU_Data3[Caram_3B]+Tabel_DDBU_Data3[Caram_1B]+Tabel_DDBU_Data3[Caram_Fri]>0,1,0) -> 0
A11: 100011 | B11: Thomas | C11: Skrøder | D11: =Tabel_DDBU_Data3[Fornavn]&" "&Tabel_DDBU_Data3[Efternavn] -> Thomas Skrøder | E11: 0 | G11: =VALUE(Tabel_DDBU_Data3[Klubnr]) -> 0 | J11: =IF(Tabel_DDBU_Data3[Kegle]>0,Tabel_DDBU_Data3[Kegle]/1000,"") ->  | L11: =IF(Tabel_DDBU_Data3[Caram_3B]>0,Tabel_DDBU_Data3[Caram_3B]/1000,"") ->  | N11: =IF(Tabel_DDBU_Data3[Caram_1B]>0,Tabel_DDBU_Data3[Caram_1B]/1000,"") ->  | P11: =IF(Tabel_DDBU_Data3[Caram_Fri]>0,Tabel_DDBU_Data3[Caram_Fri]/1000,"") ->  | S11: 0 | T11: 0 | U11: 1899-12-30 | X11: =Tabel_DDBU_Data3[Aktiv_status] &"-" & Tabel_DDBU_Data3[Licenskort] -> 0-0 | Y11: =IF(Tabel_DDBU_Data3[Kegle]+Tabel_DDBU_Data3[Caram_3B]+Tabel_DDBU_Data3[Caram_1B]+Tabel_DDBU_Data3[Caram_Fri]>0,1,0) -> 0
A12: 100012 | B12: Dennis | C12: Olsen | D12: =Tabel_DDBU_Data3[Fornavn]&" "&Tabel_DDBU_Data3[Efternavn] -> Dennis Olsen | E12: 0 | G12: =VALUE(Tabel_DDBU_Data3[Klubnr]) -> 0 | J12: =IF(Tabel_DDBU_Data3[Kegle]>0,Tabel_DDBU_Data3[Kegle]/1000,"") ->  | L12: =IF(Tabel_DDBU_Data3[Caram_3B]>0,Tabel_DDBU_Data3[Caram_3B]/1000,"") ->  | N12: =IF(Tabel_DDBU_Data3[Caram_1B]>0,Tabel_DDBU_Data3[Caram_1B]/1000,"") ->  | P12: =IF(Tabel_DDBU_Data3[Caram_Fri]>0,Tabel_DDBU_Data3[Caram_Fri]/1000,"") ->  | S12: 0 | T12: 0 | U12: 1899-12-30 | X12: =Tabel_DDBU_Data3[Aktiv_status] &"-" & Tabel_DDBU_Data3[Licenskort] -> 0-0 | Y12: =IF(Tabel_DDBU_Data3[Kegle]+Tabel_DDBU_Data3[Caram_3B]+Tabel_DDBU_Data3[Caram_1B]+Tabel_DDBU_Data3[Caram_Fri]>0,1,0) -> 0
A13: 100013 | B13: Jon | C13: Blaust | D13: =Tabel_DDBU_Data3[Fornavn]&" "&Tabel_DDBU_Data3[Efternavn] -> Jon Blaust | E13: 0 | G13: =VALUE(Tabel_DDBU_Data3[Klubnr]) -> 0 | J13: =IF(Tabel_DDBU_Data3[Kegle]>0,Tabel_DDBU_Data3[Kegle]/1000,"") ->  | L13: =IF(Tabel_DDBU_Data3[Caram_3B]>0,Tabel_DDBU_Data3[Caram_3B]/1000,"") ->  | N13: =IF(Tabel_DDBU_Data3[Caram_1B]>0,Tabel_DDBU_Data3[Caram_1B]/1000,"") ->  | P13: =IF(Tabel_DDBU_Data3[Caram_Fri]>0,Tabel_DDBU_Data3[Caram_Fri]/1000,"") ->  | S13: 0 | T13: 0 | U13: 1899-12-30 | X13: =Tabel_DDBU_Data3[Aktiv_status] &"-" & Tabel_DDBU_Data3[Licenskort] -> 0-0 | Y13: =IF(Tabel_DDBU_Data3[Kegle]+Tabel_DDBU_Data3[Caram_3B]+Tabel_DDBU_Data3[Caram_1B]+Tabel_DDBU_Data3[Caram_Fri]>0,1,0) -> 0
A14: 100014 | B14: Søren | C14: Andersson | D14: =Tabel_DDBU_Data3[Fornavn]&" "&Tabel_DDBU_Data3[Efternavn] -> Søren Andersson | E14: 0 | G14: =VALUE(Tabel_DDBU_Data3[Klubnr]) -> 0 | J14: =IF(Tabel_DDBU_Data3[Kegle]>0,Tabel_DDBU_Data3[Kegle]/1000,"") ->  | L14: =IF(Tabel_DDBU_Data3[Caram_3B]>0,Tabel_DDBU_Data3[Caram_3B]/1000,"") ->  | N14: =IF(Tabel_DDBU_Data3[Caram_1B]>0,Tabel_DDBU_Data3[Caram_1B]/1000,"") ->  | P14: =IF(Tabel_DDBU_Data3[Caram_Fri]>0,Tabel_DDBU_Data3[Caram_Fri]/1000,"") ->  | S14: 0 | T14: 0 | U14: 1899-12-30 | X14: =Tabel_DDBU_Data3[Aktiv_status] &"-" & Tabel_DDBU_Data3[Licenskort] -> 0-0 | Y14: =IF(Tabel_DDBU_Data3[Kegle]+Tabel_DDBU_Data3[Caram_3B]+Tabel_DDBU_Data3[Caram_1B]+Tabel_DDBU_Data3[Caram_Fri]>0,1,0) -> 0
A15: 100015 | B15: Tejs | C15: Lund Tafdrup | D15: =Tabel_DDBU_Data3[Fornavn]&" "&Tabel_DDBU_Data3[Efternavn] -> Tejs Lund Tafdrup | E15: 0 | G15: =VALUE(Tabel_DDBU_Data3[Klubnr]) -> 0 | J15: =IF(Tabel_DDBU_Data3[Kegle]>0,Tabel_DDBU_Data3[Kegle]/1000,"") ->  | L15: =IF(Tabel_DDBU_Data3[Caram_3B]>0,Tabel_DDBU_Data3[Caram_3B]/1000,"") ->  | N15: =IF(Tabel_DDBU_Data3[Caram_1B]>0,Tabel_DDBU_Data3[Caram_1B]/1000,"") ->  | P15: =IF(Tabel_DDBU_Data3[Caram_Fri]>0,Tabel_DDBU_Data3[Caram_Fri]/1000,"") ->  | S15: 0 | T15: 0 | U15: 1899-12-30 | X15: =Tabel_DDBU_Data3[Aktiv_status] &"-" & Tabel_DDBU_Data3[Licenskort] -> 0-0 | Y15: =IF(Tabel_DDBU_Data3[Kegle]+Tabel_DDBU_Data3[Caram_3B]+Tabel_DDBU_Data3[Caram_1B]+Tabel_DDBU_Data3[Caram_Fri]>0,1,0) -> 0
A16: 100016 | B16: Jannik | C16: Iversen | D16: =Tabel_DDBU_Data3[Fornavn]&" "&Tabel_DDBU_Data3[Efternavn] -> Jannik Iversen | E16: 0 | G16: =VALUE(Tabel_DDBU_Data3[Klubnr]) -> 0 | J16: =IF(Tabel_DDBU_Data3[Kegle]>0,Tabel_DDBU_Data3[Kegle]/1000,"") ->  | L16: =IF(Tabel_DDBU_Data3[Caram_3B]>0,Tabel_DDBU_Data3[Caram_3B]/1000,"") ->  | N16: =IF(Tabel_DDBU_Data3[Caram_1B]>0,Tabel_DDBU_Data3[Caram_1B]/1000,"") ->  | P16: =IF(Tabel_DDBU_Data3[Caram_Fri]>0,Tabel_DDBU_Data3[Caram_Fri]/1000,"") ->  | S16: 0 | T16: 0 | U16: 1899-12-30 | X16: =Tabel_DDBU_Data3[Aktiv_status] &"-" & Tabel_DDBU_Data3[Licenskort] -> 0-0 | Y16: =IF(Tabel_DDBU_Data3[Kegle]+Tabel_DDBU_Data3[Caram_3B]+Tabel_DDBU_Data3[Caram_1B]+Tabel_DDBU_Data3[Caram_Fri]>0,1,0) -> 0
A17: 100017 | B17: Tom | C17: Tordrup | D17: =Tabel_DDBU_Data3[Fornavn]&" "&Tabel_DDBU_Data3[Efternavn] -> Tom Tordrup | E17: 0 | G17: =VALUE(Tabel_DDBU_Data3[Klubnr]) -> 0 | J17: =IF(Tabel_DDBU_Data3[Kegle]>0,Tabel_DDBU_Data3[Kegle]/1000,"") ->  | L17: =IF(Tabel_DDBU_Data3[Caram_3B]>0,Tabel_DDBU_Data3[Caram_3B]/1000,"") ->  | N17: =IF(Tabel_DDBU_Data3[Caram_1B]>0,Tabel_DDBU_Data3[Caram_1B]/1000,"") ->  | P17: =IF(Tabel_DDBU_Data3[Caram_Fri]>0,Tabel_DDBU_Data3[Caram_Fri]/1000,"") ->  | S17: 0 | T17: 0 | U17: 1899-12-30 | X17: =Tabel_DDBU_Data3[Aktiv_status] &"-" & Tabel_DDBU_Data3[Licenskort] -> 0-0 | Y17: =IF(Tabel_DDBU_Data3[Kegle]+Tabel_DDBU_Data3[Caram_3B]+Tabel_DDBU_Data3[Caram_1B]+Tabel_DDBU_Data3[Caram_Fri]>0,1,0) -> 0
A18: 100018 | B18: Henrik | C18: Hansen | D18: =Tabel_DDBU_Data3[Fornavn]&" "&Tabel_DDBU_Data3[Efternavn] -> Henrik Hansen | E18: 0 | G18: =VALUE(Tabel_DDBU_Data3[Klubnr]) -> 0 | J18: =IF(Tabel_DDBU_Data3[Kegle]>0,Tabel_DDBU_Data3[Kegle]/1000,"") ->  | L18: =IF(Tabel_DDBU_Data3[Caram_3B]>0,Tabel_DDBU_Data3[Caram_3B]/1000,"") ->  | N18: =IF(Tabel_DDBU_Data3[Caram_1B]>0,Tabel_DDBU_Data3[Caram_1B]/1000,"") ->  | P18: =IF(Tabel_DDBU_Data3[Caram_Fri]>0,Tabel_DDBU_Data3[Caram_Fri]/1000,"") ->  | S18: 0 | T18: 0 | U18: 1899-12-30 | X18: =Tabel_DDBU_Data3[Aktiv_status] &"-" & Tabel_DDBU_Data3[Licenskort] -> 0-0 | Y18: =IF(Tabel_DDBU_Data3[Kegle]+Tabel_DDBU_Data3[Caram_3B]+Tabel_DDBU_Data3[Caram_1B]+Tabel_DDBU_Data3[Caram_Fri]>0,1,0) -> 0
A19: 100019 | B19: Helle | C19: L.Holm | D19: =Tabel_DDBU_Data3[Fornavn]&" "&Tabel_DDBU_Data3[Efternavn] -> Helle L.Holm | E19: 0 | G19: =VALUE(Tabel_DDBU_Data3[Klubnr]) -> 0 | J19: =IF(Tabel_DDBU_Data3[Kegle]>0,Tabel_DDBU_Data3[Kegle]/1000,"") ->  | L19: =IF(Tabel_DDBU_Data3[Caram_3B]>0,Tabel_DDBU_Data3[Caram_3B]/1000,"") ->  | N19: =IF(Tabel_DDBU_Data3[Caram_1B]>0,Tabel_DDBU_Data3[Caram_1B]/1000,"") ->  | P19: =IF(Tabel_DDBU_Data3[Caram_Fri]>0,Tabel_DDBU_Data3[Caram_Fri]/1000,"") ->  | S19: 0 | T19: 0 | U19: 1899-12-30 | X19: =Tabel_DDBU_Data3[Aktiv_status] &"-" & Tabel_DDBU_Data3[Licenskort] -> 0-0 | Y19: =IF(Tabel_DDBU_Data3[Kegle]+Tabel_DDBU_Data3[Caram_3B]+Tabel_DDBU_Data3[Caram_1B]+Tabel_DDBU_Data3[Caram_Fri]>0,1,0) -> 0
A20: 100020 | B20: Lars | C20: Hansen | D20: =Tabel_DDBU_Data3[Fornavn]&" "&Tabel_DDBU_Data3[Efternavn] -> Lars Hansen | E20: 0 | G20: =VALUE(Tabel_DDBU_Data3[Klubnr]) -> 0 | J20: =IF(Tabel_DDBU_Data3[Kegle]>0,Tabel_DDBU_Data3[Kegle]/1000,"") ->  | L20: =IF(Tabel_DDBU_Data3[Caram_3B]>0,Tabel_DDBU_Data3[Caram_3B]/1000,"") ->  | N20: =IF(Tabel_DDBU_Data3[Caram_1B]>0,Tabel_DDBU_Data3[Caram_1B]/1000,"") ->  | P20: =IF(Tabel_DDBU_Data3[Caram_Fri]>0,Tabel_DDBU_Data3[Caram_Fri]/1000,"") ->  | S20: 0 | T20: 0 | U20: 1899-12-30 | X20: =Tabel_DDBU_Data3[Aktiv_status] &"-" & Tabel_DDBU_Data3[Licenskort] -> 0-0 | Y20: =IF(Tabel_DDBU_Data3[Kegle]+Tabel_DDBU_Data3[Caram_3B]+Tabel_DDBU_Data3[Caram_1B]+Tabel_DDBU_Data3[Caram_Fri]>0,1,0) -> 0
A21: 100021 | B21: Hans | C21: C. Matthiesen-Juhl | D21: =Tabel_DDBU_Data3[Fornavn]&" "&Tabel_DDBU_Data3[Efternavn] -> Hans C. Matthiesen-Juhl | E21: 0 | G21: =VALUE(Tabel_DDBU_Data3[Klubnr]) -> 0 | J21: =IF(Tabel_DDBU_Data3[Kegle]>0,Tabel_DDBU_Data3[Kegle]/1000,"") ->  | L21: =IF(Tabel_DDBU_Data3[Caram_3B]>0,Tabel_DDBU_Data3[Caram_3B]/1000,"") ->  | N21: =IF(Tabel_DDBU_Data3[Caram_1B]>0,Tabel_DDBU_Data3[Caram_1B]/1000,"") ->  | P21: =IF(Tabel_DDBU_Data3[Caram_Fri]>0,Tabel_DDBU_Data3[Caram_Fri]/1000,"") ->  | S21: 0 | T21: 0 | U21: 1899-12-30 | X21: =Tabel_DDBU_Data3[Aktiv_status] &"-" & Tabel_DDBU_Data3[Licenskort] -> 0-0 | Y21: =IF(Tabel_DDBU_Data3[Kegle]+Tabel_DDBU_Data3[Caram_3B]+Tabel_DDBU_Data3[Caram_1B]+Tabel_DDBU_Data3[Caram_Fri]>0,1,0) -> 0
A22: 100022 | B22: Thomas | C22: B.Hansen | D22: =Tabel_DDBU_Data3[Fornavn]&" "&Tabel_DDBU_Data3[Efternavn] -> Thomas B.Hansen | E22: 0 | G22: =VALUE(Tabel_DDBU_Data3[Klubnr]) -> 0 | J22: =IF(Tabel_DDBU_Data3[Kegle]>0,Tabel_DDBU_Data3[Kegle]/1000,"") ->  | L22: =IF(Tabel_DDBU_Data3[Caram_3B]>0,Tabel_DDBU_Data3[Caram_3B]/1000,"") ->  | N22: =IF(Tabel_DDBU_Data3[Caram_1B]>0,Tabel_DDBU_Data3[Caram_1B]/1000,"") ->  | P22: =IF(Tabel_DDBU_Data3[Caram_Fri]>0,Tabel_DDBU_Data3[Caram_Fri]/1000,"") ->  | S22: 0 | T22: 0 | U22: 1899-12-30 | X22: =Tabel_DDBU_Data3[Aktiv_status] &"-" & Tabel_DDBU_Data3[Licenskort] -> 0-0 | Y22: =IF(Tabel_DDBU_Data3[Kegle]+Tabel_DDBU_Data3[Caram_3B]+Tabel_DDBU_Data3[Caram_1B]+Tabel_DDBU_Data3[Caram_Fri]>0,1,0) -> 0
A23: 100023 | B23: Carsten | C23: Carnett | D23: =Tabel_DDBU_Data3[Fornavn]&" "&Tabel_DDBU_Data3[Efternavn] -> Carsten Carnett | E23: 0 | G23: =VALUE(Tabel_DDBU_Data3[Klubnr]) -> 0 | J23: =IF(Tabel_DDBU_Data3[Kegle]>0,Tabel_DDBU_Data3[Kegle]/1000,"") ->  | L23: =IF(Tabel_DDBU_Data3[Caram_3B]>0,Tabel_DDBU_Data3[Caram_3B]/1000,"") ->  | N23: =IF(Tabel_DDBU_Data3[Caram_1B]>0,Tabel_DDBU_Data3[Caram_1B]/1000,"") ->  | P23: =IF(Tabel_DDBU_Data3[Caram_Fri]>0,Tabel_DDBU_Data3[Caram_Fri]/1000,"") ->  | S23: 0 | T23: 0 | U23: 1899-12-30 | X23: =Tabel_DDBU_Data3[Aktiv_status] &"-" & Tabel_DDBU_Data3[Licenskort] -> 0-0 | Y23: =IF(Tabel_DDBU_Data3[Kegle]+Tabel_DDBU_Data3[Caram_3B]+Tabel_DDBU_Data3[Caram_1B]+Tabel_DDBU_Data3[Caram_Fri]>0,1,0) -> 0
A24: 100024 | B24: Johnny | C24: Løf | D24: =Tabel_DDBU_Data3[Fornavn]&" "&Tabel_DDBU_Data3[Efternavn] -> Johnny Løf | E24: 0 | G24: =VALUE(Tabel_DDBU_Data3[Klubnr]) -> 0 | J24: =IF(Tabel_DDBU_Data3[Kegle]>0,Tabel_DDBU_Data3[Kegle]/1000,"") ->  | L24: =IF(Tabel_DDBU_Data3[Caram_3B]>0,Tabel_DDBU_Data3[Caram_3B]/1000,"") ->  | N24: =IF(Tabel_DDBU_Data3[Caram_1B]>0,Tabel_DDBU_Data3[Caram_1B]/1000,"") ->  | P24: =IF(Tabel_DDBU_Data3[Caram_Fri]>0,Tabel_DDBU_Data3[Caram_Fri]/1000,"") ->  | S24: 0 | T24: 0 | U24: 1899-12-30 | X24: =Tabel_DDBU_Data3[Aktiv_status] &"-" & Tabel_DDBU_Data3[Licenskort] -> 0-0 | Y24: =IF(Tabel_DDBU_Data3[Kegle]+Tabel_DDBU_Data3[Caram_3B]+Tabel_DDBU_Data3[Caram_1B]+Tabel_DDBU_Data3[Caram_Fri]>0,1,0) -> 0
A25: 100028 | B25: Claus | C25: Hansen | D25: =Tabel_DDBU_Data3[Fornavn]&" "&Tabel_DDBU_Data3[Efternavn] -> Claus Hansen | E25: 0 | G25: =VALUE(Tabel_DDBU_Data3[Klubnr]) -> 0 | J25: =IF(Tabel_DDBU_Data3[Kegle]>0,Tabel_DDBU_Data3[Kegle]/1000,"") ->  | L25: =IF(Tabel_DDBU_Data3[Caram_3B]>0,Tabel_DDBU_Data3[Caram_3B]/1000,"") ->  | N25: =IF(Tabel_DDBU_Data3[Caram_1B]>0,Tabel_DDBU_Data3[Caram_1B]/1000,"") ->  | P25: =IF(Tabel_DDBU_Data3[Caram_Fri]>0,Tabel_DDBU_Data3[Caram_Fri]/1000,"") ->  | S25: 0 | T25: 0 | U25: 1899-12-30 | X25: =Tabel_DDBU_Data3[Aktiv_status] &"-" & Tabel_DDBU_Data3[Licenskort] -> 0-0 | Y25: =IF(Tabel_DDBU_Data3[Kegle]+Tabel_DDBU_Data3[Caram_3B]+Tabel_DDBU_Data3[Caram_1B]+Tabel_DDBU_Data3[Caram_Fri]>0,1,0) -> 0
A26: 100030 | B26: Flemming | C26: Pedersen | D26: =Tabel_DDBU_Data3[Fornavn]&" "&Tabel_DDBU_Data3[Efternavn] -> Flemming Pedersen | E26: 0 | G26: =VALUE(Tabel_DDBU_Data3[Klubnr]) -> 0 | J26: =IF(Tabel_DDBU_Data3[Kegle]>0,Tabel_DDBU_Data3[Kegle]/1000,"") ->  | L26: =IF(Tabel_DDBU_Data3[Caram_3B]>0,Tabel_DDBU_Data3[Caram_3B]/1000,"") ->  | N26: =IF(Tabel_DDBU_Data3[Caram_1B]>0,Tabel_DDBU_Data3[Caram_1B]/1000,"") ->  | P26: =IF(Tabel_DDBU_Data3[Caram_Fri]>0,Tabel_DDBU_Data3[Caram_Fri]/1000,"") ->  | S26: 0 | T26: 0 | U26: 1899-12-30 | X26: =Tabel_DDBU_Data3[Aktiv_status] &"-" & Tabel_DDBU_Data3[Licenskort] -> 0-0 | Y26: =IF(Tabel_DDBU_Data3[Kegle]+Tabel_DDBU_Data3[Caram_3B]+Tabel_DDBU_Data3[Caram_1B]+Tabel_DDBU_Data3[Caram_Fri]>0,1,0) -> 0
A27: 100031 | B27: Anton | C27: Olsen | D27: =Tabel_DDBU_Data3[Fornavn]&" "&Tabel_DDBU_Data3[Efternavn] -> Anton Olsen | E27: 0 | G27: =VALUE(Tabel_DDBU_Data3[Klubnr]) -> 0 | J27: =IF(Tabel_DDBU_Data3[Kegle]>0,Tabel_DDBU_Data3[Kegle]/1000,"") ->  | L27: =IF(Tabel_DDBU_Data3[Caram_3B]>0,Tabel_DDBU_Data3[Caram_3B]/1000,"") ->  | N27: =IF(Tabel_DDBU_Data3[Caram_1B]>0,Tabel_DDBU_Data3[Caram_1B]/1000,"") ->  | P27: =IF(Tabel_DDBU_Data3[Caram_Fri]>0,Tabel_DDBU_Data3[Caram_Fri]/1000,"") ->  | S27: 0 | T27: 0 | U27: 1899-12-30 | X27: =Tabel_DDBU_Data3[Aktiv_status] &"-" & Tabel_DDBU_Data3[Licenskort] -> 0-0 | Y27: =IF(Tabel_DDBU_Data3[Kegle]+Tabel_DDBU_Data3[Caram_3B]+Tabel_DDBU_Data3[Caram_1B]+Tabel_DDBU_Data3[Caram_Fri]>0,1,0) -> 0
A28: 100032 | B28: Lasse | C28: Sørensen | D28: =Tabel_DDBU_Data3[Fornavn]&" "&Tabel_DDBU_Data3[Efternavn] -> Lasse Sørensen | E28: 0 | G28: =VALUE(Tabel_DDBU_Data3[Klubnr]) -> 0 | J28: =IF(Tabel_DDBU_Data3[Kegle]>0,Tabel_DDBU_Data3[Kegle]/1000,"") ->  | L28: =IF(Tabel_DDBU_Data3[Caram_3B]>0,Tabel_DDBU_Data3[Caram_3B]/1000,"") ->  | N28: =IF(Tabel_DDBU_Data3[Caram_1B]>0,Tabel_DDBU_Data3[Caram_1B]/1000,"") ->  | P28: =IF(Tabel_DDBU_Data3[Caram_Fri]>0,Tabel_DDBU_Data3[Caram_Fri]/1000,"") ->  | S28: 0 | T28: 0 | U28: 1899-12-30 | X28: =Tabel_DDBU_Data3[Aktiv_status] &"-" & Tabel_DDBU_Data3[Licenskort] -> 0-0 | Y28: =IF(Tabel_DDBU_Data3[Kegle]+Tabel_DDBU_Data3[Caram_3B]+Tabel_DDBU_Data3[Caram_1B]+Tabel_DDBU_Data3[Caram_Fri]>0,1,0) -> 0
A29: 100033 | B29: Børge | C29: Hansen | D29: =Tabel_DDBU_Data3[Fornavn]&" "&Tabel_DDBU_Data3[Efternavn] -> Børge Hansen | E29: 0 | G29: =VALUE(Tabel_DDBU_Data3[Klubnr]) -> 0 | J29: =IF(Tabel_DDBU_Data3[Kegle]>0,Tabel_DDBU_Data3[Kegle]/1000,"") ->  | L29: =IF(Tabel_DDBU_Data3[Caram_3B]>0,Tabel_DDBU_Data3[Caram_3B]/1000,"") ->  | N29: =IF(Tabel_DDBU_Data3[Caram_1B]>0,Tabel_DDBU_Data3[Caram_1B]/1000,"") ->  | P29: =IF(Tabel_DDBU_Data3[Caram_Fri]>0,Tabel_DDBU_Data3[Caram_Fri]/1000,"") ->  | S29: 0 | T29: 0 | U29: 1899-12-30 | X29: =Tabel_DDBU_Data3[Aktiv_status] &"-" & Tabel_DDBU_Data3[Licenskort] -> 0-0 | Y29: =IF(Tabel_DDBU_Data3[Kegle]+Tabel_DDBU_Data3[Caram_3B]+Tabel_DDBU_Data3[Caram_1B]+Tabel_DDBU_Data3[Caram_Fri]>0,1,0) -> 0
A30: 100034 | B30: Per | C30: Andersen | D30: =Tabel_DDBU_Data3[Fornavn]&" "&Tabel_DDBU_Data3[Efternavn] -> Per Andersen | E30: 0 | G30: =VALUE(Tabel_DDBU_Data3[Klubnr]) -> 0 | J30: =IF(Tabel_DDBU_Data3[Kegle]>0,Tabel_DDBU_Data3[Kegle]/1000,"") ->  | L30: =IF(Tabel_DDBU_Data3[Caram_3B]>0,Tabel_DDBU_Data3[Caram_3B]/1000,"") ->  | N30: =IF(Tabel_DDBU_Data3[Caram_1B]>0,Tabel_DDBU_Data3[Caram_1B]/1000,"") ->  | P30: =IF(Tabel_DDBU_Data3[Caram_Fri]>0,Tabel_DDBU_Data3[Caram_Fri]/1000,"") ->  | S30: 0 | T30: 0 | U30: 1899-12-30 | X30: =Tabel_DDBU_Data3[Aktiv_status] &"-" & Tabel_DDBU_Data3[Licenskort] -> 0-0 | Y30: =IF(Tabel_DDBU_Data3[Kegle]+Tabel_DDBU_Data3[Caram_3B]+Tabel_DDBU_Data3[Caram_1B]+Tabel_DDBU_Data3[Caram_Fri]>0,1,0) -> 0
A31: 100035 | B31: Steen | C31: Johansen | D31: =Tabel_DDBU_Data3[Fornavn]&" "&Tabel_DDBU_Data3[Efternavn] -> Steen Johansen | E31: 0 | G31: =VALUE(Tabel_DDBU_Data3[Klubnr]) -> 0 | J31: =IF(Tabel_DDBU_Data3[Kegle]>0,Tabel_DDBU_Data3[Kegle]/1000,"") ->  | L31: =IF(Tabel_DDBU_Data3[Caram_3B]>0,Tabel_DDBU_Data3[Caram_3B]/1000,"") ->  | N31: =IF(Tabel_DDBU_Data3[Caram_1B]>0,Tabel_DDBU_Data3[Caram_1B]/1000,"") ->  | P31: =IF(Tabel_DDBU_Data3[Caram_Fri]>0,Tabel_DDBU_Data3[Caram_Fri]/1000,"") ->  | S31: 0 | T31: 0 | U31: 1899-12-30 | X31: =Tabel_DDBU_Data3[Aktiv_status] &"-" & Tabel_DDBU_Data3[Licenskort] -> 0-0 | Y31: =IF(Tabel_DDBU_Data3[Kegle]+Tabel_DDBU_Data3[Caram_3B]+Tabel_DDBU_Data3[Caram_1B]+Tabel_DDBU_Data3[Caram_Fri]>0,1,0) -> 0
A32: 100037 | B32: Michael | C32: Olsen | D32: =Tabel_DDBU_Data3[Fornavn]&" "&Tabel_DDBU_Data3[Efternavn] -> Michael Olsen | E32: 0 | G32: =VALUE(Tabel_DDBU_Data3[Klubnr]) -> 0 | J32: =IF(Tabel_DDBU_Data3[Kegle]>0,Tabel_DDBU_Data3[Kegle]/1000,"") ->  | L32: =IF(Tabel_DDBU_Data3[Caram_3B]>0,Tabel_DDBU_Data3[Caram_3B]/1000,"") ->  | N32: =IF(Tabel_DDBU_Data3[Caram_1B]>0,Tabel_DDBU_Data3[Caram_1B]/1000,"") ->  | P32: =IF(Tabel_DDBU_Data3[Caram_Fri]>0,Tabel_DDBU_Data3[Caram_Fri]/1000,"") ->  | S32: 0 | T32: 0 | U32: 1899-12-30 | X32: =Tabel_DDBU_Data3[Aktiv_status] &"-" & Tabel_DDBU_Data3[Licenskort] -> 0-0 | Y32: =IF(Tabel_DDBU_Data3[Kegle]+Tabel_DDBU_Data3[Caram_3B]+Tabel_DDBU_Data3[Caram_1B]+Tabel_DDBU_Data3[Caram_Fri]>0,1,0) -> 0
A33: 100038 | B33: Vivi | C33: Boie | D33: =Tabel_DDBU_Data3[Fornavn]&" "&Tabel_DDBU_Data3[Efternavn] -> Vivi Boie | E33: 0 | G33: =VALUE(Tabel_DDBU_Data3[Klubnr]) -> 0 | J33: =IF(Tabel_DDBU_Data3[Kegle]>0,Tabel_DDBU_Data3[Kegle]/1000,"") ->  | L33: =IF(Tabel_DDBU_Data3[Caram_3B]>0,Tabel_DDBU_Data3[Caram_3B]/1000,"") ->  | N33: =IF(Tabel_DDBU_Data3[Caram_1B]>0,Tabel_DDBU_Data3[Caram_1B]/1000,"") ->  | P33: =IF(Tabel_DDBU_Data3[Caram_Fri]>0,Tabel_DDBU_Data3[Caram_Fri]/1000,"") ->  | S33: 0 | T33: 0 | U33: 1899-12-30 | X33: =Tabel_DDBU_Data3[Aktiv_status] &"-" & Tabel_DDBU_Data3[Licenskort] -> 0-0 | Y33: =IF(Tabel_DDBU_Data3[Kegle]+Tabel_DDBU_Data3[Caram_3B]+Tabel_DDBU_Data3[Caram_1B]+Tabel_DDBU_Data3[Caram_Fri]>0,1,0) -> 0
A34: 100039 | B34: Tanja | C34: M. Thorsen | D34: =Tabel_DDBU_Data3[Fornavn]&" "&Tabel_DDBU_Data3[Efternavn] -> Tanja M. Thorsen | E34: 0 | G34: =VALUE(Tabel_DDBU_Data3[Klubnr]) -> 0 | J34: =IF(Tabel_DDBU_Data3[Kegle]>0,Tabel_DDBU_Data3[Kegle]/1000,"") ->  | L34: =IF(Tabel_DDBU_Data3[Caram_3B]>0,Tabel_DDBU_Data3[Caram_3B]/1000,"") ->  | N34: =IF(Tabel_DDBU_Data3[Caram_1B]>0,Tabel_DDBU_Data3[Caram_1B]/1000,"") ->  | P34: =IF(Tabel_DDBU_Data3[Caram_Fri]>0,Tabel_DDBU_Data3[Caram_Fri]/1000,"") ->  | S34: 0 | T34: 0 | U34: 1899-12-30 | X34: =Tabel_DDBU_Data3[Aktiv_status] &"-" & Tabel_DDBU_Data3[Licenskort] -> 0-0 | Y34: =IF(Tabel_DDBU_Data3[Kegle]+Tabel_DDBU_Data3[Caram_3B]+Tabel_DDBU_Data3[Caram_1B]+Tabel_DDBU_Data3[Caram_Fri]>0,1,0) -> 0
A35: 100040 | B35: Tina | C35: Schmidt | D35: =Tabel_DDBU_Data3[Fornavn]&" "&Tabel_DDBU_Data3[Efternavn] -> Tina Schmidt | E35: 0 | G35: =VALUE(Tabel_DDBU_Data3[Klubnr]) -> 0 | J35: =IF(Tabel_DDBU_Data3[Kegle]>0,Tabel_DDBU_Data3[Kegle]/1000,"") ->  | L35: =IF(Tabel_DDBU_Data3[Caram_3B]>0,Tabel_DDBU_Data3[Caram_3B]/1000,"") ->  | N35: =IF(Tabel_DDBU_Data3[Caram_1B]>0,Tabel_DDBU_Data3[Caram_1B]/1000,"") ->  | P35: =IF(Tabel_DDBU_Data3[Caram_Fri]>0,Tabel_DDBU_Data3[Caram_Fri]/1000,"") ->  | S35: 0 | T35: 0 | U35: 1899-12-30 | X35: =Tabel_DDBU_Data3[Aktiv_status] &"-" & Tabel_DDBU_Data3[Licenskort] -> 0-0 | Y35: =IF(Tabel_DDBU_Data3[Kegle]+Tabel_DDBU_Data3[Caram_3B]+Tabel_DDBU_Data3[Caram_1B]+Tabel_DDBU_Data3[Caram_Fri]>0,1,0) -> 0
A36: 100041 | B36: Peter | C36: F. Nielsen | D36: =Tabel_DDBU_Data3[Fornavn]&" "&Tabel_DDBU_Data3[Efternavn] -> Peter F. Nielsen | E36: 0 | G36: =VALUE(Tabel_DDBU_Data3[Klubnr]) -> 0 | J36: =IF(Tabel_DDBU_Data3[Kegle]>0,Tabel_DDBU_Data3[Kegle]/1000,"") ->  | L36: =IF(Tabel_DDBU_Data3[Caram_3B]>0,Tabel_DDBU_Data3[Caram_3B]/1000,"") ->  | N36: =IF(Tabel_DDBU_Data3[Caram_1B]>0,Tabel_DDBU_Data3[Caram_1B]/1000,"") ->  | P36: =IF(Tabel_DDBU_Data3[Caram_Fri]>0,Tabel_DDBU_Data3[Caram_Fri]/1000,"") ->  | S36: 0 | T36: 0 | U36: 1899-12-30 | X36: =Tabel_DDBU_Data3[Aktiv_status] &"-" & Tabel_DDBU_Data3[Licenskort] -> 0-0 | Y36: =IF(Tabel_DDBU_Data3[Kegle]+Tabel_DDBU_Data3[Caram_3B]+Tabel_DDBU_Data3[Caram_1B]+Tabel_DDBU_Data3[Caram_Fri]>0,1,0) -> 0
A37: 100042 | B37: Palle | C37: Pedersen | D37: =Tabel_DDBU_Data3[Fornavn]&" "&Tabel_DDBU_Data3[Efternavn] -> Palle Pedersen | E37: 0 | G37: =VALUE(Tabel_DDBU_Data3[Klubnr]) -> 0 | J37: =IF(Tabel_DDBU_Data3[Kegle]>0,Tabel_DDBU_Data3[Kegle]/1000,"") ->  | L37: =IF(Tabel_DDBU_Data3[Caram_3B]>0,Tabel_DDBU_Data3[Caram_3B]/1000,"") ->  | N37: =IF(Tabel_DDBU_Data3[Caram_1B]>0,Tabel_DDBU_Data3[Caram_1B]/1000,"") ->  | P37: =IF(Tabel_DDBU_Data3[Caram_Fri]>0,Tabel_DDBU_Data3[Caram_Fri]/1000,"") ->  | S37: 0 | T37: 0 | U37: 1899-12-30 | X37: =Tabel_DDBU_Data3[Aktiv_status] &"-" & Tabel_DDBU_Data3[Licenskort] -> 0-0 | Y37: =IF(Tabel_DDBU_Data3[Kegle]+Tabel_DDBU_Data3[Caram_3B]+Tabel_DDBU_Data3[Caram_1B]+Tabel_DDBU_Data3[Caram_Fri]>0,1,0) -> 0
A38: 100043 | B38: Michael | C38: Venøbo | D38: =Tabel_DDBU_Data3[Fornavn]&" "&Tabel_DDBU_Data3[Efternavn] -> Michael Venøbo | E38: 0 | G38: =VALUE(Tabel_DDBU_Data3[Klubnr]) -> 0 | J38: =IF(Tabel_DDBU_Data3[Kegle]>0,Tabel_DDBU_Data3[Kegle]/1000,"") ->  | L38: =IF(Tabel_DDBU_Data3[Caram_3B]>0,Tabel_DDBU_Data3[Caram_3B]/1000,"") ->  | N38: =IF(Tabel_DDBU_Data3[Caram_1B]>0,Tabel_DDBU_Data3[Caram_1B]/1000,"") ->  | P38: =IF(Tabel_DDBU_Data3[Caram_Fri]>0,Tabel_DDBU_Data3[Caram_Fri]/1000,"") ->  | S38: 0 | T38: 0 | U38: 0000-00-00 | X38: =Tabel_DDBU_Data3[Aktiv_status] &"-" & Tabel_DDBU_Data3[Licenskort] -> 0-0 | Y38: =IF(Tabel_DDBU_Data3[Kegle]+Tabel_DDBU_Data3[Caram_3B]+Tabel_DDBU_Data3[Caram_1B]+Tabel_DDBU_Data3[Caram_Fri]>0,1,0) -> 0
A39: 100044 | B39: Jonas | C39: Drefeldt | D39: =Tabel_DDBU_Data3[Fornavn]&" "&Tabel_DDBU_Data3[Efternavn] -> Jonas Drefeldt | E39: 0 | G39: =VALUE(Tabel_DDBU_Data3[Klubnr]) -> 0 | J39: =IF(Tabel_DDBU_Data3[Kegle]>0,Tabel_DDBU_Data3[Kegle]/1000,"") ->  | L39: =IF(Tabel_DDBU_Data3[Caram_3B]>0,Tabel_DDBU_Data3[Caram_3B]/1000,"") ->  | N39: =IF(Tabel_DDBU_Data3[Caram_1B]>0,Tabel_DDBU_Data3[Caram_1B]/1000,"") ->  | P39: =IF(Tabel_DDBU_Data3[Caram_Fri]>0,Tabel_DDBU_Data3[Caram_Fri]/1000,"") ->  | S39: 0 | T39: 0 | U39: 1899-12-30 | X39: =Tabel_DDBU_Data3[Aktiv_status] &"-" & Tabel_DDBU_Data3[Licenskort] -> 0-0 | Y39: =IF(Tabel_DDBU_Data3[Kegle]+Tabel_DDBU_Data3[Caram_3B]+Tabel_DDBU_Data3[Caram_1B]+Tabel_DDBU_Data3[Caram_Fri]>0,1,0) -> 0
A40: 100045 | B40: Thomas | C40: Larsen | D40: =Tabel_DDBU_Data3[Fornavn]&" "&Tabel_DDBU_Data3[Efternavn] -> Thomas Larsen | E40: 0 | G40: =VALUE(Tabel_DDBU_Data3[Klubnr]) -> 0 | J40: =IF(Tabel_DDBU_Data3[Kegle]>0,Tabel_DDBU_Data3[Kegle]/1000,"") ->  | L40: =IF(Tabel_DDBU_Data3[Caram_3B]>0,Tabel_DDBU_Data3[Caram_3B]/1000,"") ->  | N40: =IF(Tabel_DDBU_Data3[Caram_1B]>0,Tabel_DDBU_Data3[Caram_1B]/1000,"") ->  | P40: =IF(Tabel_DDBU_Data3[Caram_Fri]>0,Tabel_DDBU_Data3[Caram_Fri]/1000,"") ->  | S40: 0 | T40: 0 | U40: 1899-12-30 | X40: =Tabel_DDBU_Data3[Aktiv_status] &"-" & Tabel_DDBU_Data3[Licenskort] -> 0-0 | Y40: =IF(Tabel_DDBU_Data3[Kegle]+Tabel_DDBU_Data3[Caram_3B]+Tabel_DDBU_Data3[Caram_1B]+Tabel_DDBU_Data3[Caram_Fri]>0,1,0) -> 0
A41: 100046 | B41: Allan | C41: Jessen | D41: =Tabel_DDBU_Data3[Fornavn]&" "&Tabel_DDBU_Data3[Efternavn] -> Allan Jessen | E41: 0 | G41: =VALUE(Tabel_DDBU_Data3[Klubnr]) -> 0 | J41: =IF(Tabel_DDBU_Data3[Kegle]>0,Tabel_DDBU_Data3[Kegle]/1000,"") ->  | L41: =IF(Tabel_DDBU_Data3[Caram_3B]>0,Tabel_DDBU_Data3[Caram_3B]/1000,"") ->  | N41: =IF(Tabel_DDBU_Data3[Caram_1B]>0,Tabel_DDBU_Data3[Caram_1B]/1000,"") ->  | P41: =IF(Tabel_DDBU_Data3[Caram_Fri]>0,Tabel_DDBU_Data3[Caram_Fri]/1000,"") ->  | S41: 0 | T41: 0 | U41: 1899-12-30 | X41: =Tabel_DDBU_Data3[Aktiv_status] &"-" & Tabel_DDBU_Data3[Licenskort] -> 0-0 | Y41: =IF(Tabel_DDBU_Data3[Kegle]+Tabel_DDBU_Data3[Caram_3B]+Tabel_DDBU_Data3[Caram_1B]+Tabel_DDBU_Data3[Caram_Fri]>0,1,0) -> 0
A42: 100047 | B42: Tom | C42: Albrechtsen | D42: =Tabel_DDBU_Data3[Fornavn]&" "&Tabel_DDBU_Data3[Efternavn] -> Tom Albrechtsen | E42: 0 | G42: =VALUE(Tabel_DDBU_Data3[Klubnr]) -> 0 | J42: =IF(Tabel_DDBU_Data3[Kegle]>0,Tabel_DDBU_Data3[Kegle]/1000,"") ->  | L42: =IF(Tabel_DDBU_Data3[Caram_3B]>0,Tabel_DDBU_Data3[Caram_3B]/1000,"") ->  | N42: =IF(Tabel_DDBU_Data3[Caram_1B]>0,Tabel_DDBU_Data3[Caram_1B]/1000,"") ->  | P42: =IF(Tabel_DDBU_Data3[Caram_Fri]>0,Tabel_DDBU_Data3[Caram_Fri]/1000,"") ->  | S42: 0 | T42: 0 | U42: 1899-12-30 | X42: =Tabel_DDBU_Data3[Aktiv_status] &"-" & Tabel_DDBU_Data3[Licenskort] -> 0-0 | Y42: =IF(Tabel_DDBU_Data3[Kegle]+Tabel_DDBU_Data3[Caram_3B]+Tabel_DDBU_Data3[Caram_1B]+Tabel_DDBU_Data3[Caram_Fri]>0,1,0) -> 0
A43: 100048 | B43: Henrik | C43: Albinus | D43: =Tabel_DDBU_Data3[Fornavn]&" "&Tabel_DDBU_Data3[Efternavn] -> Henrik Albinus | E43: 0 | G43: =VALUE(Tabel_DDBU_Data3[Klubnr]) -> 0 | J43: =IF(Tabel_DDBU_Data3[Kegle]>0,Tabel_DDBU_Data3[Kegle]/1000,"") ->  | L43: =IF(Tabel_DDBU_Data3[Caram_3B]>0,Tabel_DDBU_Data3[Caram_3B]/1000,"") ->  | N43: =IF(Tabel_DDBU_Data3[Caram_1B]>0,Tabel_DDBU_Data3[Caram_1B]/1000,"") ->  | P43: =IF(Tabel_DDBU_Data3[Caram_Fri]>0,Tabel_DDBU_Data3[Caram_Fri]/1000,"") ->  | S43: 0 | T43: 0 | U43: 1899-12-30 | X43: =Tabel_DDBU_Data3[Aktiv_status] &"-" & Tabel_DDBU_Data3[Licenskort] -> 0-0 | Y43: =IF(Tabel_DDBU_Data3[Kegle]+Tabel_DDBU_Data3[Caram_3B]+Tabel_DDBU_Data3[Caram_1B]+Tabel_DDBU_Data3[Caram_Fri]>0,1,0) -> 0
A44: 100049 | B44: Morten | C44: Olsen | D44: =Tabel_DDBU_Data3[Fornavn]&" "&Tabel_DDBU_Data3[Efternavn] -> Morten Olsen | E44: 0 | G44: =VALUE(Tabel_DDBU_Data3[Klubnr]) -> 0 | J44: =IF(Tabel_DDBU_Data3[Kegle]>0,Tabel_DDBU_Data3[Kegle]/1000,"") ->  | L44: =IF(Tabel_DDBU_Data3[Caram_3B]>0,Tabel_DDBU_Data3[Caram_3B]/1000,"") ->  | N44: =IF(Tabel_DDBU_Data3[Caram_1B]>0,Tabel_DDBU_Data3[Caram_1B]/1000,"") ->  | P44: =IF(Tabel_DDBU_Data3[Caram_Fri]>0,Tabel_DDBU_Data3[Caram_Fri]/1000,"") ->  | S44: 0 | T44: 0 | U44: 1899-12-30 | X44: =Tabel_DDBU_Data3[Aktiv_status] &"-" & Tabel_DDBU_Data3[Licenskort] -> 0-0 | Y44: =IF(Tabel_DDBU_Data3[Kegle]+Tabel_DDBU_Data3[Caram_3B]+Tabel_DDBU_Data3[Caram_1B]+Tabel_DDBU_Data3[Caram_Fri]>0,1,0) -> 0
A45: 100050 | B45: Kasper | C45: Thygesen | D45: =Tabel_DDBU_Data3[Fornavn]&" "&Tabel_DDBU_Data3[Efternavn] -> Kasper Thygesen | E45: 0 | G45: =VALUE(Tabel_DDBU_Data3[Klubnr]) -> 0 | J45: =IF(Tabel_DDBU_Data3[Kegle]>0,Tabel_DDBU_Data3[Kegle]/1000,"") ->  | L45: =IF(Tabel_DDBU_Data3[Caram_3B]>0,Tabel_DDBU_Data3[Caram_3B]/1000,"") ->  | N45: =IF(Tabel_DDBU_Data3[Caram_1B]>0,Tabel_DDBU_Data3[Caram_1B]/1000,"") ->  | P45: =IF(Tabel_DDBU_Data3[Caram_Fri]>0,Tabel_DDBU_Data3[Caram_Fri]/1000,"") ->  | S45: 0 | T45: 0 | U45: 1899-12-30 | X45: =Tabel_DDBU_Data3[Aktiv_status] &"-" & Tabel_DDBU_Data3[Licenskort] -> 0-0 | Y45: =IF(Tabel_DDBU_Data3[Kegle]+Tabel_DDBU_Data3[Caram_3B]+Tabel_DDBU_Data3[Caram_1B]+Tabel_DDBU_Data3[Caram_Fri]>0,1,0) -> 0
A46: 100051 | B46: Brian | C46: Hansen | D46: =Tabel_DDBU_Data3[Fornavn]&" "&Tabel_DDBU_Data3[Efternavn] -> Brian Hansen | E46: 0 | G46: =VALUE(Tabel_DDBU_Data3[Klubnr]) -> 0 | J46: =IF(Tabel_DDBU_Data3[Kegle]>0,Tabel_DDBU_Data3[Kegle]/1000,"") ->  | L46: =IF(Tabel_DDBU_Data3[Caram_3B]>0,Tabel_DDBU_Data3[Caram_3B]/1000,"") ->  | N46: =IF(Tabel_DDBU_Data3[Caram_1B]>0,Tabel_DDBU_Data3[Caram_1B]/1000,"") ->  | P46: =IF(Tabel_DDBU_Data3[Caram_Fri]>0,Tabel_DDBU_Data3[Caram_Fri]/1000,"") ->  | S46: 0 | T46: 0 | U46: 1899-12-30 | X46: =Tabel_DDBU_Data3[Aktiv_status] &"-" & Tabel_DDBU_Data3[Licenskort] -> 0-0 | Y46: =IF(Tabel_DDBU_Data3[Kegle]+Tabel_DDBU_Data3[Caram_3B]+Tabel_DDBU_Data3[Caram_1B]+Tabel_DDBU_Data3[Caram_Fri]>0,1,0) -> 0
A47: 100053 | B47: Jane | C47: Christensen | D47: =Tabel_DDBU_Data3[Fornavn]&" "&Tabel_DDBU_Data3[Efternavn] -> Jane Christensen | E47: 0 | G47: =VALUE(Tabel_DDBU_Data3[Klubnr]) -> 0 | J47: =IF(Tabel_DDBU_Data3[Kegle]>0,Tabel_DDBU_Data3[Kegle]/1000,"") ->  | L47: =IF(Tabel_DDBU_Data3[Caram_3B]>0,Tabel_DDBU_Data3[Caram_3B]/1000,"") ->  | N47: =IF(Tabel_DDBU_Data3[Caram_1B]>0,Tabel_DDBU_Data3[Caram_1B]/1000,"") ->  | P47: =IF(Tabel_DDBU_Data3[Caram_Fri]>0,Tabel_DDBU_Data3[Caram_Fri]/1000,"") ->  | S47: 0 | T47: 0 | U47: 1899-12-30 | X47: =Tabel_DDBU_Data3[Aktiv_status] &"-" & Tabel_DDBU_Data3[Licenskort] -> 0-0 | Y47: =IF(Tabel_DDBU_Data3[Kegle]+Tabel_DDBU_Data3[Caram_3B]+Tabel_DDBU_Data3[Caram_1B]+Tabel_DDBU_Data3[Caram_Fri]>0,1,0) -> 0
A48: 100054 | B48: Thip | C48: Andersen | D48: =Tabel_DDBU_Data3[Fornavn]&" "&Tabel_DDBU_Data3[Efternavn] -> Thip Andersen | E48: 0 | G48: =VALUE(Tabel_DDBU_Data3[Klubnr]) -> 0 | J48: =IF(Tabel_DDBU_Data3[Kegle]>0,Tabel_DDBU_Data3[Kegle]/1000,"") ->  | L48: =IF(Tabel_DDBU_Data3[Caram_3B]>0,Tabel_DDBU_Data3[Caram_3B]/1000,"") ->  | N48: =IF(Tabel_DDBU_Data3[Caram_1B]>0,Tabel_DDBU_Data3[Caram_1B]/1000,"") ->  | P48: =IF(Tabel_DDBU_Data3[Caram_Fri]>0,Tabel_DDBU_Data3[Caram_Fri]/1000,"") ->  | S48: 0 | T48: 0 | U48: 1899-12-30 | X48: =Tabel_DDBU_Data3[Aktiv_status] &"-" & Tabel_DDBU_Data3[Licenskort] -> 0-0 | Y48: =IF(Tabel_DDBU_Data3[Kegle]+Tabel_DDBU_Data3[Caram_3B]+Tabel_DDBU_Data3[Caram_1B]+Tabel_DDBU_Data3[Caram_Fri]>0,1,0) -> 0
A49: 100055 | B49: Jesper | C49: Jacobsen | D49: =Tabel_DDBU_Data3[Fornavn]&" "&Tabel_DDBU_Data3[Efternavn] -> Jesper Jacobsen | E49: 0 | G49: =VALUE(Tabel_DDBU_Data3[Klubnr]) -> 0 | J49: =IF(Tabel_DDBU_Data3[Kegle]>0,Tabel_DDBU_Data3[Kegle]/1000,"") ->  | L49: =IF(Tabel_DDBU_Data3[Caram_3B]>0,Tabel_DDBU_Data3[Caram_3B]/1000,"") ->  | N49: =IF(Tabel_DDBU_Data3[Caram_1B]>0,Tabel_DDBU_Data3[Caram_1B]/1000,"") ->  | P49: =IF(Tabel_DDBU_Data3[Caram_Fri]>0,Tabel_DDBU_Data3[Caram_Fri]/1000,"") ->  | S49: 0 | T49: 0 | U49: 1899-12-30 | X49: =Tabel_DDBU_Data3[Aktiv_status] &"-" & Tabel_DDBU_Data3[Licenskort] -> 0-0 | Y49: =IF(Tabel_DDBU_Data3[Kegle]+Tabel_DDBU_Data3[Caram_3B]+Tabel_DDBU_Data3[Caram_1B]+Tabel_DDBU_Data3[Caram_Fri]>0,1,0) -> 0
A50: 100056 | B50: Tommy | C50: Kofoed | D50: =Tabel_DDBU_Data3[Fornavn]&" "&Tabel_DDBU_Data3[Efternavn] -> Tommy Kofoed | E50: 0 | G50: =VALUE(Tabel_DDBU_Data3[Klubnr]) -> 0 | J50: =IF(Tabel_DDBU_Data3[Kegle]>0,Tabel_DDBU_Data3[Kegle]/1000,"") ->  | L50: =IF(Tabel_DDBU_Data3[Caram_3B]>0,Tabel_DDBU_Data3[Caram_3B]/1000,"") ->  | N50: =IF(Tabel_DDBU_Data3[Caram_1B]>0,Tabel_DDBU_Data3[Caram_1B]/1000,"") ->  | P50: =IF(Tabel_DDBU_Data3[Caram_Fri]>0,Tabel_DDBU_Data3[Caram_Fri]/1000,"") ->  | S50: 0 | T50: 0 | U50: 1899-12-30 | X50: =Tabel_DDBU_Data3[Aktiv_status] &"-" & Tabel_DDBU_Data3[Licenskort] -> 0-0 | Y50: =IF(Tabel_DDBU_Data3[Kegle]+Tabel_DDBU_Data3[Caram_3B]+Tabel_DDBU_Data3[Caram_1B]+Tabel_DDBU_Data3[Caram_Fri]>0,1,0) -> 0
A51: 100057 | B51: Henrik | C51: Grøn | D51: =Tabel_DDBU_Data3[Fornavn]&" "&Tabel_DDBU_Data3[Efternavn] -> Henrik Grøn | E51: 0 | G51: =VALUE(Tabel_DDBU_Data3[Klubnr]) -> 0 | J51: =IF(Tabel_DDBU_Data3[Kegle]>0,Tabel_DDBU_Data3[Kegle]/1000,"") ->  | L51: =IF(Tabel_DDBU_Data3[Caram_3B]>0,Tabel_DDBU_Data3[Caram_3B]/1000,"") ->  | N51: =IF(Tabel_DDBU_Data3[Caram_1B]>0,Tabel_DDBU_Data3[Caram_1B]/1000,"") ->  | P51: =IF(Tabel_DDBU_Data3[Caram_Fri]>0,Tabel_DDBU_Data3[Caram_Fri]/1000,"") ->  | S51: 0 | T51: 0 | U51: 1899-12-30 | X51: =Tabel_DDBU_Data3[Aktiv_status] &"-" & Tabel_DDBU_Data3[Licenskort] -> 0-0 | Y51: =IF(Tabel_DDBU_Data3[Kegle]+Tabel_DDBU_Data3[Caram_3B]+Tabel_DDBU_Data3[Caram_1B]+Tabel_DDBU_Data3[Caram_Fri]>0,1,0) -> 0
A52: 111956 | B52: Carlo | C52: Madsen | D52: =Tabel_DDBU_Data3[Fornavn]&" "&Tabel_DDBU_Data3[Efternavn] -> Carlo Madsen | E52: 000 | F52: BYE | G52: =VALUE(Tabel_DDBU_Data3[Klubnr]) -> 0 | I52: 5870 | J52: =IF(Tabel_DDBU_Data3[Kegle]>0,Tabel_DDBU_Data3[Kegle]/1000,"") -> 5.87 | L52: =IF(Tabel_DDBU_Data3[Caram_3B]>0,Tabel_DDBU_Data3[Caram_3B]/1000,"") ->  | N52: =IF(Tabel_DDBU_Data3[Caram_1B]>0,Tabel_DDBU_Data3[Caram_1B]/1000,"") ->  | P52: =IF(Tabel_DDBU_Data3[Caram_Fri]>0,Tabel_DDBU_Data3[Caram_Fri]/1000,"") ->  | S52: 1 | T52: 0 | U52: 1945-06-08 | X52: =Tabel_DDBU_Data3[Aktiv_status] &"-" & Tabel_DDBU_Data3[Licenskort] -> 1-0 | Y52: =IF(Tabel_DDBU_Data3[Kegle]+Tabel_DDBU_Data3[Caram_3B]+Tabel_DDBU_Data3[Caram_1B]+Tabel_DDBU_Data3[Caram_Fri]>0,1,0) -> 1
A53: 117630 | B53: Klaus Bo | C53: Jensen | D53: =Tabel_DDBU_Data3[Fornavn]&" "&Tabel_DDBU_Data3[Efternavn] -> Klaus Bo Jensen | E53: 000 | F53: BYE | G53: =VALUE(Tabel_DDBU_Data3[Klubnr]) -> 0 | I53: 3150 | J53: =IF(Tabel_DDBU_Data3[Kegle]>0,Tabel_DDBU_Data3[Kegle]/1000,"") -> 3.15 | L53: =IF(Tabel_DDBU_Data3[Caram_3B]>0,Tabel_DDBU_Data3[Caram_3B]/1000,"") ->  | N53: =IF(Tabel_DDBU_Data3[Caram_1B]>0,Tabel_DDBU_Data3[Caram_1B]/1000,"") ->  | P53: =IF(Tabel_DDBU_Data3[Caram_Fri]>0,Tabel_DDBU_Data3[Caram_Fri]/1000,"") ->  | S53: 0 | T53: 0 | U53: 1966-10-29 | X53: =Tabel_DDBU_Data3[Aktiv_status] &"-" & Tabel_DDBU_Data3[Licenskort] -> 0-0 | Y53: =IF(Tabel_DDBU_Data3[Kegle]+Tabel_DDBU_Data3[Caram_3B]+Tabel_DDBU_Data3[Caram_1B]+Tabel_DDBU_Data3[Caram_Fri]>0,1,0) -> 1
A54: 110163 | B54: Rene | C54: Kruse | D54: =Tabel_DDBU_Data3[Fornavn]&" "&Tabel_DDBU_Data3[Efternavn] -> Rene Kruse | E54: 001 | F54: Nexø Billard Klub | G54: =VALUE(Tabel_DDBU_Data3[Klubnr]) -> 1 | H54: Nexø BK | I54: 4270 | J54: =IF(Tabel_DDBU_Data3[Kegle]>0,Tabel_DDBU_Data3[Kegle]/1000,"") -> 4.27 | L54: =IF(Tabel_DDBU_Data3[Caram_3B]>0,Tabel_DDBU_Data3[Caram_3B]/1000,"") ->  | N54: =IF(Tabel_DDBU_Data3[Caram_1B]>0,Tabel_DDBU_Data3[Caram_1B]/1000,"") ->  | P54: =IF(Tabel_DDBU_Data3[Caram_Fri]>0,Tabel_DDBU_Data3[Caram_Fri]/1000,"") ->  | S54: 0 | T54: 0 | U54: 1958-08-01 | X54: =Tabel_DDBU_Data3[Aktiv_status] &"-" & Tabel_DDBU_Data3[Licenskort] -> 0-0 | Y54: =IF(Tabel_DDBU_Data3[Kegle]+Tabel_DDBU_Data3[Caram_3B]+Tabel_DDBU_Data3[Caram_1B]+Tabel_DDBU_Data3[Caram_Fri]>0,1,0) -> 1
A55: 110731 | B55: Poul Erik | C55: Dehn | D55: =Tabel_DDBU_Data3[Fornavn]&" "&Tabel_DDBU_Data3[Efternavn] -> Poul Erik Dehn | E55: 001 | F55: Nexø Billard Klub | G55: =VALUE(Tabel_DDBU_Data3[Klubnr]) -> 1 | H55: Nexø BK | J55: =IF(Tabel_DDBU_Data3[Kegle]>0,Tabel_DDBU_Data3[Kegle]/1000,"") ->  | L55: =IF(Tabel_DDBU_Data3[Caram_3B]>0,Tabel_DDBU_Data3[Caram_3B]/1000,"") ->  | N55: =IF(Tabel_DDBU_Data3[Caram_1B]>0,Tabel_DDBU_Data3[Caram_1B]/1000,"") ->  | P55: =IF(Tabel_DDBU_Data3[Caram_Fri]>0,Tabel_DDBU_Data3[Caram_Fri]/1000,"") ->  | S55: 0 | T55: 0 | U55: 1943-11-03 | X55: =Tabel_DDBU_Data3[Aktiv_status] &"-" & Tabel_DDBU_Data3[Licenskort] -> 0-0 | Y55: =IF(Tabel_DDBU_Data3[Kegle]+Tabel_DDBU_Data3[Caram_3B]+Tabel_DDBU_Data3[Caram_1B]+Tabel_DDBU_Data3[Caram_Fri]>0,1,0) -> 0
A56: 110997 | B56: Niels | C56: Finne | D56: =Tabel_DDBU_Data3[Fornavn]&" "&Tabel_DDBU_Data3[Efternavn] -> Niels Finne | E56: 001 | F56: Nexø Billard Klub | G56: =VALUE(Tabel_DDBU_Data3[Klubnr]) -> 1 | H56: Nexø BK | I56: 8010 | J56: =IF(Tabel_DDBU_Data3[Kegle]>0,Tabel_DDBU_Data3[Kegle]/1000,"") -> 8.01 | L56: =IF(Tabel_DDBU_Data3[Caram_3B]>0,Tabel_DDBU_Data3[Caram_3B]/1000,"") ->  | N56: =IF(Tabel_DDBU_Data3[Caram_1B]>0,Tabel_DDBU_Data3[Caram_1B]/1000,"") ->  | O56: 540 | P56: =IF(Tabel_DDBU_Data3[Caram_Fri]>0,Tabel_DDBU_Data3[Caram_Fri]/1000,"") -> 0.54 | S56: 1 | T56: 2 | U56: 1946-11-04 | X56: =Tabel_DDBU_Data3[Aktiv_status] &"-" & Tabel_DDBU_Data3[Licenskort] -> 1-2 | Y56: =IF(Tabel_DDBU_Data3[Kegle]+Tabel_DDBU_Data3[Caram_3B]+Tabel_DDBU_Data3[Caram_1B]+Tabel_DDBU_Data3[Caram_Fri]>0,1,0) -> 1
A57: 111271 | B57: Karsten | C57: Hansen | D57: =Tabel_DDBU_Data3[Fornavn]&" "&Tabel_DDBU_Data3[Efternavn] -> Karsten Hansen | E57: 001 | F57: Nexø Billard Klub | G57: =VALUE(Tabel_DDBU_Data3[Klubnr]) -> 1 | H57: Nexø BK | I57: 5130 | J57: =IF(Tabel_DDBU_Data3[Kegle]>0,Tabel_DDBU_Data3[Kegle]/1000,"") -> 5.13 | L57: =IF(Tabel_DDBU_Data3[Caram_3B]>0,Tabel_DDBU_Data3[Caram_3B]/1000,"") ->  | N57: =IF(Tabel_DDBU_Data3[Caram_1B]>0,Tabel_DDBU_Data3[Caram_1B]/1000,"") ->  | P57: =IF(Tabel_DDBU_Data3[Caram_Fri]>0,Tabel_DDBU_Data3[Caram_Fri]/1000,"") ->  | S57: 0 | T57: 0 | U57: 1960-10-05 | X57: =Tabel_DDBU_Data3[Aktiv_status] &"-" & Tabel_DDBU_Data3[Licenskort] -> 0-0 | Y57: =IF(Tabel_DDBU_Data3[Kegle]+Tabel_DDBU_Data3[Caram_3B]+Tabel_DDBU_Data3[Caram_1B]+Tabel_DDBU_Data3[Caram_Fri]>0,1,0) -> 1
A58: 111307 | B58: Kurt | C58: Horsner | D58: =Tabel_DDBU_Data3[Fornavn]&" "&Tabel_DDBU_Data3[Efternavn] -> Kurt Horsner | E58: 001 | F58: Nexø Billard Klub | G58: =VALUE(Tabel_DDBU_Data3[Klubnr]) -> 1 | H58: Nexø BK | I58: 4020 | J58: =IF(Tabel_DDBU_Data3[Kegle]>0,Tabel_DDBU_Data3[Kegle]/1000,"") -> 4.02 | L58: =IF(Tabel_DDBU_Data3[Caram_3B]>0,Tabel_DDBU_Data3[Caram_3B]/1000,"") ->  | N58: =IF(Tabel_DDBU_Data3[Caram_1B]>0,Tabel_DDBU_Data3[Caram_1B]/1000,"") ->  | P58: =IF(Tabel_DDBU_Data3[Caram_Fri]>0,Tabel_DDBU_Data3[Caram_Fri]/1000,"") ->  | S58: 1 | T58: 2 | U58: 1947-12-05 | X58: =Tabel_DDBU_Data3[Aktiv_status] &"-" & Tabel_DDBU_Data3[Licenskort] -> 1-2 | Y58: =IF(Tabel_DDBU_Data3[Kegle]+Tabel_DDBU_Data3[Caram_3B]+Tabel_DDBU_Data3[Caram_1B]+Tabel_DDBU_Data3[Caram_Fri]>0,1,0) -> 1
A59: 111422 | B59: Anders | C59: Kofoed | D59: =Tabel_DDBU_Data3[Fornavn]&" "&Tabel_DDBU_Data3[Efternavn] -> Anders Kofoed | E59: 001 | F59: Nexø Billard Klub | G59: =VALUE(Tabel_DDBU_Data3[Klubnr]) -> 1 | H59: Nexø BK | J59: =IF(Tabel_DDBU_Data3[Kegle]>0,Tabel_DDBU_Data3[Kegle]/1000,"") ->  | L59: =IF(Tabel_DDBU_Data3[Caram_3B]>0,Tabel_DDBU_Data3[Caram_3B]/1000,"") ->  | N59: =IF(Tabel_DDBU_Data3[Caram_1B]>0,Tabel_DDBU_Data3[Caram_1B]/1000,"") ->  | P59: =IF(Tabel_DDBU_Data3[Caram_Fri]>0,Tabel_DDBU_Data3[Caram_Fri]/1000,"") ->  | S59: 0 | T59: 0 | U59: 1954-05-06 | X59: =Tabel_DDBU_Data3[Aktiv_status] &"-" & Tabel_DDBU_Data3[Licenskort] -> 0-0 | Y59: =IF(Tabel_DDBU_Data3[Kegle]+Tabel_DDBU_Data3[Caram_3B]+Tabel_DDBU_Data3[Caram_1B]+Tabel_DDBU_Data3[Caram_Fri]>0,1,0) -> 0
A60: 111450 | B60: Svend | C60: Larsen | D60: =Tabel_DDBU_Data3[Fornavn]&" "&Tabel_DDBU_Data3[Efternavn] -> Svend Larsen | E60: 001 | F60: Nexø Billard Klub | G60: =VALUE(Tabel_DDBU_Data3[Klubnr]) -> 1 | H60: Nexø BK | I60: 4500 | J60: =IF(Tabel_DDBU_Data3[Kegle]>0,Tabel_DDBU_Data3[Kegle]/1000,"") -> 4.5 | L60: =IF(Tabel_DDBU_Data3[Caram_3B]>0,Tabel_DDBU_Data3[Caram_3B]/1000,"") ->  | N60: =IF(Tabel_DDBU_Data3[Caram_1B]>0,Tabel_DDBU_Data3[Caram_1B]/1000,"") ->  | P60: =IF(Tabel_DDBU_Data3[Caram_Fri]>0,Tabel_DDBU_Data3[Caram_Fri]/1000,"") ->  | S60: 0 | T60: 0 | U60: 1933-07-06 | X60: =Tabel_DDBU_Data3[Aktiv_status] &"-" & Tabel_DDBU_Data3[Licenskort] -> 0-0 | Y60: =IF(Tabel_DDBU_Data3[Kegle]+Tabel_DDBU_Data3[Caram_3B]+Tabel_DDBU_Data3[Caram_1B]+Tabel_DDBU_Data3[Caram_Fri]>0,1,0) -> 1
A61: 111507 | B61: Anne-Gitte | C61: Hansen | D61: =Tabel_DDBU_Data3[Fornavn]&" "&Tabel_DDBU_Data3[Efternavn] -> Anne-Gitte Hansen | E61: 001 | F61: Nexø Billard Klub | G61: =VALUE(Tabel_DDBU_Data3[Klubnr]) -> 1 | H61: Nexø BK | J61: =IF(Tabel_DDBU_Data3[Kegle]>0,Tabel_DDBU_Data3[Kegle]/1000,"") ->  | L61: =IF(Tabel_DDBU_Data3[Caram_3B]>0,Tabel_DDBU_Data3[Caram_3B]/1000,"") ->  | N61: =IF(Tabel_DDBU_Data3[Caram_1B]>0,Tabel_DDBU_Data3[Caram_1B]/1000,"") ->  | P61: =IF(Tabel_DDBU_Data3[Caram_Fri]>0,Tabel_DDBU_Data3[Caram_Fri]/1000,"") ->  | S61: 0 | T61: 0 | U61: 1963-09-06 | X61: =Tabel_DDBU_Data3[Aktiv_status] &"-" & Tabel_DDBU_Data3[Licenskort] -> 0-0 | Y61: =IF(Tabel_DDBU_Data3[Kegle]+Tabel_DDBU_Data3[Caram_3B]+Tabel_DDBU_Data3[Caram_1B]+Tabel_DDBU_Data3[Caram_Fri]>0,1,0) -> 0
A62: 111531 | B62: Birgith | C62: Håkansson | D62: =Tabel_DDBU_Data3[Fornavn]&" "&Tabel_DDBU_Data3[Efternavn] -> Birgith Håkansson | E62: 001 | F62: Nexø Billard Klub | G62: =VALUE(Tabel_DDBU_Data3[Klubnr]) -> 1 | H62: Nexø BK | I62: 3880 | J62: =IF(Tabel_DDBU_Data3[Kegle]>0,Tabel_DDBU_Data3[Kegle]/1000,"") -> 3.88 | L62: =IF(Tabel_DDBU_Data3[Caram_3B]>0,Tabel_DDBU_Data3[Caram_3B]/1000,"") ->  | N62: =IF(Tabel_DDBU_Data3[Caram_1B]>0,Tabel_DDBU_Data3[Caram_1B]/1000,"") ->  | P62: =IF(Tabel_DDBU_Data3[Caram_Fri]>0,Tabel_DDBU_Data3[Caram_Fri]/1000,"") ->  | S62: 1 | T62: 2 | U62: 1945-10-06 | X62: =Tabel_DDBU_Data3[Aktiv_status] &"-" & Tabel_DDBU_Data3[Licenskort] -> 1-2 | Y62: =IF(Tabel_DDBU_Data3[Kegle]+Tabel_DDBU_Data3[Caram_3B]+Tabel_DDBU_Data3[Caram_1B]+Tabel_DDBU_Data3[Caram_Fri]>0,1,0) -> 1
A63: 112184 | B63: Kjeld | C63: Christiansen | D63: =Tabel_DDBU_Data3[Fornavn]&" "&Tabel_DDBU_Data3[Efternavn] -> Kjeld Christiansen | E63: 001 | F63: Nexø Billard Klub | G63: =VALUE(Tabel_DDBU_Data3[Klubnr]) -> 1 | H63: Nexø BK | I63: 3050 | J63: =IF(Tabel_DDBU_Data3[Kegle]>0,Tabel_DDBU_Data3[Kegle]/1000,"") -> 3.05 | L63: =IF(Tabel_DDBU_Data3[Caram_3B]>0,Tabel_DDBU_Data3[Caram_3B]/1000,"") ->  | N63: =IF(Tabel_DDBU_Data3[Caram_1B]>0,Tabel_DDBU_Data3[Caram_1B]/1000,"") ->  | P63: =IF(Tabel_DDBU_Data3[Caram_Fri]>0,Tabel_DDBU_Data3[Caram_Fri]/1000,"") ->  | S63: 0 | T63: 0 | U63: 1938-04-09 | X63: =Tabel_DDBU_Data3[Aktiv_status] &"-" & Tabel_DDBU_Data3[Licenskort] -> 0-0 | Y63: =IF(Tabel_DDBU_Data3[Kegle]+Tabel_DDBU_Data3[Caram_3B]+Tabel_DDBU_Data3[Caram_1B]+Tabel_DDBU_Data3[Caram_Fri]>0,1,0) -> 1
A64: 112605 | B64: Aage | C64: Pedersen | D64: =Tabel_DDBU_Data3[Fornavn]&" "&Tabel_DDBU_Data3[Efternavn] -> Aage Pedersen | E64: 001 | F64: Nexø Billard Klub | G64: =VALUE(Tabel_DDBU_Data3[Klubnr]) -> 1 | H64: Nexø BK | I64: 10270 | J64: =IF(Tabel_DDBU_Data3[Kegle]>0,Tabel_DDBU_Data3[Kegle]/1000,"") -> 10.27 | K64: 230 | L64: =IF(Tabel_DDBU_Data3[Caram_3B]>0,Tabel_DDBU_Data3[Caram_3B]/1000,"") -> 0.23 | N64: =IF(Tabel_DDBU_Data3[Caram_1B]>0,Tabel_DDBU_Data3[Caram_1B]/1000,"") ->  | O64: 800 | P64: =IF(Tabel_DDBU_Data3[Caram_Fri]>0,Tabel_DDBU_Data3[Caram_Fri]/1000,"") -> 0.8 | S64: 1 | T64: 2 | U64: 1951-10-10 | X64: =Tabel_DDBU_Data3[Aktiv_status] &"-" & Tabel_DDBU_Data3[Licenskort] -> 1-2 | Y64: =IF(Tabel_DDBU_Data3[Kegle]+Tabel_DDBU_Data3[Caram_3B]+Tabel_DDBU_Data3[Caram_1B]+Tabel_DDBU_Data3[Caram_Fri]>0,1,0) -> 1
A65: 113015 | B65: Keld | C65: Nielsen | D65: =Tabel_DDBU_Data3[Fornavn]&" "&Tabel_DDBU_Data3[Efternavn] -> Keld Nielsen | E65: 001 | F65: Nexø Billard Klub | G65: =VALUE(Tabel_DDBU_Data3[Klubnr]) -> 1 | H65: Nexø BK | I65: 5120 | J65: =IF(Tabel_DDBU_Data3[Kegle]>0,Tabel_DDBU_Data3[Kegle]/1000,"") -> 5.12 | L65: =IF(Tabel_DDBU_Data3[Caram_3B]>0,Tabel_DDBU_Data3[Caram_3B]/1000,"") ->  | N65: =IF(Tabel_DDBU_Data3[Caram_1B]>0,Tabel_DDBU_Data3[Caram_1B]/1000,"") ->  | P65: =IF(Tabel_DDBU_Data3[Caram_Fri]>0,Tabel_DDBU_Data3[Caram_Fri]/1000,"") ->  | S65: 1 | T65: 2 | U65: 1946-05-12 | X65: =Tabel_DDBU_Data3[Aktiv_status] &"-" & Tabel_DDBU_Data3[Licenskort] -> 1-2 | Y65: =IF(Tabel_DDBU_Data3[Kegle]+Tabel_DDBU_Data3[Caram_3B]+Tabel_DDBU_Data3[Caram_1B]+Tabel_DDBU_Data3[Caram_Fri]>0,1,0) -> 1
A66: 113822 | B66: Egon | C66: Hansen | D66: =Tabel_DDBU_Data3[Fornavn]&" "&Tabel_DDBU_Data3[Efternavn] -> Egon Hansen | E66: 001 | F66: Nexø Billard Klub | G66: =VALUE(Tabel_DDBU_Data3[Klubnr]) -> 1 | H66: Nexø BK | I66: 6380 | J66: =IF(Tabel_DDBU_Data3[Kegle]>0,Tabel_DDBU_Data3[Kegle]/1000,"") -> 6.38 | L66: =IF(Tabel_DDBU_Data3[Caram_3B]>0,Tabel_DDBU_Data3[Caram_3B]/1000,"") ->  | N66: =IF(Tabel_DDBU_Data3[Caram_1B]>0,Tabel_DDBU_Data3[Caram_1B]/1000,"") ->  | P66: =IF(Tabel_DDBU_Data3[Caram_Fri]>0,Tabel_DDBU_Data3[Caram_Fri]/1000,"") ->  | S66: 0 | T66: 0 | U66: 1963-06-15 | X66: =Tabel_DDBU_Data3[Aktiv_status] &"-" & Tabel_DDBU_Data3[Licenskort] -> 0-0 | Y66: =IF(Tabel_DDBU_Data3[Kegle]+Tabel_DDBU_Data3[Caram_3B]+Tabel_DDBU_Data3[Caram_1B]+Tabel_DDBU_Data3[Caram_Fri]>0,1,0) -> 1
A67: 113928 | B67: Erling | C67: Hansen | D67: =Tabel_DDBU_Data3[Fornavn]&" "&Tabel_DDBU_Data3[Efternavn] -> Erling Hansen | E67: 001 | F67: Nexø Billard Klub | G67: =VALUE(Tabel_DDBU_Data3[Klubnr]) -> 1 | H67: Nexø BK | I67: 2890 | J67: =IF(Tabel_DDBU_Data3[Kegle]>0,Tabel_DDBU_Data3[Kegle]/1000,"") -> 2.89 | L67: =IF(Tabel_DDBU_Data3[Caram_3B]>0,Tabel_DDBU_Data3[Caram_3B]/1000,"") ->  | N67: =IF(Tabel_DDBU_Data3[Caram_1B]>0,Tabel_DDBU_Data3[Caram_1B]/1000,"") ->  | P67: =IF(Tabel_DDBU_Data3[Caram_Fri]>0,Tabel_DDBU_Data3[Caram_Fri]/1000,"") ->  | S67: 1 | T67: 2 | U67: 1943-11-15 | X67: =Tabel_DDBU_Data3[Aktiv_status] &"-" & Tabel_DDBU_Data3[Licenskort] -> 1-2 | Y67: =IF(Tabel_DDBU_Data3[Kegle]+Tabel_DDBU_Data3[Caram_3B]+Tabel_DDBU_Data3[Caram_1B]+Tabel_DDBU_Data3[Caram_Fri]>0,1,0) -> 1
A68: 114564 | B68: Bent | C68: Holm | D68: =Tabel_DDBU_Data3[Fornavn]&" "&Tabel_DDBU_Data3[Efternavn] -> Bent Holm | E68: 001 | F68: Nexø Billard Klub | G68: =VALUE(Tabel_DDBU_Data3[Klubnr]) -> 1 | H68: Nexø BK | I68: 10270 | J68: =IF(Tabel_DDBU_Data3[Kegle]>0,Tabel_DDBU_Data3[Kegle]/1000,"") -> 10.27 | L68: =IF(Tabel_DDBU_Data3[Caram_3B]>0,Tabel_DDBU_Data3[Caram_3B]/1000,"") ->  | N68: =IF(Tabel_DDBU_Data3[Caram_1B]>0,Tabel_DDBU_Data3[Caram_1B]/1000,"") ->  | O68: 880 | P68: =IF(Tabel_DDBU_Data3[Caram_Fri]>0,Tabel_DDBU_Data3[Caram_Fri]/1000,"") -> 0.88 | S68: 1 | T68: 2 | U68: 1948-04-18 | X68: =Tabel_DDBU_Data3[Aktiv_status] &"-" & Tabel_DDBU_Data3[Licenskort] -> 1-2 | Y68: =IF(Tabel_DDBU_Data3[Kegle]+Tabel_DDBU_Data3[Caram_3B]+Tabel_DDBU_Data3[Caram_1B]+Tabel_DDBU_Data3[Caram_Fri]>0,1,0) -> 1
A69: 114693 | B69: Flemming | C69: Westergaard | D69: =Tabel_DDBU_Data3[Fornavn]&" "&Tabel_DDBU_Data3[Efternavn] -> Flemming Westergaard | E69: 001 | F69: Nexø Billard Klub | G69: =VALUE(Tabel_DDBU_Data3[Klubnr]) -> 1 | H69: Nexø BK | J69: =IF(Tabel_DDBU_Data3[Kegle]>0,Tabel_DDBU_Data3[Kegle]/1000,"") ->  | L69: =IF(Tabel_DDBU_Data3[Caram_3B]>0,Tabel_DDBU_Data3[Caram_3B]/1000,"") ->  | N69: =IF(Tabel_DDBU_Data3[Caram_1B]>0,Tabel_DDBU_Data3[Caram_1B]/1000,"") ->  | P69: =IF(Tabel_DDBU_Data3[Caram_Fri]>0,Tabel_DDBU_Data3[Caram_Fri]/1000,"") ->  | S69: 0 | T69: 0 | U69: 1938-09-18 | X69: =Tabel_DDBU_Data3[Aktiv_status] &"-" & Tabel_DDBU_Data3[Licenskort] -> 0-0 | Y69: =IF(Tabel_DDBU_Data3[Kegle]+Tabel_DDBU_Data3[Caram_3B]+Tabel_DDBU_Data3[Caram_1B]+Tabel_DDBU_Data3[Caram_Fri]>0,1,0) -> 0
A70: 114855 | B70: Michael | C70: Kristensen | D70: =Tabel_DDBU_Data3[Fornavn]&" "&Tabel_DDBU_Data3[Efternavn] -> Michael Kristensen | E70: 001 | F70: Nexø Billard Klub | G70: =VALUE(Tabel_DDBU_Data3[Klubnr]) -> 1 | H70: Nexø BK | J70: =IF(Tabel_DDBU_Data3[Kegle]>0,Tabel_DDBU_Data3[Kegle]/1000,"") ->  | L70: =IF(Tabel_DDBU_Data3[Caram_3B]>0,Tabel_DDBU_Data3[Caram_3B]/1000,"") ->  | N70: =IF(Tabel_DDBU_Data3[Caram_1B]>0,Tabel_DDBU_Data3[Caram_1B]/1000,"") ->  | P70: =IF(Tabel_DDBU_Data3[Caram_Fri]>0,Tabel_DDBU_Data3[Caram_Fri]/1000,"") ->  | S70: 0 | T70: 0 | U70: 1966-10-15 | X70: =Tabel_DDBU_Data3[Aktiv_status] &"-" & Tabel_DDBU_Data3[Licenskort] -> 0-0 | Y70: =IF(Tabel_DDBU_Data3[Kegle]+Tabel_DDBU_Data3[Caram_3B]+Tabel_DDBU_Data3[Caram_1B]+Tabel_DDBU_Data3[Caram_Fri]>0,1,0) -> 0
A71: 114887 | B71: Frede | C71: Nielsen | D71: =Tabel_DDBU_Data3[Fornavn]&" "&Tabel_DDBU_Data3[Efternavn] -> Frede Nielsen | E71: 001 | F71: Nexø Billard Klub | G71: =VALUE(Tabel_DDBU_Data3[Klubnr]) -> 1 | H71: Nexø BK | I71: 6470 | J71: =IF(Tabel_DDBU_Data3[Kegle]>0,Tabel_DDBU_Data3[Kegle]/1000,"") -> 6.47 | L71: =IF(Tabel_DDBU_Data3[Caram_3B]>0,Tabel_DDBU_Data3[Caram_3B]/1000,"") ->  | N71: =IF(Tabel_DDBU_Data3[Caram_1B]>0,Tabel_DDBU_Data3[Caram_1B]/1000,"") ->  | P71: =IF(Tabel_DDBU_Data3[Caram_Fri]>0,Tabel_DDBU_Data3[Caram_Fri]/1000,"") ->  | S71: 0 | T71: 0 | U71: 1930-05-19 | X71: =Tabel_DDBU_Data3[Aktiv_status] &"-" & Tabel_DDBU_Data3[Licenskort] -> 0-0 | Y71: =IF(Tabel_DDBU_Data3[Kegle]+Tabel_DDBU_Data3[Caram_3B]+Tabel_DDBU_Data3[Caram_1B]+Tabel_DDBU_Data3[Caram_Fri]>0,1,0) -> 1
A72: 115060 | B72: Rene | C72: Pedersen | D72: =Tabel_DDBU_Data3[Fornavn]&" "&Tabel_DDBU_Data3[Efternavn] -> Rene Pedersen | E72: 001 | F72: Nexø Billard Klub | G72: =VALUE(Tabel_DDBU_Data3[Klubnr]) -> 1 | H72: Nexø BK | I72: 6100 | J72: =IF(Tabel_DDBU_Data3[Kegle]>0,Tabel_DDBU_Data3[Kegle]/1000,"") -> 6.1 | L72: =IF(Tabel_DDBU_Data3[Caram_3B]>0,Tabel_DDBU_Data3[Caram_3B]/1000,"") ->  | N72: =IF(Tabel_DDBU_Data3[Caram_1B]>0,Tabel_DDBU_Data3[Caram_1B]/1000,"") ->  | P72: =IF(Tabel_DDBU_Data3[Caram_Fri]>0,Tabel_DDBU_Data3[Caram_Fri]/1000,"") ->  | S72: 1 | T72: 2 | U72: 1966-12-19 | X72: =Tabel_DDBU_Data3[Aktiv_status] &"-" & Tabel_DDBU_Data3[Licenskort] -> 1-2 | Y72: =IF(Tabel_DDBU_Data3[Kegle]+Tabel_DDBU_Data3[Caram_3B]+Tabel_DDBU_Data3[Caram_1B]+Tabel_DDBU_Data3[Caram_Fri]>0,1,0) -> 1
A73: 115171 | B73: Flemming | C73: Kofoed Hansen | D73: =Tabel_DDBU_Data3[Fornavn]&" "&Tabel_DDBU_Data3[Efternavn] -> Flemming Kofoed Hansen | E73: 001 | F73: Nexø Billard Klub | G73: =VALUE(Tabel_DDBU_Data3[Klubnr]) -> 1 | H73: Nexø BK | I73: 6400 | J73: =IF(Tabel_DDBU_Data3[Kegle]>0,Tabel_DDBU_Data3[Kegle]/1000,"") -> 6.4 | L73: =IF(Tabel_DDBU_Data3[Caram_3B]>0,Tabel_DDBU_Data3[Caram_3B]/1000,"") ->  | N73: =IF(Tabel_DDBU_Data3[Caram_1B]>0,Tabel_DDBU_Data3[Caram_1B]/1000,"") ->  | O73: 540 | P73: =IF(Tabel_DDBU_Data3[Caram_Fri]>0,Tabel_DDBU_Data3[Caram_Fri]/1000,"") -> 0.54 | S73: 1 | T73: 2 | U73: 1949-05-20 | X73: =Tabel_DDBU_Data3[Aktiv_status] &"-" & Tabel_DDBU_Data3[Licenskort] -> 1-2 | Y73: =IF(Tabel_DDBU_Data3[Kegle]+Tabel_DDBU_Data3[Caram_3B]+Tabel_DDBU_Data3[Caram_1B]+Tabel_DDBU_Data3[Caram_Fri]>0,1,0) -> 1
A74: 115447 | B74: Carsten | C74: Håkansson | D74: =Tabel_DDBU_Data3[Fornavn]&" "&Tabel_DDBU_Data3[Efternavn] -> Carsten Håkansson | E74: 001 | F74: Nexø Billard Klub | G74: =VALUE(Tabel_DDBU_Data3[Klubnr]) -> 1 | H74: Nexø BK | I74: 14120 | J74: =IF(Tabel_DDBU_Data3[Kegle]>0,Tabel_DDBU_Data3[Kegle]/1000,"") -> 14.12 | L74: =IF(Tabel_DDBU_Data3[Caram_3B]>0,Tabel_DDBU_Data3[Caram_3B]/1000,"") ->  | N74: =IF(Tabel_DDBU_Data3[Caram_1B]>0,Tabel_DDBU_Data3[Caram_1B]/1000,"") ->  | O74: 990 | P74: =IF(Tabel_DDBU_Data3[Caram_Fri]>0,Tabel_DDBU_Data3[Caram_Fri]/1000,"") -> 0.99 | S74: 1 | T74: 2 | U74: 1945-06-21 | X74: =Tabel_DDBU_Data3[Aktiv_status] &"-" & Tabel_DDBU_Data3[Licenskort] -> 1-2 | Y74: =IF(Tabel_DDBU_Data3[Kegle]+Tabel_DDBU_Data3[Caram_3B]+Tabel_DDBU_Data3[Caram_1B]+Tabel_DDBU_Data3[Caram_Fri]>0,1,0) -> 1
A75: 115497 | B75: Aksel | C75: Lorentzen | D75: =Tabel_DDBU_Data3[Fornavn]&" "&Tabel_DDBU_Data3[Efternavn] -> Aksel Lorentzen | E75: 001 | F75: Nexø Billard Klub | G75: =VALUE(Tabel_DDBU_Data3[Klubnr]) -> 1 | H75: Nexø BK | J75: =IF(Tabel_DDBU_Data3[Kegle]>0,Tabel_DDBU_Data3[Kegle]/1000,"") ->  | L75: =IF(Tabel_DDBU_Data3[Caram_3B]>0,Tabel_DDBU_Data3[Caram_3B]/1000,"") ->  | N75: =IF(Tabel_DDBU_Data3[Caram_1B]>0,Tabel_DDBU_Data3[Caram_1B]/1000,"") ->  | P75: =IF(Tabel_DDBU_Data3[Caram_Fri]>0,Tabel_DDBU_Data3[Caram_Fri]/1000,"") ->  | S75: 0 | T75: 0 | U75: 1937-08-21 | X75: =Tabel_DDBU_Data3[Aktiv_status] &"-" & Tabel_DDBU_Data3[Licenskort] -> 0-0 | Y75: =IF(Tabel_DDBU_Data3[Kegle]+Tabel_DDBU_Data3[Caram_3B]+Tabel_DDBU_Data3[Caram_1B]+Tabel_DDBU_Data3[Caram_Fri]>0,1,0) -> 0
A76: 116813 | B76: Flemming | C76: Andersen | D76: =Tabel_DDBU_Data3[Fornavn]&" "&Tabel_DDBU_Data3[Efternavn] -> Flemming Andersen | E76: 001 | F76: Nexø Billard Klub | G76: =VALUE(Tabel_DDBU_Data3[Klubnr]) -> 1 | H76: Nexø BK | I76: 4890 | J76: =IF(Tabel_DDBU_Data3[Kegle]>0,Tabel_DDBU_Data3[Kegle]/1000,"") -> 4.89 | L76: =IF(Tabel_DDBU_Data3[Caram_3B]>0,Tabel_DDBU_Data3[Caram_3B]/1000,"") ->  | N76: =IF(Tabel_DDBU_Data3[Caram_1B]>0,Tabel_DDBU_Data3[Caram_1B]/1000,"") ->  | P76: =IF(Tabel_DDBU_Data3[Caram_Fri]>0,Tabel_DDBU_Data3[Caram_Fri]/1000,"") ->  | S76: 1 | T76: 2 | U76: 1938-09-26 | X76: =Tabel_DDBU_Data3[Aktiv_status] &"-" & Tabel_DDBU_Data3[Licenskort] -> 1-2 | Y76: =IF(Tabel_DDBU_Data3[Kegle]+Tabel_DDBU_Data3[Caram_3B]+Tabel_DDBU_Data3[Caram_1B]+Tabel_DDBU_Data3[Caram_Fri]>0,1,0) -> 1
A77: 116824 | B77: Claus | C77: Andreasen | D77: =Tabel_DDBU_Data3[Fornavn]&" "&Tabel_DDBU_Data3[Efternavn] -> Claus Andreasen | E77: 001 | F77: Nexø Billard Klub | G77: =VALUE(Tabel_DDBU_Data3[Klubnr]) -> 1 | H77: Nexø BK | I77: 30720 | J77: =IF(Tabel_DDBU_Data3[Kegle]>0,Tabel_DDBU_Data3[Kegle]/1000,"") -> 30.72 | L77: =IF(Tabel_DDBU_Data3[Caram_3B]>0,Tabel_DDBU_Data3[Caram_3B]/1000,"") ->  | M77: 1250 | N77: =IF(Tabel_DDBU_Data3[Caram_1B]>0,Tabel_DDBU_Data3[Caram_1B]/1000,"") -> 1.25 | O77: 5630 | P77: =IF(Tabel_DDBU_Data3[Caram_Fri]>0,Tabel_DDBU_Data3[Caram_Fri]/1000,"") -> 5.63 | S77: 1 | T77: 2 | U77: 1964-09-26 | V77: 3720 | X77: =Tabel_DDBU_Data3[Aktiv_status] &"-" & Tabel_DDBU_Data3[Licenskort] -> 1-2 | Y77: =IF(Tabel_DDBU_Data3[Kegle]+Tabel_DDBU_Data3[Caram_3B]+Tabel_DDBU_Data3[Caram_1B]+Tabel_DDBU_Data3[Caram_Fri]>0,1,0) -> 1
A78: 117258 | B78: Carsten | C78: Madsen | D78: =Tabel_DDBU_Data3[Fornavn]&" "&Tabel_DDBU_Data3[Efternavn] -> Carsten Madsen | E78: 001 | F78: Nexø Billard Klub | G78: =VALUE(Tabel_DDBU_Data3[Klubnr]) -> 1 | H78: Nexø BK | J78: =IF(Tabel_DDBU_Data3[Kegle]>0,Tabel_DDBU_Data3[Kegle]/1000,"") ->  | L78: =IF(Tabel_DDBU_Data3[Caram_3B]>0,Tabel_DDBU_Data3[Caram_3B]/1000,"") ->  | N78: =IF(Tabel_DDBU_Data3[Caram_1B]>0,Tabel_DDBU_Data3[Caram_1B]/1000,"") ->  | P78: =IF(Tabel_DDBU_Data3[Caram_Fri]>0,Tabel_DDBU_Data3[Caram_Fri]/1000,"") ->  | S78: 0 | T78: 0 | U78: 1952-05-28 | X78: =Tabel_DDBU_Data3[Aktiv_status] &"-" & Tabel_DDBU_Data3[Licenskort] -> 0-0 | Y78: =IF(Tabel_DDBU_Data3[Kegle]+Tabel_DDBU_Data3[Caram_3B]+Tabel_DDBU_Data3[Caram_1B]+Tabel_DDBU_Data3[Caram_Fri]>0,1,0) -> 0
A79: 117446 | B79: Poul | C79: Dam | D79: =Tabel_DDBU_Data3[Fornavn]&" "&Tabel_DDBU_Data3[Efternavn] -> Poul Dam | E79: 001 | F79: Nexø Billard Klub | G79: =VALUE(Tabel_DDBU_Data3[Klubnr]) -> 1 | H79: Nexø BK | I79: 4060 | J79: =IF(Tabel_DDBU_Data3[Kegle]>0,Tabel_DDBU_Data3[Kegle]/1000,"") -> 4.06 | L79: =IF(Tabel_DDBU_Data3[Caram_3B]>0,Tabel_DDBU_Data3[Caram_3B]/1000,"") ->  | N79: =IF(Tabel_DDBU_Data3[Caram_1B]>0,Tabel_DDBU_Data3[Caram_1B]/1000,"") ->  | P79: =IF(Tabel_DDBU_Data3[Caram_Fri]>0,Tabel_DDBU_Data3[Caram_Fri]/1000,"") ->  | S79: 0 | T79: 0 | U79: 1948-01-29 | X79: =Tabel_DDBU_Data3[Aktiv_status] &"-" & Tabel_DDBU_Data3[Licenskort] -> 0-0 | Y79: =IF(Tabel_DDBU_Data3[Kegle]+Tabel_DDBU_Data3[Caram_3B]+Tabel_DDBU_Data3[Caram_1B]+Tabel_DDBU_Data3[Caram_Fri]>0,1,0) -> 1
A80: 117556 | B80: Egon | C80: Pedersen | D80: =Tabel_DDBU_Data3[Fornavn]&" "&Tabel_DDBU_Data3[Efternavn] -> Egon Pedersen | E80: 001 | F80: Nexø Billard Klub | G80: =VALUE(Tabel_DDBU_Data3[Klubnr]) -> 1 | H80: Nexø BK | J80: =IF(Tabel_DDBU_Data3[Kegle]>0,Tabel_DDBU_Data3[Kegle]/1000,"") ->  | L80: =IF(Tabel_DDBU_Data3[Caram_3B]>0,Tabel_DDBU_Data3[Caram_3B]/1000,"") ->  | N80: =IF(Tabel_DDBU_Data3[Caram_1B]>0,Tabel_DDBU_Data3[Caram_1B]/1000,"") ->  | P80: =IF(Tabel_DDBU_Data3[Caram_Fri]>0,Tabel_DDBU_Data3[Caram_Fri]/1000,"") ->  | S80: 0 | T80: 0 | U80: 1933-07-29 | X80: =Tabel_DDBU_Data3[Aktiv_status] &"-" & Tabel_DDBU_Data3[Licenskort] -> 0-0 | Y80: =IF(Tabel_DDBU_Data3[Kegle]+Tabel_DDBU_Data3[Caram_3B]+Tabel_DDBU_Data3[Caram_1B]+Tabel_DDBU_Data3[Caram_Fri]>0,1,0) -> 0
A81: 118412 | B81: Freddy | C81: Edwards | D81: =Tabel_DDBU_Data3[Fornavn]&" "&Tabel_DDBU_Data3[Efternavn] -> Freddy Edwards | E81: 001 | F81: Nexø Billard Klub | G81: =VALUE(Tabel_DDBU_Data3[Klubnr]) -> 1 | H81: Nexø BK | I81: 45580 | J81: =IF(Tabel_DDBU_Data3[Kegle]>0,Tabel_DDBU_Data3[Kegle]/1000,"") -> 45.58 | L81: =IF(Tabel_DDBU_Data3[Caram_3B]>0,Tabel_DDBU_Data3[Caram_3B]/1000,"") ->  | M81: 1060 | N81: =IF(Tabel_DDBU_Data3[Caram_1B]>0,Tabel_DDBU_Data3[Caram_1B]/1000,"") -> 1.06 | O81: 1830 | P81: =IF(Tabel_DDBU_Data3[Caram_Fri]>0,Tabel_DDBU_Data3[Caram_Fri]/1000,"") -> 1.83 | S81: 1 | T81: 2 | U81: 1951-03-02 | X81: =Tabel_DDBU_Data3[Aktiv_status] &"-" & Tabel_DDBU_Data3[Licenskort] -> 1-2 | Y81: =IF(Tabel_DDBU_Data3[Kegle]+Tabel_DDBU_Data3[Caram_3B]+Tabel_DDBU_Data3[Caram_1B]+Tabel_DDBU_Data3[Caram_Fri]>0,1,0) -> 1
A82: 118786 | B82: Bernt | C82: Andersen | D82: =Tabel_DDBU_Data3[Fornavn]&" "&Tabel_DDBU_Data3[Efternavn] -> Bernt Andersen | E82: 001 | F82: Nexø Billard Klub | G82: =VALUE(Tabel_DDBU_Data3[Klubnr]) -> 1 | H82: Nexø BK | I82: 5870 | J82: =IF(Tabel_DDBU_Data3[Kegle]>0,Tabel_DDBU_Data3[Kegle]/1000,"") -> 5.87 | L82: =IF(Tabel_DDBU_Data3[Caram_3B]>0,Tabel_DDBU_Data3[Caram_3B]/1000,"") ->  | N82: =IF(Tabel_DDBU_Data3[Caram_1B]>0,Tabel_DDBU_Data3[Caram_1B]/1000,"") ->  | P82: =IF(Tabel_DDBU_Data3[Caram_Fri]>0,Tabel_DDBU_Data3[Caram_Fri]/1000,"") ->  | S82: 1 | T82: 2 | U82: 1944-12-20 | X82: =Tabel_DDBU_Data3[Aktiv_status] &"-" & Tabel_DDBU_Data3[Licenskort] -> 1-2 | Y82: =IF(Tabel_DDBU_Data3[Kegle]+Tabel_DDBU_Data3[Caram_3B]+Tabel_DDBU_Data3[Caram_1B]+Tabel_DDBU_Data3[Caram_Fri]>0,1,0) -> 1
A83: 118839 | B83: Ebbe | C83: Espersen | D83: =Tabel_DDBU_Data3[Fornavn]&" "&Tabel_DDBU_Data3[Efternavn] -> Ebbe Espersen | E83: 001 | F83: Nexø Billard Klub | G83: =VALUE(Tabel_DDBU_Data3[Klubnr]) -> 1 | H83: Nexø BK | J83: =IF(Tabel_DDBU_Data3[Kegle]>0,Tabel_DDBU_Data3[Kegle]/1000,"") ->  | L83: =IF(Tabel_DDBU_Data3[Caram_3B]>0,Tabel_DDBU_Data3[Caram_3B]/1000,"") ->  | N83: =IF(Tabel_DDBU_Data3[Caram_1B]>0,Tabel_DDBU_Data3[Caram_1B]/1000,"") ->  | P83: =IF(Tabel_DDBU_Data3[Caram_Fri]>0,Tabel_DDBU_Data3[Caram_Fri]/1000,"") ->  | S83: 0 | T83: 0 | U83: 1939-12-18 | X83: =Tabel_DDBU_Data3[Aktiv_status] &"-" & Tabel_DDBU_Data3[Licenskort] -> 0-0 | Y83: =IF(Tabel_DDBU_Data3[Kegle]+Tabel_DDBU_Data3[Caram_3B]+Tabel_DDBU_Data3[Caram_1B]+Tabel_DDBU_Data3[Caram_Fri]>0,1,0) -> 0
A84: 118840 | B84: Svend Åge | C84: Grønnegaard | D84: =Tabel_DDBU_Data3[Fornavn]&" "&Tabel_DDBU_Data3[Efternavn] -> Svend Åge Grønnegaard | E84: 001 | F84: Nexø Billard Klub | G84: =VALUE(Tabel_DDBU_Data3[Klubnr]) -> 1 | H84: Nexø BK | J84: =IF(Tabel_DDBU_Data3[Kegle]>0,Tabel_DDBU_Data3[Kegle]/1000,"") ->  | L84: =IF(Tabel_DDBU_Data3[Caram_3B]>0,Tabel_DDBU_Data3[Caram_3B]/1000,"") ->  | N84: =IF(Tabel_DDBU_Data3[Caram_1B]>0,Tabel_DDBU_Data3[Caram_1B]/1000,"") ->  | P84: =IF(Tabel_DDBU_Data3[Caram_Fri]>0,Tabel_DDBU_Data3[Caram_Fri]/1000,"") ->  | S84: 0 | T84: 0 | U84: 1947-10-17 | X84: =Tabel_DDBU_Data3[Aktiv_status] &"-" & Tabel_DDBU_Data3[Licenskort] -> 0-0 | Y84: =IF(Tabel_DDBU_Data3[Kegle]+Tabel_DDBU_Data3[Caram_3B]+Tabel_DDBU_Data3[Caram_1B]+Tabel_DDBU_Data3[Caram_Fri]>0,1,0) -> 0
A85: 118841 | B85: Steen | C85: Grønnegaard | D85: =Tabel_DDBU_Data3[Fornavn]&" "&Tabel_DDBU_Data3[Efternavn] -> Steen Grønnegaard | E85: 001 | F85: Nexø Billard Klub | G85: =VALUE(Tabel_DDBU_Data3[Klubnr]) -> 1 | H85: Nexø BK | I85: 3980 | J85: =IF(Tabel_DDBU_Data3[Kegle]>0,Tabel_DDBU_Data3[Kegle]/1000,"") -> 3.98 | L85: =IF(Tabel_DDBU_Data3[Caram_3B]>0,Tabel_DDBU_Data3[Caram_3B]/1000,"") ->  | N85: =IF(Tabel_DDBU_Data3[Caram_1B]>0,Tabel_DDBU_Data3[Caram_1B]/1000,"") ->  | P85: =IF(Tabel_DDBU_Data3[Caram_Fri]>0,Tabel_DDBU_Data3[Caram_Fri]/1000,"") ->  | S85: 1 | T85: 2 | U85: 1968-04-02 | X85: =Tabel_DDBU_Data3[Aktiv_status] &"-" & Tabel_DDBU_Data3[Licenskort] -> 1-2 | Y85: =IF(Tabel_DDBU_Data3[Kegle]+Tabel_DDBU_Data3[Caram_3B]+Tabel_DDBU_Data3[Caram_1B]+Tabel_DDBU_Data3[Caram_Fri]>0,1,0) -> 1
A86: 118842 | B86: Morten | C86: Qwist | D86: =Tabel_DDBU_Data3[Fornavn]&" "&Tabel_DDBU_Data3[Efternavn] -> Morten Qwist | E86: 001 | F86: Nexø Billard Klub | G86: =VALUE(Tabel_DDBU_Data3[Klubnr]) -> 1 | H86: Nexø BK | J86: =IF(Tabel_DDBU_Data3[Kegle]>0,Tabel_DDBU_Data3[Kegle]/1000,"") ->  | L86: =IF(Tabel_DDBU_Data3[Caram_3B]>0,Tabel_DDBU_Data3[Caram_3B]/1000,"") ->  | N86: =IF(Tabel_DDBU_Data3[Caram_1B]>0,Tabel_DDBU_Data3[Caram_1B]/1000,"") ->  | P86: =IF(Tabel_DDBU_Data3[Caram_Fri]>0,Tabel_DDBU_Data3[Caram_Fri]/1000,"") ->  | S86: 0 | T86: 0 | U86: 1943-02-16 | X86: =Tabel_DDBU_Data3[Aktiv_status] &"-" & Tabel_DDBU_Data3[Licenskort] -> 0-0 | Y86: =IF(Tabel_DDBU_Data3[Kegle]+Tabel_DDBU_Data3[Caram_3B]+Tabel_DDBU_Data3[Caram_1B]+Tabel_DDBU_Data3[Caram_Fri]>0,1,0) -> 0
A87: 118843 | B87: H C | C87: Buhl | D87: =Tabel_DDBU_Data3[Fornavn]&" "&Tabel_DDBU_Data3[Efternavn] -> H C Buhl | E87: 001 | F87: Nexø Billard Klub | G87: =VALUE(Tabel_DDBU_Data3[Klubnr]) -> 1 | H87: Nexø BK | J87: =IF(Tabel_DDBU_Data3[Kegle]>0,Tabel_DDBU_Data3[Kegle]/1000,"") ->  | L87: =IF(Tabel_DDBU_Data3[Caram_3B]>0,Tabel_DDBU_Data3[Caram_3B]/1000,"") ->  | N87: =IF(Tabel_DDBU_Data3[Caram_1B]>0,Tabel_DDBU_Data3[Caram_1B]/1000,"") ->  | P87: =IF(Tabel_DDBU_Data3[Caram_Fri]>0,Tabel_DDBU_Data3[Caram_Fri]/1000,"") ->  | S87: 0 | T87: 0 | U87: 1942-03-24 | X87: =Tabel_DDBU_Data3[Aktiv_status] &"-" & Tabel_DDBU_Data3[Licenskort] -> 0-0 | Y87: =IF(Tabel_DDBU_Data3[Kegle]+Tabel_DDBU_Data3[Caram_3B]+Tabel_DDBU_Data3[Caram_1B]+Tabel_DDBU_Data3[Caram_Fri]>0,1,0) -> 0
A88: 118911 | B88: Bjarne | C88: Møller | D88: =Tabel_DDBU_Data3[Fornavn]&" "&Tabel_DDBU_Data3[Efternavn] -> Bjarne Møller | E88: 001 | F88: Nexø Billard Klub | G88: =VALUE(Tabel_DDBU_Data3[Klubnr]) -> 1 | H88: Nexø BK | I88: 3020 | J88: =IF(Tabel_DDBU_Data3[Kegle]>0,Tabel_DDBU_Data3[Kegle]/1000,"") -> 3.02 | L88: =IF(Tabel_DDBU_Data3[Caram_3B]>0,Tabel_DDBU_Data3[Caram_3B]/1000,"") ->  | N88: =IF(Tabel_DDBU_Data3[Caram_1B]>0,Tabel_DDBU_Data3[Caram_1B]/1000,"") ->  | P88: =IF(Tabel_DDBU_Data3[Caram_Fri]>0,Tabel_DDBU_Data3[Caram_Fri]/1000,"") ->  | S88: 0 | T88: 0 | U88: 1956-01-09 | X88: =Tabel_DDBU_Data3[Aktiv_status] &"-" & Tabel_DDBU_Data3[Licenskort] -> 0-0 | Y88: =IF(Tabel_DDBU_Data3[Kegle]+Tabel_DDBU_Data3[Caram_3B]+Tabel_DDBU_Data3[Caram_1B]+Tabel_DDBU_Data3[Caram_Fri]>0,1,0) -> 1
A89: 119076 | B89: Jeanne | C89: Andersen | D89: =Tabel_DDBU_Data3[Fornavn]&" "&Tabel_DDBU_Data3[Efternavn] -> Jeanne Andersen | E89: 001 | F89: Nexø Billard Klub | G89: =VALUE(Tabel_DDBU_Data3[Klubnr]) -> 1 | H89: Nexø BK | J89: =IF(Tabel_DDBU_Data3[Kegle]>0,Tabel_DDBU_Data3[Kegle]/1000,"") ->  | L89: =IF(Tabel_DDBU_Data3[Caram_3B]>0,Tabel_DDBU_Data3[Caram_3B]/1000,"") ->  | N89: =IF(Tabel_DDBU_Data3[Caram_1B]>0,Tabel_DDBU_Data3[Caram_1B]/1000,"") ->  | P89: =IF(Tabel_DDBU_Data3[Caram_Fri]>0,Tabel_DDBU_Data3[Caram_Fri]/1000,"") ->  | S89: 0 | T89: 0 | U89: 1981-09-07 | X89: =Tabel_DDBU_Data3[Aktiv_status] &"-" & Tabel_DDBU_Data3[Licenskort] -> 0-0 | Y89: =IF(Tabel_DDBU_Data3[Kegle]+Tabel_DDBU_Data3[Caram_3B]+Tabel_DDBU_Data3[Caram_1B]+Tabel_DDBU_Data3[Caram_Fri]>0,1,0) -> 0
A90: 119164 | B90: Lars | C90: Lie | D90: =Tabel_DDBU_Data3[Fornavn]&" "&Tabel_DDBU_Data3[Efternavn] -> Lars Lie | E90: 001 | F90: Nexø Billard Klub | G90: =VALUE(Tabel_DDBU_Data3[Klubnr]) -> 1 | H90: Nexø BK | J90: =IF(Tabel_DDBU_Data3[Kegle]>0,Tabel_DDBU_Data3[Kegle]/1000,"") ->  | L90: =IF(Tabel_DDBU_Data3[Caram_3B]>0,Tabel_DDBU_Data3[Caram_3B]/1000,"") ->  | N90: =IF(Tabel_DDBU_Data3[Caram_1B]>0,Tabel_DDBU_Data3[Caram_1B]/1000,"") ->  | P90: =IF(Tabel_DDBU_Data3[Caram_Fri]>0,Tabel_DDBU_Data3[Caram_Fri]/1000,"") ->  | S90: 0 | T90: 0 | U90: 1963-05-12 | X90: =Tabel_DDBU_Data3[Aktiv_status] &"-" & Tabel_DDBU_Data3[Licenskort] -> 0-0 | Y90: =IF(Tabel_DDBU_Data3[Kegle]+Tabel_DDBU_Data3[Caram_3B]+Tabel_DDBU_Data3[Caram_1B]+Tabel_DDBU_Data3[Caram_Fri]>0,1,0) -> 0
A91: 119165 | B91: Peter | C91: Høst | D91: =Tabel_DDBU_Data3[Fornavn]&" "&Tabel_DDBU_Data3[Efternavn] -> Peter Høst | E91: 001 | F91: Nexø Billard Klub | G91: =VALUE(Tabel_DDBU_Data3[Klubnr]) -> 1 | H91: Nexø BK | I91: 9040 | J91: =IF(Tabel_DDBU_Data3[Kegle]>0,Tabel_DDBU_Data3[Kegle]/1000,"") -> 9.04 | K91: 213 | L91: =IF(Tabel_DDBU_Data3[Caram_3B]>0,Tabel_DDBU_Data3[Caram_3B]/1000,"") -> 0.213 | N91: =IF(Tabel_DDBU_Data3[Caram_1B]>0,Tabel_DDBU_Data3[Caram_1B]/1000,"") ->  | O91: 720 | P91: =IF(Tabel_DDBU_Data3[Caram_Fri]>0,Tabel_DDBU_Data3[Caram_Fri]/1000,"") -> 0.72 | S91: 1 | T91: 2 | U91: 1950-10-01 | X91: =Tabel_DDBU_Data3[Aktiv_status] &"-" & Tabel_DDBU_Data3[Licenskort] -> 1-2 | Y91: =IF(Tabel_DDBU_Data3[Kegle]+Tabel_DDBU_Data3[Caram_3B]+Tabel_DDBU_Data3[Caram_1B]+Tabel_DDBU_Data3[Caram_Fri]>0,1,0) -> 1
A92: 119356 | B92: Tor-Bastian | C92: Hansen | D92: =Tabel_DDBU_Data3[Fornavn]&" "&Tabel_DDBU_Data3[Efternavn] -> Tor-Bastian Hansen | E92: 001 | F92: Nexø Billard Klub | G92: =VALUE(Tabel_DDBU_Data3[Klubnr]) -> 1 | H92: Nexø BK | J92: =IF(Tabel_DDBU_Data3[Kegle]>0,Tabel_DDBU_Data3[Kegle]/1000,"") ->  | L92: =IF(Tabel_DDBU_Data3[Caram_3B]>0,Tabel_DDBU_Data3[Caram_3B]/1000,"") ->  | N92: =IF(Tabel_DDBU_Data3[Caram_1B]>0,Tabel_DDBU_Data3[Caram_1B]/1000,"") ->  | P92: =IF(Tabel_DDBU_Data3[Caram_Fri]>0,Tabel_DDBU_Data3[Caram_Fri]/1000,"") ->  | S92: 0 | T92: 0 | U92: 1997-07-09 | X92: =Tabel_DDBU_Data3[Aktiv_status] &"-" & Tabel_DDBU_Data3[Licenskort] -> 0-0 | Y92: =IF(Tabel_DDBU_Data3[Kegle]+Tabel_DDBU_Data3[Caram_3B]+Tabel_DDBU_Data3[Caram_1B]+Tabel_DDBU_Data3[Caram_Fri]>0,1,0) -> 0
A93: 119357 | B93: Lisbeth | C93: Møller | D93: =Tabel_DDBU_Data3[Fornavn]&" "&Tabel_DDBU_Data3[Efternavn] -> Lisbeth Møller | E93: 001 | F93: Nexø Billard Klub | G93: =VALUE(Tabel_DDBU_Data3[Klubnr]) -> 1 | H93: Nexø BK | J93: =IF(Tabel_DDBU_Data3[Kegle]>0,Tabel_DDBU_Data3[Kegle]/1000,"") ->  | L93: =IF(Tabel_DDBU_Data3[Caram_3B]>0,Tabel_DDBU_Data3[Caram_3B]/1000,"") ->  | N93: =IF(Tabel_DDBU_Data3[Caram_1B]>0,Tabel_DDBU_Data3[Caram_1B]/1000,"") ->  | P93: =IF(Tabel_DDBU_Data3[Caram_Fri]>0,Tabel_DDBU_Data3[Caram_Fri]/1000,"") ->  | S93: 0 | T93: 0 | U93: 1954-11-25 | X93: =Tabel_DDBU_Data3[Aktiv_status] &"-" & Tabel_DDBU_Data3[Licenskort] -> 0-0 | Y93: =IF(Tabel_DDBU_Data3[Kegle]+Tabel_DDBU_Data3[Caram_3B]+Tabel_DDBU_Data3[Caram_1B]+Tabel_DDBU_Data3[Caram_Fri]>0,1,0) -> 0
A94: 119358 | B94: Søren | C94: Olsen | D94: =Tabel_DDBU_Data3[Fornavn]&" "&Tabel_DDBU_Data3[Efternavn] -> Søren Olsen | E94: 001 | F94: Nexø Billard Klub | G94: =VALUE(Tabel_DDBU_Data3[Klubnr]) -> 1 | H94: Nexø BK | I94: 2720 | J94: =IF(Tabel_DDBU_Data3[Kegle]>0,Tabel_DDBU_Data3[Kegle]/1000,"") -> 2.72 | L94: =IF(Tabel_DDBU_Data3[Caram_3B]>0,Tabel_DDBU_Data3[Caram_3B]/1000,"") ->  | N94: =IF(Tabel_DDBU_Data3[Caram_1B]>0,Tabel_DDBU_Data3[Caram_1B]/1000,"") ->  | P94: =IF(Tabel_DDBU_Data3[Caram_Fri]>0,Tabel_DDBU_Data3[Caram_Fri]/1000,"") ->  | S94: 0 | T94: 0 | U94: 1961-06-19 | X94: =Tabel_DDBU_Data3[Aktiv_status] &"-" & Tabel_DDBU_Data3[Licenskort] -> 0-0 | Y94: =IF(Tabel_DDBU_Data3[Kegle]+Tabel_DDBU_Data3[Caram_3B]+Tabel_DDBU_Data3[Caram_1B]+Tabel_DDBU_Data3[Caram_Fri]>0,1,0) -> 1
A95: 119584 | B95: Martin | C95: Jacobsen | D95: =Tabel_DDBU_Data3[Fornavn]&" "&Tabel_DDBU_Data3[Efternavn] -> Martin Jacobsen | E95: 001 | F95: Nexø Billard Klub | G95: =VALUE(Tabel_DDBU_Data3[Klubnr]) -> 1 | H95: Nexø BK | I95: 8410 | J95: =IF(Tabel_DDBU_Data3[Kegle]>0,Tabel_DDBU_Data3[Kegle]/1000,"") -> 8.41 | L95: =IF(Tabel_DDBU_Data3[Caram_3B]>0,Tabel_DDBU_Data3[Caram_3B]/1000,"") ->  | N95: =IF(Tabel_DDBU_Data3[Caram_1B]>0,Tabel_DDBU_Data3[Caram_1B]/1000,"") ->  | O95: 620 | P95: =IF(Tabel_DDBU_Data3[Caram_Fri]>0,Tabel_DDBU_Data3[Caram_Fri]/1000,"") -> 0.62 | S95: 0 | T95: 0 | U95: 1960-05-19 | X95: =Tabel_DDBU_Data3[Aktiv_status] &"-" & Tabel_DDBU_Data3[Licenskort] -> 0-0 | Y95: =IF(Tabel_DDBU_Data3[Kegle]+Tabel_DDBU_Data3[Caram_3B]+Tabel_DDBU_Data3[Caram_1B]+Tabel_DDBU_Data3[Caram_Fri]>0,1,0) -> 1
A96: 120208 | B96: Kristina | C96: Hald | D96: =Tabel_DDBU_Data3[Fornavn]&" "&Tabel_DDBU_Data3[Efternavn] -> Kristina Hald | E96: 001 | F96: Nexø Billard Klub | G96: =VALUE(Tabel_DDBU_Data3[Klubnr]) -> 1 | H96: Nexø BK | I96: 3960 | J96: =IF(Tabel_DDBU_Data3[Kegle]>0,Tabel_DDBU_Data3[Kegle]/1000,"") -> 3.96 | L96: =IF(Tabel_DDBU_Data3[Caram_3B]>0,Tabel_DDBU_Data3[Caram_3B]/1000,"") ->  | N96: =IF(Tabel_DDBU_Data3[Caram_1B]>0,Tabel_DDBU_Data3[Caram_1B]/1000,"") ->  | P96: =IF(Tabel_DDBU_Data3[Caram_Fri]>0,Tabel_DDBU_Data3[Caram_Fri]/1000,"") ->  | S96: 0 | T96: 0 | U96: 1992-08-21 | X96: =Tabel_DDBU_Data3[Aktiv_status] &"-" & Tabel_DDBU_Data3[Licenskort] -> 0-0 | Y96: =IF(Tabel_DDBU_Data3[Kegle]+Tabel_DDBU_Data3[Caram_3B]+Tabel_DDBU_Data3[Caram_1B]+Tabel_DDBU_Data3[Caram_Fri]>0,1,0) -> 1
A97: 120209 | B97: Leon | C97: Ronesfelt | D97: =Tabel_DDBU_Data3[Fornavn]&" "&Tabel_DDBU_Data3[Efternavn] -> Leon Ronesfelt | E97: 001 | F97: Nexø Billard Klub | G97: =VALUE(Tabel_DDBU_Data3[Klubnr]) -> 1 | H97: Nexø BK | I97: 11190 | J97: =IF(Tabel_DDBU_Data3[Kegle]>0,Tabel_DDBU_Data3[Kegle]/1000,"") -> 11.19 | L97: =IF(Tabel_DDBU_Data3[Caram_3B]>0,Tabel_DDBU_Data3[Caram_3B]/1000,"") ->  | N97: =IF(Tabel_DDBU_Data3[Caram_1B]>0,Tabel_DDBU_Data3[Caram_1B]/1000,"") ->  | P97: =IF(Tabel_DDBU_Data3[Caram_Fri]>0,Tabel_DDBU_Data3[Caram_Fri]/1000,"") ->  | S97: 0 | T97: 0 | U97: 1972-09-03 | X97: =Tabel_DDBU_Data3[Aktiv_status] &"-" & Tabel_DDBU_Data3[Licenskort] -> 0-0 | Y97: =IF(Tabel_DDBU_Data3[Kegle]+Tabel_DDBU_Data3[Caram_3B]+Tabel_DDBU_Data3[Caram_1B]+Tabel_DDBU_Data3[Caram_Fri]>0,1,0) -> 1
A98: 120210 | B98: Eddie | C98: Bruun | D98: =Tabel_DDBU_Data3[Fornavn]&" "&Tabel_DDBU_Data3[Efternavn] -> Eddie Bruun | E98: 001 | F98: Nexø Billard Klub | G98: =VALUE(Tabel_DDBU_Data3[Klubnr]) -> 1 | H98: Nexø BK | I98: 4730 | J98: =IF(Tabel_DDBU_Data3[Kegle]>0,Tabel_DDBU_Data3[Kegle]/1000,"") -> 4.73 | L98: =IF(Tabel_DDBU_Data3[Caram_3B]>0,Tabel_DDBU_Data3[Caram_3B]/1000,"") ->  | N98: =IF(Tabel_DDBU_Data3[Caram_1B]>0,Tabel_DDBU_Data3[Caram_1B]/1000,"") ->  | P98: =IF(Tabel_DDBU_Data3[Caram_Fri]>0,Tabel_DDBU_Data3[Caram_Fri]/1000,"") ->  | S98: 1 | T98: 2 | U98: 1977-11-15 | X98: =Tabel_DDBU_Data3[Aktiv_status] &"-" & Tabel_DDBU_Data3[Licenskort] -> 1-2 | Y98: =IF(Tabel_DDBU_Data3[Kegle]+Tabel_DDBU_Data3[Caram_3B]+Tabel_DDBU_Data3[Caram_1B]+Tabel_DDBU_Data3[Caram_Fri]>0,1,0) -> 1
A99: 120710 | B99: Jesper | C99: Larsen | D99: =Tabel_DDBU_Data3[Fornavn]&" "&Tabel_DDBU_Data3[Efternavn] -> Jesper Larsen | E99: 001 | F99: Nexø Billard Klub | G99: =VALUE(Tabel_DDBU_Data3[Klubnr]) -> 1 | H99: Nexø BK | I99: 7070 | J99: =IF(Tabel_DDBU_Data3[Kegle]>0,Tabel_DDBU_Data3[Kegle]/1000,"") -> 7.07 | L99: =IF(Tabel_DDBU_Data3[Caram_3B]>0,Tabel_DDBU_Data3[Caram_3B]/1000,"") ->  | N99: =IF(Tabel_DDBU_Data3[Caram_1B]>0,Tabel_DDBU_Data3[Caram_1B]/1000,"") ->  | P99: =IF(Tabel_DDBU_Data3[Caram_Fri]>0,Tabel_DDBU_Data3[Caram_Fri]/1000,"") ->  | S99: 1 | T99: 2 | U99: 1971-09-29 | X99: =Tabel_DDBU_Data3[Aktiv_status] &"-" & Tabel_DDBU_Data3[Licenskort] -> 1-2 | Y99: =IF(Tabel_DDBU_Data3[Kegle]+Tabel_DDBU_Data3[Caram_3B]+Tabel_DDBU_Data3[Caram_1B]+Tabel_DDBU_Data3[Caram_Fri]>0,1,0) -> 1
A100: 120760 | B100: Henning | C100: Hjuler | D100: =Tabel_DDBU_Data3[Fornavn]&" "&Tabel_DDBU_Data3[Efternavn] -> Henning Hjuler | E100: 001 | F100: Nexø Billard Klub | G100: =VALUE(Tabel_DDBU_Data3[Klubnr]) -> 1 | H100: Nexø BK | I100: 4610 | J100: =IF(Tabel_DDBU_Data3[Kegle]>0,Tabel_DDBU_Data3[Kegle]/1000,"") -> 4.61 | L100: =IF(Tabel_DDBU_Data3[Caram_3B]>0,Tabel_DDBU_Data3[Caram_3B]/1000,"") ->  | N100: =IF(Tabel_DDBU_Data3[Caram_1B]>0,Tabel_DDBU_Data3[Caram_1B]/1000,"") ->  | P100: =IF(Tabel_DDBU_Data3[Caram_Fri]>0,Tabel_DDBU_Data3[Caram_Fri]/1000,"") ->  | S100: 0 | T100: 0 | U100: 1940-08-15 | X100: =Tabel_DDBU_Data3[Aktiv_status] &"-" & Tabel_DDBU_Data3[Licenskort] -> 0-0 | Y100: =IF(Tabel_DDBU_Data3[Kegle]+Tabel_DDBU_Data3[Caram_3B]+Tabel_DDBU_Data3[Caram_1B]+Tabel_DDBU_Data3[Caram_Fri]>0,1,0) -> 1
A101: 120761 | B101: Kai | C101: Lund-Hansen | D101: =Tabel_DDBU_Data3[Fornavn]&" "&Tabel_DDBU_Data3[Efternavn] -> Kai Lund-Hansen | E101: 001 | F101: Nexø Billard Klub | G101: =VALUE(Tabel_DDBU_Data3[Klubnr]) -> 1 | H101: Nexø BK | I101: 3160 | J101: =IF(Tabel_DDBU_Data3[Kegle]>0,Tabel_DDBU_Data3[Kegle]/1000,"") -> 3.16 | L101: =IF(Tabel_DDBU_Data3[Caram_3B]>0,Tabel_DDBU_Data3[Caram_3B]/1000,"") ->  | N101: =IF(Tabel_DDBU_Data3[Caram_1B]>0,Tabel_DDBU_Data3[Caram_1B]/1000,"") ->  | P101: =IF(Tabel_DDBU_Data3[Caram_Fri]>0,Tabel_DDBU_Data3[Caram_Fri]/1000,"") ->  | S101: 1 | T101: 2 | U101: 1942-03-19 | X101: =Tabel_DDBU_Data3[Aktiv_status] &"-" & Tabel_DDBU_Data3[Licenskort] -> 1-2 | Y101: =IF(Tabel_DDBU_Data3[Kegle]+Tabel_DDBU_Data3[Caram_3B]+Tabel_DDBU_Data3[Caram_1B]+Tabel_DDBU_Data3[Caram_Fri]>0,1,0) -> 1
A102: 120933 | B102: Michael | C102: Funch Hansen | D102: =Tabel_DDBU_Data3[Fornavn]&" "&Tabel_DDBU_Data3[Efternavn] -> Michael Funch Hansen | E102: 001 | F102: Nexø Billard Klub | G102: =VALUE(Tabel_DDBU_Data3[Klubnr]) -> 1 | H102: Nexø BK | J102: =IF(Tabel_DDBU_Data3[Kegle]>0,Tabel_DDBU_Data3[Kegle]/1000,"") ->  | L102: =IF(Tabel_DDBU_Data3[Caram_3B]>0,Tabel_DDBU_Data3[Caram_3B]/1000,"") ->  | N102: =IF(Tabel_DDBU_Data3[Caram_1B]>0,Tabel_DDBU_Data3[Caram_1B]/1000,"") ->  | P102: =IF(Tabel_DDBU_Data3[Caram_Fri]>0,Tabel_DDBU_Data3[Caram_Fri]/1000,"") ->  | S102: 0 | T102: 0 | U102: 1993-05-28 | X102: =Tabel_DDBU_Data3[Aktiv_status] &"-" & Tabel_DDBU_Data3[Licenskort] -> 0-0 | Y102: =IF(Tabel_DDBU_Data3[Kegle]+Tabel_DDBU_Data3[Caram_3B]+Tabel_DDBU_Data3[Caram_1B]+Tabel_DDBU_Data3[Caram_Fri]>0,1,0) -> 0
A103: 120934 | B103: Morten | C103: Funch Hansen | D103: =Tabel_DDBU_Data3[Fornavn]&" "&Tabel_DDBU_Data3[Efternavn] -> Morten Funch Hansen | E103: 001 | F103: Nexø Billard Klub | G103: =VALUE(Tabel_DDBU_Data3[Klubnr]) -> 1 | H103: Nexø BK | J103: =IF(Tabel_DDBU_Data3[Kegle]>0,Tabel_DDBU_Data3[Kegle]/1000,"") ->  | L103: =IF(Tabel_DDBU_Data3[Caram_3B]>0,Tabel_DDBU_Data3[Caram_3B]/1000,"") ->  | N103: =IF(Tabel_DDBU_Data3[Caram_1B]>0,Tabel_DDBU_Data3[Caram_1B]/1000,"") ->  | P103: =IF(Tabel_DDBU_Data3[Caram_Fri]>0,Tabel_DDBU_Data3[Caram_Fri]/1000,"") ->  | S103: 0 | T103: 0 | U103: 1995-07-20 | X103: =Tabel_DDBU_Data3[Aktiv_status] &"-" & Tabel_DDBU_Data3[Licenskort] -> 0-0 | Y103: =IF(Tabel_DDBU_Data3[Kegle]+Tabel_DDBU_Data3[Caram_3B]+Tabel_DDBU_Data3[Caram_1B]+Tabel_DDBU_Data3[Caram_Fri]>0,1,0) -> 0
A104: 120935 | B104: Benjamin | C104: Funch Hansen | D104: =Tabel_DDBU_Data3[Fornavn]&" "&Tabel_DDBU_Data3[Efternavn] -> Benjamin Funch Hansen | E104: 001 | F104: Nexø Billard Klub | G104: =VALUE(Tabel_DDBU_Data3[Klubnr]) -> 1 | H104: Nexø BK | J104: =IF(Tabel_DDBU_Data3[Kegle]>0,Tabel_DDBU_Data3[Kegle]/1000,"") ->  | L104: =IF(Tabel_DDBU_Data3[Caram_3B]>0,Tabel_DDBU_Data3[Caram_3B]/1000,"") ->  | N104: =IF(Tabel_DDBU_Data3[Caram_1B]>0,Tabel_DDBU_Data3[Caram_1B]/1000,"") ->  | P104: =IF(Tabel_DDBU_Data3[Caram_Fri]>0,Tabel_DDBU_Data3[Caram_Fri]/1000,"") ->  | S104: 0 | T104: 0 | U104: 1995-07-22 | X104: =Tabel_DDBU_Data3[Aktiv_status] &"-" & Tabel_DDBU_Data3[Licenskort] -> 0-0 | Y104: =IF(Tabel_DDBU_Data3[Kegle]+Tabel_DDBU_Data3[Caram_3B]+Tabel_DDBU_Data3[Caram_1B]+Tabel_DDBU_Data3[Caram_Fri]>0,1,0) -> 0
A105: 120936 | B105: Knud | C105: Hall | D105: =Tabel_DDBU_Data3[Fornavn]&" "&Tabel_DDBU_Data3[Efternavn] -> Knud Hall | E105: 001 | F105: Nexø Billard Klub | G105: =VALUE(Tabel_DDBU_Data3[Klubnr]) -> 1 | H105: Nexø BK | J105: =IF(Tabel_DDBU_Data3[Kegle]>0,Tabel_DDBU_Data3[Kegle]/1000,"") ->  | L105: =IF(Tabel_DDBU_Data3[Caram_3B]>0,Tabel_DDBU_Data3[Caram_3B]/1000,"") ->  | N105: =IF(Tabel_DDBU_Data3[Caram_1B]>0,Tabel_DDBU_Data3[Caram_1B]/1000,"") ->  | P105: =IF(Tabel_DDBU_Data3[Caram_Fri]>0,Tabel_DDBU_Data3[Caram_Fri]/1000,"") ->  | S105: 0 | T105: 0 | U105: 1950-01-05 | X105: =Tabel_DDBU_Data3[Aktiv_status] &"-" & Tabel_DDBU_Data3[Licenskort] -> 0-0 | Y105: =IF(Tabel_DDBU_Data3[Kegle]+Tabel_DDBU_Data3[Caram_3B]+Tabel_DDBU_Data3[Caram_1B]+Tabel_DDBU_Data3[Caram_Fri]>0,1,0) -> 0
A106: 120937 | B106: Tobias | C106: Holm Larsen | D106: =Tabel_DDBU_Data3[Fornavn]&" "&Tabel_DDBU_Data3[Efternavn] -> Tobias Holm Larsen | E106: 001 | F106: Nexø Billard Klub | G106: =VALUE(Tabel_DDBU_Data3[Klubnr]) -> 1 | H106: Nexø BK | J106: =IF(Tabel_DDBU_Data3[Kegle]>0,Tabel_DDBU_Data3[Kegle]/1000,"") ->  | L106: =IF(Tabel_DDBU_Data3[Caram_3B]>0,Tabel_DDBU_Data3[Caram_3B]/1000,"") ->  | N106: =IF(Tabel_DDBU_Data3[Caram_1B]>0,Tabel_DDBU_Data3[Caram_1B]/1000,"") ->  | P106: =IF(Tabel_DDBU_Data3[Caram_Fri]>0,Tabel_DDBU_Data3[Caram_Fri]/1000,"") ->  | S106: 0 | T106: 0 | U106: 2005-08-04 | X106: =Tabel_DDBU_Data3[Aktiv_status] &"-" & Tabel_DDBU_Data3[Licenskort] -> 0-0 | Y106: =IF(Tabel_DDBU_Data3[Kegle]+Tabel_DDBU_Data3[Caram_3B]+Tabel_DDBU_Data3[Caram_1B]+Tabel_DDBU_Data3[Caram_Fri]>0,1,0) -> 0
A107: 120938 | B107: Ina | C107: Jensen | D107: =Tabel_DDBU_Data3[Fornavn]&" "&Tabel_DDBU_Data3[Efternavn] -> Ina Jensen | E107: 001 | F107: Nexø Billard Klub | G107: =VALUE(Tabel_DDBU_Data3[Klubnr]) -> 1 | H107: Nexø BK | J107: =IF(Tabel_DDBU_Data3[Kegle]>0,Tabel_DDBU_Data3[Kegle]/1000,"") ->  | L107: =IF(Tabel_DDBU_Data3[Caram_3B]>0,Tabel_DDBU_Data3[Caram_3B]/1000,"") ->  | N107: =IF(Tabel_DDBU_Data3[Caram_1B]>0,Tabel_DDBU_Data3[Caram_1B]/1000,"") ->  | P107: =IF(Tabel_DDBU_Data3[Caram_Fri]>0,Tabel_DDBU_Data3[Caram_Fri]/1000,"") ->  | S107: 0 | T107: 0 | U107: 1994-08-30 | X107: =Tabel_DDBU_Data3[Aktiv_status] &"-" & Tabel_DDBU_Data3[Licenskort] -> 0-0 | Y107: =IF(Tabel_DDBU_Data3[Kegle]+Tabel_DDBU_Data3[Caram_3B]+Tabel_DDBU_Data3[Caram_1B]+Tabel_DDBU_Data3[Caram_Fri]>0,1,0) -> 0
A108: 120939 | B108: Karlo | C108: Koustrup | D108: =Tabel_DDBU_Data3[Fornavn]&" "&Tabel_DDBU_Data3[Efternavn] -> Karlo Koustrup | E108: 001 | F108: Nexø Billard Klub | G108: =VALUE(Tabel_DDBU_Data3[Klubnr]) -> 1 | H108: Nexø BK | J108: =IF(Tabel_DDBU_Data3[Kegle]>0,Tabel_DDBU_Data3[Kegle]/1000,"") ->  | L108: =IF(Tabel_DDBU_Data3[Caram_3B]>0,Tabel_DDBU_Data3[Caram_3B]/1000,"") ->  | N108: =IF(Tabel_DDBU_Data3[Caram_1B]>0,Tabel_DDBU_Data3[Caram_1B]/1000,"") ->  | P108: =IF(Tabel_DDBU_Data3[Caram_Fri]>0,Tabel_DDBU_Data3[Caram_Fri]/1000,"") ->  | S108: 0 | T108: 0 | U108: 1925-05-02 | X108: =Tabel_DDBU_Data3[Aktiv_status] &"-" & Tabel_DDBU_Data3[Licenskort] -> 0-0 | Y108: =IF(Tabel_DDBU_Data3[Kegle]+Tabel_DDBU_Data3[Caram_3B]+Tabel_DDBU_Data3[Caram_1B]+Tabel_DDBU_Data3[Caram_Fri]>0,1,0) -> 0
A109: 120940 | B109: Frode | C109: Olsen | D109: =Tabel_DDBU_Data3[Fornavn]&" "&Tabel_DDBU_Data3[Efternavn] -> Frode Olsen | E109: 001 | F109: Nexø Billard Klub | G109: =VALUE(Tabel_DDBU_Data3[Klubnr]) -> 1 | H109: Nexø BK | J109: =IF(Tabel_DDBU_Data3[Kegle]>0,Tabel_DDBU_Data3[Kegle]/1000,"") ->  | L109: =IF(Tabel_DDBU_Data3[Caram_3B]>0,Tabel_DDBU_Data3[Caram_3B]/1000,"") ->  | N109: =IF(Tabel_DDBU_Data3[Caram_1B]>0,Tabel_DDBU_Data3[Caram_1B]/1000,"") ->  | P109: =IF(Tabel_DDBU_Data3[Caram_Fri]>0,Tabel_DDBU_Data3[Caram_Fri]/1000,"") ->  | S109: 0 | T109: 0 | U109: 1936-03-03 | X109: =Tabel_DDBU_Data3[Aktiv_status] &"-" & Tabel_DDBU_Data3[Licenskort] -> 0-0 | Y109: =IF(Tabel_DDBU_Data3[Kegle]+Tabel_DDBU_Data3[Caram_3B]+Tabel_DDBU_Data3[Caram_1B]+Tabel_DDBU_Data3[Caram_Fri]>0,1,0) -> 0
A110: 120941 | B110: Per | C110: Sommer | D110: =Tabel_DDBU_Data3[Fornavn]&" "&Tabel_DDBU_Data3[Efternavn] -> Per Sommer | E110: 001 | F110: Nexø Billard Klub | G110: =VALUE(Tabel_DDBU_Data3[Klubnr]) -> 1 | H110: Nexø BK | J110: =IF(Tabel_DDBU_Data3[Kegle]>0,Tabel_DDBU_Data3[Kegle]/1000,"") ->  | L110: =IF(Tabel_DDBU_Data3[Caram_3B]>0,Tabel_DDBU_Data3[Caram_3B]/1000,"") ->  | N110: =IF(Tabel_DDBU_Data3[Caram_1B]>0,Tabel_DDBU_Data3[Caram_1B]/1000,"") ->  | P110: =IF(Tabel_DDBU_Data3[Caram_Fri]>0,Tabel_DDBU_Data3[Caram_Fri]/1000,"") ->  | S110: 0 | T110: 0 | U110: 1947-07-03 | X110: =Tabel_DDBU_Data3[Aktiv_status] &"-" & Tabel_DDBU_Data3[Licenskort] -> 0-0 | Y110: =IF(Tabel_DDBU_Data3[Kegle]+Tabel_DDBU_Data3[Caram_3B]+Tabel_DDBU_Data3[Caram_1B]+Tabel_DDBU_Data3[Caram_Fri]>0,1,0) -> 0
A111: 120942 | B111: Svend Erik | C111: Sonne-Hansen | D111: =Tabel_DDBU_Data3[Fornavn]&" "&Tabel_DDBU_Data3[Efternavn] -> Svend Erik Sonne-Hansen | E111: 001 | F111: Nexø Billard Klub | G111: =VALUE(Tabel_DDBU_Data3[Klubnr]) -> 1 | H111: Nexø BK | J111: =IF(Tabel_DDBU_Data3[Kegle]>0,Tabel_DDBU_Data3[Kegle]/1000,"") ->  | L111: =IF(Tabel_DDBU_Data3[Caram_3B]>0,Tabel_DDBU_Data3[Caram_3B]/1000,"") ->  | N111: =IF(Tabel_DDBU_Data3[Caram_1B]>0,Tabel_DDBU_Data3[Caram_1B]/1000,"") ->  | P111: =IF(Tabel_DDBU_Data3[Caram_Fri]>0,Tabel_DDBU_Data3[Caram_Fri]/1000,"") ->  | S111: 0 | T111: 0 | U111: 1939-08-28 | X111: =Tabel_DDBU_Data3[Aktiv_status] &"-" & Tabel_DDBU_Data3[Licenskort] -> 0-0 | Y111: =IF(Tabel_DDBU_Data3[Kegle]+Tabel_DDBU_Data3[Caram_3B]+Tabel_DDBU_Data3[Caram_1B]+Tabel_DDBU_Data3[Caram_Fri]>0,1,0) -> 0
A112: 121371 | B112: Uffe | C112: Pedersen | D112: =Tabel_DDBU_Data3[Fornavn]&" "&Tabel_DDBU_Data3[Efternavn] -> Uffe Pedersen | E112: 001 | F112: Nexø Billard Klub | G112: =VALUE(Tabel_DDBU_Data3[Klubnr]) -> 1 | H112: Nexø BK | I112: 4250 | J112: =IF(Tabel_DDBU_Data3[Kegle]>0,Tabel_DDBU_Data3[Kegle]/1000,"") -> 4.25 | L112: =IF(Tabel_DDBU_Data3[Caram_3B]>0,Tabel_DDBU_Data3[Caram_3B]/1000,"") ->  | N112: =IF(Tabel_DDBU_Data3[Caram_1B]>0,Tabel_DDBU_Data3[Caram_1B]/1000,"") ->  | O112: 400 | P112: =IF(Tabel_DDBU_Data3[Caram_Fri]>0,Tabel_DDBU_Data3[Caram_Fri]/1000,"") -> 0.4 | S112: 0 | T112: 0 | U112: 1975-08-22 | X112: =Tabel_DDBU_Data3[Aktiv_status] &"-" & Tabel_DDBU_Data3[Licenskort] -> 0-0 | Y112: =IF(Tabel_DDBU_Data3[Kegle]+Tabel_DDBU_Data3[Caram_3B]+Tabel_DDBU_Data3[Caram_1B]+Tabel_DDBU_Data3[Caram_Fri]>0,1,0) -> 1
A113: 121372 | B113: Erik | C113: Eriksen | D113: =Tabel_DDBU_Data3[Fornavn]&" "&Tabel_DDBU_Data3[Efternavn] -> Erik Eriksen | E113: 001 | F113: Nexø Billard Klub | G113: =VALUE(Tabel_DDBU_Data3[Klubnr]) -> 1 | H113: Nexø BK | I113: 9910 | J113: =IF(Tabel_DDBU_Data3[Kegle]>0,Tabel_DDBU_Data3[Kegle]/1000,"") -> 9.91 | L113: =IF(Tabel_DDBU_Data3[Caram_3B]>0,Tabel_DDBU_Data3[Caram_3B]/1000,"") ->  | N113: =IF(Tabel_DDBU_Data3[Caram_1B]>0,Tabel_DDBU_Data3[Caram_1B]/1000,"") ->  | O113: 1090 | P113: =IF(Tabel_DDBU_Data3[Caram_Fri]>0,Tabel_DDBU_Data3[Caram_Fri]/1000,"") -> 1.09 | S113: 1 | T113: 2 | U113: 1972-11-20 | X113: =Tabel_DDBU_Data3[Aktiv_status] &"-" & Tabel_DDBU_Data3[Licenskort] -> 1-2 | Y113: =IF(Tabel_DDBU_Data3[Kegle]+Tabel_DDBU_Data3[Caram_3B]+Tabel_DDBU_Data3[Caram_1B]+Tabel_DDBU_Data3[Caram_Fri]>0,1,0) -> 1
A114: 121459 | B114: Peter | C114: Bøtker | D114: =Tabel_DDBU_Data3[Fornavn]&" "&Tabel_DDBU_Data3[Efternavn] -> Peter Bøtker | E114: 001 | F114: Nexø Billard Klub | G114: =VALUE(Tabel_DDBU_Data3[Klubnr]) -> 1 | H114: Nexø BK | I114: 7090 | J114: =IF(Tabel_DDBU_Data3[Kegle]>0,Tabel_DDBU_Data3[Kegle]/1000,"") -> 7.09 | L114: =IF(Tabel_DDBU_Data3[Caram_3B]>0,Tabel_DDBU_Data3[Caram_3B]/1000,"") ->  | N114: =IF(Tabel_DDBU_Data3[Caram_1B]>0,Tabel_DDBU_Data3[Caram_1B]/1000,"") ->  | P114: =IF(Tabel_DDBU_Data3[Caram_Fri]>0,Tabel_DDBU_Data3[Caram_Fri]/1000,"") ->  | S114: 0 | T114: 0 | U114: 1965-08-06 | X114: =Tabel_DDBU_Data3[Aktiv_status] &"-" & Tabel_DDBU_Data3[Licenskort] -> 0-0 | Y114: =IF(Tabel_DDBU_Data3[Kegle]+Tabel_DDBU_Data3[Caram_3B]+Tabel_DDBU_Data3[Caram_1B]+Tabel_DDBU_Data3[Caram_Fri]>0,1,0) -> 1
A115: 121494 | B115: Peter | C115: Mogensen | D115: =Tabel_DDBU_Data3[Fornavn]&" "&Tabel_DDBU_Data3[Efternavn] -> Peter Mogensen | E115: 001 | F115: Nexø Billard Klub | G115: =VALUE(Tabel_DDBU_Data3[Klubnr]) -> 1 | H115: Nexø BK | J115: =IF(Tabel_DDBU_Data3[Kegle]>0,Tabel_DDBU_Data3[Kegle]/1000,"") ->  | L115: =IF(Tabel_DDBU_Data3[Caram_3B]>0,Tabel_DDBU_Data3[Caram_3B]/1000,"") ->  | N115: =IF(Tabel_DDBU_Data3[Caram_1B]>0,Tabel_DDBU_Data3[Caram_1B]/1000,"") ->  | P115: =IF(Tabel_DDBU_Data3[Caram_Fri]>0,Tabel_DDBU_Data3[Caram_Fri]/1000,"") ->  | S115: 0 | T115: 0 | U115: 1966-04-30 | X115: =Tabel_DDBU_Data3[Aktiv_status] &"-" & Tabel_DDBU_Data3[Licenskort] -> 0-0 | Y115: =IF(Tabel_DDBU_Data3[Kegle]+Tabel_DDBU_Data3[Caram_3B]+Tabel_DDBU_Data3[Caram_1B]+Tabel_DDBU_Data3[Caram_Fri]>0,1,0) -> 0
A116: 121830 | B116: Martin | C116: Reckendorff | D116: =Tabel_DDBU_Data3[Fornavn]&" "&Tabel_DDBU_Data3[Efternavn] -> Martin Reckendorff | E116: 001 | F116: Nexø Billard Klub | G116: =VALUE(Tabel_DDBU_Data3[Klubnr]) -> 1 | H116: Nexø BK | I116: 11050 | J116: =IF(Tabel_DDBU_Data3[Kegle]>0,Tabel_DDBU_Data3[Kegle]/1000,"") -> 11.05 | L116: =IF(Tabel_DDBU_Data3[Caram_3B]>0,Tabel_DDBU_Data3[Caram_3B]/1000,"") ->  | N116: =IF(Tabel_DDBU_Data3[Caram_1B]>0,Tabel_DDBU_Data3[Caram_1B]/1000,"") ->  | P116: =IF(Tabel_DDBU_Data3[Caram_Fri]>0,Tabel_DDBU_Data3[Caram_Fri]/1000,"") ->  | S116: 1 | T116: 2 | U116: 1980-08-08 | X116: =Tabel_DDBU_Data3[Aktiv_status] &"-" & Tabel_DDBU_Data3[Licenskort] -> 1-2 | Y116: =IF(Tabel_DDBU_Data3[Kegle]+Tabel_DDBU_Data3[Caram_3B]+Tabel_DDBU_Data3[Caram_1B]+Tabel_DDBU_Data3[Caram_Fri]>0,1,0) -> 1
A117: 122059 | B117: Ole Dalgaard | C117: Nielsen | D117: =Tabel_DDBU_Data3[Fornavn]&" "&Tabel_DDBU_Data3[Efternavn] -> Ole Dalgaard Nielsen | E117: 001 | F117: Nexø Billard Klub | G117: =VALUE(Tabel_DDBU_Data3[Klubnr]) -> 1 | H117: Nexø BK | I117: 3330 | J117: =IF(Tabel_DDBU_Data3[Kegle]>0,Tabel_DDBU_Data3[Kegle]/1000,"") -> 3.33 | L117: =IF(Tabel_DDBU_Data3[Caram_3B]>0,Tabel_DDBU_Data3[Caram_3B]/1000,"") ->  | N117: =IF(Tabel_DDBU_Data3[Caram_1B]>0,Tabel_DDBU_Data3[Caram_1B]/1000,"") ->  | P117: =IF(Tabel_DDBU_Data3[Caram_Fri]>0,Tabel_DDBU_Data3[Caram_Fri]/1000,"") ->  | S117: 1 | T117: 2 | U117: 1945-01-16 | X117: =Tabel_DDBU_Data3[Aktiv_status] &"-" & Tabel_DDBU_Data3[Licenskort] -> 1-2 | Y117: =IF(Tabel_DDBU_Data3[Kegle]+Tabel_DDBU_Data3[Caram_3B]+Tabel_DDBU_Data3[Caram_1B]+Tabel_DDBU_Data3[Caram_Fri]>0,1,0) -> 1
A118: 110125 | B118: Ole | C118: Hansen | D118: =Tabel_DDBU_Data3[Fornavn]&" "&Tabel_DDBU_Data3[Efternavn] -> Ole Hansen | E118: 002 | F118: Nordbornholms Billard Klub | G118: =VALUE(Tabel_DDBU_Data3[Klubnr]) -> 2 | H118: Nordbornh. BK | I118: 5590 | J118: =IF(Tabel_DDBU_Data3[Kegle]>0,Tabel_DDBU_Data3[Kegle]/1000,"") -> 5.59 | L118: =IF(Tabel_DDBU_Data3[Caram_3B]>0,Tabel_DDBU_Data3[Caram_3B]/1000,"") ->  | N118: =IF(Tabel_DDBU_Data3[Caram_1B]>0,Tabel_DDBU_Data3[Caram_1B]/1000,"") ->  | P118: =IF(Tabel_DDBU_Data3[Caram_Fri]>0,Tabel_DDBU_Data3[Caram_Fri]/1000,"") ->  | S118: 1 | T118: 2 | U118: 1953-07-01 | X118: =Tabel_DDBU_Data3[Aktiv_status] &"-" & Tabel_DDBU_Data3[Licenskort] -> 1-2 | Y118: =IF(Tabel_DDBU_Data3[Kegle]+Tabel_DDBU_Data3[Caram_3B]+Tabel_DDBU_Data3[Caram_1B]+Tabel_DDBU_Data3[Caram_Fri]>0,1,0) -> 1
A119: 110194 | B119: Hans | C119: Andersen | D119: =Tabel_DDBU_Data3[Fornavn]&" "&Tabel_DDBU_Data3[Efternavn] -> Hans Andersen | E119: 002 | F119: Nordbornholms Billard Klub | G119: =VALUE(Tabel_DDBU_Data3[Klubnr]) -> 2 | H119: Nordbornh. BK | J119: =IF(Tabel_DDBU_Data3[Kegle]>0,Tabel_DDBU_Data3[Kegle]/1000,"") ->  | L119: =IF(Tabel_DDBU_Data3[Caram_3B]>0,Tabel_DDBU_Data3[Caram_3B]/1000,"") ->  | N119: =IF(Tabel_DDBU_Data3[Caram_1B]>0,Tabel_DDBU_Data3[Caram_1B]/1000,"") ->  | P119: =IF(Tabel_DDBU_Data3[Caram_Fri]>0,Tabel_DDBU_Data3[Caram_Fri]/1000,"") ->  | S119: 0 | T119: 0 | U119: 1959-09-01 | X119: =Tabel_DDBU_Data3[Aktiv_status] &"-" & Tabel_DDBU_Data3[Licenskort] -> 0-0 | Y119: =IF(Tabel_DDBU_Data3[Kegle]+Tabel_DDBU_Data3[Caram_3B]+Tabel_DDBU_Data3[Caram_1B]+Tabel_DDBU_Data3[Caram_Fri]>0,1,0) -> 0
A120: 110217 | B120: Kim | C120: Westh | D120: =Tabel_DDBU_Data3[Fornavn]&" "&Tabel_DDBU_Data3[Efternavn] -> Kim Westh | E120: 002 | F120: Nordbornholms Billard Klub | G120: =VALUE(Tabel_DDBU_Data3[Klubnr]) -> 2 | H120: Nordbornh. BK | I120: 20700 | J120: =IF(Tabel_DDBU_Data3[Kegle]>0,Tabel_DDBU_Data3[Kegle]/1000,"") -> 20.7 | L120: =IF(Tabel_DDBU_Data3[Caram_3B]>0,Tabel_DDBU_Data3[Caram_3B]/1000,"") ->  | N120: =IF(Tabel_DDBU_Data3[Caram_1B]>0,Tabel_DDBU_Data3[Caram_1B]/1000,"") ->  | O120: 1140 | P120: =IF(Tabel_DDBU_Data3[Caram_Fri]>0,Tabel_DDBU_Data3[Caram_Fri]/1000,"") -> 1.14 | S120: 1 | T120: 2 | U120: 1962-10-01 | X120: =Tabel_DDBU_Data3[Aktiv_status] &"-" & Tabel_DDBU_Data3[Licenskort] -> 1-2 | Y120: =IF(Tabel_DDBU_Data3[Kegle]+Tabel_DDBU_Data3[Caram_3B]+Tabel_DDBU_Data3[Caram_1B]+Tabel_DDBU_Data3[Caram_Fri]>0,1,0) -> 1
A121: 110287 | B121: Elof | C121: Sellberg | D121: =Tabel_DDBU_Data3[Fornavn]&" "&Tabel_DDBU_Data3[Efternavn] -> Elof Sellberg | E121: 002 | F121: Nordbornholms Billard Klub | G121: =VALUE(Tabel_DDBU_Data3[Klubnr]) -> 2 | H121: Nordbornh. BK | I121: 4610 | J121: =IF(Tabel_DDBU_Data3[Kegle]>0,Tabel_DDBU_Data3[Kegle]/1000,"") -> 4.61 | L121: =IF(Tabel_DDBU_Data3[Caram_3B]>0,Tabel_DDBU_Data3[Caram_3B]/1000,"") ->  | N121: =IF(Tabel_DDBU_Data3[Caram_1B]>0,Tabel_DDBU_Data3[Caram_1B]/1000,"") ->  | O121: 430 | P121: =IF(Tabel_DDBU_Data3[Caram_Fri]>0,Tabel_DDBU_Data3[Caram_Fri]/1000,"") -> 0.43 | S121: 1 | T121: 2 | U121: 1948-02-02 | X121: =Tabel_DDBU_Data3[Aktiv_status] &"-" & Tabel_DDBU_Data3[Licenskort] -> 1-2 | Y121: =IF(Tabel_DDBU_Data3[Kegle]+Tabel_DDBU_Data3[Caram_3B]+Tabel_DDBU_Data3[Caram_1B]+Tabel_DDBU_Data3[Caram_Fri]>0,1,0) -> 1
A122: 110304 | B122: Ole | C122: Christiansen | D122: =Tabel_DDBU_Data3[Fornavn]&" "&Tabel_DDBU_Data3[Efternavn] -> Ole Christiansen | E122: 002 | F122: Nordbornholms Billard Klub | G122: =VALUE(Tabel_DDBU_Data3[Klubnr]) -> 2 | H122: Nordbornh. BK | J122: =IF(Tabel_DDBU_Data3[Kegle]>0,Tabel_DDBU_Data3[Kegle]/1000,"") ->  | L122: =IF(Tabel_DDBU_Data3[Caram_3B]>0,Tabel_DDBU_Data3[Caram_3B]/1000,"") ->  | N122: =IF(Tabel_DDBU_Data3[Caram_1B]>0,Tabel_DDBU_Data3[Caram_1B]/1000,"") ->  | P122: =IF(Tabel_DDBU_Data3[Caram_Fri]>0,Tabel_DDBU_Data3[Caram_Fri]/1000,"") ->  | S122: 0 | T122: 0 | U122: 1935-03-02 | X122: =Tabel_DDBU_Data3[Aktiv_status] &"-" & Tabel_DDBU_Data3[Licenskort] -> 0-0 | Y122: =IF(Tabel_DDBU_Data3[Kegle]+Tabel_DDBU_Data3[Caram_3B]+Tabel_DDBU_Data3[Caram_1B]+Tabel_DDBU_Data3[Caram_Fri]>0,1,0) -> 0
A123: 110357 | B123: Gert Teddy | C123: Nielsen | D123: =Tabel_DDBU_Data3[Fornavn]&" "&Tabel_DDBU_Data3[Efternavn] -> Gert Teddy Nielsen | E123: 002 | F123: Nordbornholms Billard Klub | G123: =VALUE(Tabel_DDBU_Data3[Klubnr]) -> 2 | H123: Nordbornh. BK | J123: =IF(Tabel_DDBU_Data3[Kegle]>0,Tabel_DDBU_Data3[Kegle]/1000,"") ->  | L123: =IF(Tabel_DDBU_Data3[Caram_3B]>0,Tabel_DDBU_Data3[Caram_3B]/1000,"") ->  | N123: =IF(Tabel_DDBU_Data3[Caram_1B]>0,Tabel_DDBU_Data3[Caram_1B]/1000,"") ->  | P123: =IF(Tabel_DDBU_Data3[Caram_Fri]>0,Tabel_DDBU_Data3[Caram_Fri]/1000,"") ->  | S123: 0 | T123: 0 | U123: 1944-06-05 | X123: =Tabel_DDBU_Data3[Aktiv_status] &"-" & Tabel_DDBU_Data3[Licenskort] -> 0-0 | Y123: =IF(Tabel_DDBU_Data3[Kegle]+Tabel_DDBU_Data3[Caram_3B]+Tabel_DDBU_Data3[Caram_1B]+Tabel_DDBU_Data3[Caram_Fri]>0,1,0) -> 0
A124: 110530 | B124: Poul Ole | C124: Holm | D124: =Tabel_DDBU_Data3[Fornavn]&" "&Tabel_DDBU_Data3[Efternavn] -> Poul Ole Holm | E124: 002 | F124: Nordbornholms Billard Klub | G124: =VALUE(Tabel_DDBU_Data3[Klubnr]) -> 2 | H124: Nordbornh. BK | I124: 4140 | J124: =IF(Tabel_DDBU_Data3[Kegle]>0,Tabel_DDBU_Data3[Kegle]/1000,"") -> 4.14 | L124: =IF(Tabel_DDBU_Data3[Caram_3B]>0,Tabel_DDBU_Data3[Caram_3B]/1000,"") ->  | N124: =IF(Tabel_DDBU_Data3[Caram_1B]>0,Tabel_DDBU_Data3[Caram_1B]/1000,"") ->  | O124: 390 | P124: =IF(Tabel_DDBU_Data3[Caram_Fri]>0,Tabel_DDBU_Data3[Caram_Fri]/1000,"") -> 0.39 | S124: 1 | T124: 2 | U124: 1948-01-03 | X124: =Tabel_DDBU_Data3[Aktiv_status] &"-" & Tabel_DDBU_Data3[Licenskort] -> 1-2 | Y124: =IF(Tabel_DDBU_Data3[Kegle]+Tabel_DDBU_Data3[Caram_3B]+Tabel_DDBU_Data3[Caram_1B]+Tabel_DDBU_Data3[Caram_Fri]>0,1,0) -> 1
A125: 110650 | B125: Johan | C125: Lind | D125: =Tabel_DDBU_Data3[Fornavn]&" "&Tabel_DDBU_Data3[Efternavn] -> Johan Lind | E125: 002 | F125: Nordbornholms Billard Klub | G125: =VALUE(Tabel_DDBU_Data3[Klubnr]) -> 2 | H125: Nordbornh. BK | I125: 6930 | J125: =IF(Tabel_DDBU_Data3[Kegle]>0,Tabel_DDBU_Data3[Kegle]/1000,"") -> 6.93 | L125: =IF(Tabel_DDBU_Data3[Caram_3B]>0,Tabel_DDBU_Data3[Caram_3B]/1000,"") ->  | N125: =IF(Tabel_DDBU_Data3[Caram_1B]>0,Tabel_DDBU_Data3[Caram_1B]/1000,"") ->  | P125: =IF(Tabel_DDBU_Data3[Caram_Fri]>0,Tabel_DDBU_Data3[Caram_Fri]/1000,"") ->  | S125: 1 | T125: 2 | U125: 1981-06-03 | X125: =Tabel_DDBU_Data3[Aktiv_status] &"-" & Tabel_DDBU_Data3[Licenskort] -> 1-2 | Y125: =IF(Tabel_DDBU_Data3[Kegle]+Tabel_DDBU_Data3[Caram_3B]+Tabel_DDBU_Data3[Caram_1B]+Tabel_DDBU_Data3[Caram_Fri]>0,1,0) -> 1
A126: 110795 | B126: Bent | C126: Pedersen | D126: =Tabel_DDBU_Data3[Fornavn]&" "&Tabel_DDBU_Data3[Efternavn] -> Bent Pedersen | E126: 002 | F126: Nordbornholms Billard Klub | G126: =VALUE(Tabel_DDBU_Data3[Klubnr]) -> 2 | H126: Nordbornh. BK | I126: 7090 | J126: =IF(Tabel_DDBU_Data3[Kegle]>0,Tabel_DDBU_Data3[Kegle]/1000,"") -> 7.09 | L126: =IF(Tabel_DDBU_Data3[Caram_3B]>0,Tabel_DDBU_Data3[Caram_3B]/1000,"") ->  | N126: =IF(Tabel_DDBU_Data3[Caram_1B]>0,Tabel_DDBU_Data3[Caram_1B]/1000,"") ->  | O126: 490 | P126: =IF(Tabel_DDBU_Data3[Caram_Fri]>0,Tabel_DDBU_Data3[Caram_Fri]/1000,"") -> 0.49 | S126: 1 | T126: 2 | U126: 1962-02-04 | X126: =Tabel_DDBU_Data3[Aktiv_status] &"-" & Tabel_DDBU_Data3[Licenskort] -> 1-2 | Y126: =IF(Tabel_DDBU_Data3[Kegle]+Tabel_DDBU_Data3[Caram_3B]+Tabel_DDBU_Data3[Caram_1B]+Tabel_DDBU_Data3[Caram_Fri]>0,1,0) -> 1
A127: 110804 | B127: Børge | C127: Nielsen | D127: =Tabel_DDBU_Data3[Fornavn]&" "&Tabel_DDBU_Data3[Efternavn] -> Børge Nielsen | E127: 002 | F127: Nordbornholms Billard Klub | G127: =VALUE(Tabel_DDBU_Data3[Klubnr]) -> 2 | H127: Nordbornh. BK | J127: =IF(Tabel_DDBU_Data3[Kegle]>0,Tabel_DDBU_Data3[Kegle]/1000,"") ->  | L127: =IF(Tabel_DDBU_Data3[Caram_3B]>0,Tabel_DDBU_Data3[Caram_3B]/1000,"") ->  | N127: =IF(Tabel_DDBU_Data3[Caram_1B]>0,Tabel_DDBU_Data3[Caram_1B]/1000,"") ->  | O127: 420 | P127: =IF(Tabel_DDBU_Data3[Caram_Fri]>0,Tabel_DDBU_Data3[Caram_Fri]/1000,"") -> 0.42 | S127: 0 | T127: 0 | U127: 1935-03-04 | X127: =Tabel_DDBU_Data3[Aktiv_status] &"-" & Tabel_DDBU_Data3[Licenskort] -> 0-0 | Y127: =IF(Tabel_DDBU_Data3[Kegle]+Tabel_DDBU_Data3[Caram_3B]+Tabel_DDBU_Data3[Caram_1B]+Tabel_DDBU_Data3[Caram_Fri]>0,1,0) -> 1
A128: 111353 | B128: Ivar | C128: Kjøller | D128: =Tabel_DDBU_Data3[Fornavn]&" "&Tabel_DDBU_Data3[Efternavn] -> Ivar Kjøller | E128: 002 | F128: Nordbornholms Billard Klub | G128: =VALUE(Tabel_DDBU_Data3[Klubnr]) -> 2 | H128: Nordbornh. BK | I128: 2890 | J128: =IF(Tabel_DDBU_Data3[Kegle]>0,Tabel_DDBU_Data3[Kegle]/1000,"") -> 2.89 | L128: =IF(Tabel_DDBU_Data3[Caram_3B]>0,Tabel_DDBU_Data3[Caram_3B]/1000,"") ->  | N128: =IF(Tabel_DDBU_Data3[Caram_1B]>0,Tabel_DDBU_Data3[Caram_1B]/1000,"") ->  | P128: =IF(Tabel_DDBU_Data3[Caram_Fri]>0,Tabel_DDBU_Data3[Caram_Fri]/1000,"") ->  | S128: 0 | T128: 0 | U128: 1941-02-06 | X128: =Tabel_DDBU_Data3[Aktiv_status] &"-" & Tabel_DDBU_Data3[Licenskort] -> 0-0 | Y128: =IF(Tabel_DDBU_Data3[Kegle]+Tabel_DDBU_Data3[Caram_3B]+Tabel_DDBU_Data3[Caram_1B]+Tabel_DDBU_Data3[Caram_Fri]>0,1,0) -> 1
A129: 111383 | B129: Michael | C129: Wolfsberg | D129: =Tabel_DDBU_Data3[Fornavn]&" "&Tabel_DDBU_Data3[Efternavn] -> Michael Wolfsberg | E129: 002 | F129: Nordbornholms Billard Klub | G129: =VALUE(Tabel_DDBU_Data3[Klubnr]) -> 2 | H129: Nordbornh. BK | I129: 6160 | J129: =IF(Tabel_DDBU_Data3[Kegle]>0,Tabel_DDBU_Data3[Kegle]/1000,"") -> 6.16 | L129: =IF(Tabel_DDBU_Data3[Caram_3B]>0,Tabel_DDBU_Data3[Caram_3B]/1000,"") ->  | N129: =IF(Tabel_DDBU_Data3[Caram_1B]>0,Tabel_DDBU_Data3[Caram_1B]/1000,"") ->  | O129: 680 | P129: =IF(Tabel_DDBU_Data3[Caram_Fri]>0,Tabel_DDBU_Data3[Caram_Fri]/1000,"") -> 0.68 | S129: 1 | T129: 2 | U129: 1959-03-06 | X129: =Tabel_DDBU_Data3[Aktiv_status] &"-" & Tabel_DDBU_Data3[Licenskort] -> 1-2 | Y129: =IF(Tabel_DDBU_Data3[Kegle]+Tabel_DDBU_Data3[Caram_3B]+Tabel_DDBU_Data3[Caram_1B]+Tabel_DDBU_Data3[Caram_Fri]>0,1,0) -> 1
A130: 111909 | B130: Henning | C130: Hansen | D130: =Tabel_DDBU_Data3[Fornavn]&" "&Tabel_DDBU_Data3[Efternavn] -> Henning Hansen | E130: 002 | F130: Nordbornholms Billard Klub | G130: =VALUE(Tabel_DDBU_Data3[Klubnr]) -> 2 | H130: Nordbornh. BK | J130: =IF(Tabel_DDBU_Data3[Kegle]>0,Tabel_DDBU_Data3[Kegle]/1000,"") ->  | L130: =IF(Tabel_DDBU_Data3[Caram_3B]>0,Tabel_DDBU_Data3[Caram_3B]/1000,"") ->  | N130: =IF(Tabel_DDBU_Data3[Caram_1B]>0,Tabel_DDBU_Data3[Caram_1B]/1000,"") ->  | P130: =IF(Tabel_DDBU_Data3[Caram_Fri]>0,Tabel_DDBU_Data3[Caram_Fri]/1000,"") ->  | S130: 0 | T130: 0 | U130: 1938-04-08 | X130: =Tabel_DDBU_Data3[Aktiv_status] &"-" & Tabel_DDBU_Data3[Licenskort] -> 0-0 | Y130: =IF(Tabel_DDBU_Data3[Kegle]+Tabel_DDBU_Data3[Caram_3B]+Tabel_DDBU_Data3[Caram_1B]+Tabel_DDBU_Data3[Caram_Fri]>0,1,0) -> 0
A131: 112005 | B131: Balder Phil | C131: Jensen | D131: =Tabel_DDBU_Data3[Fornavn]&" "&Tabel_DDBU_Data3[Efternavn] -> Balder Phil Jensen | E131: 002 | F131: Nordbornholms Billard Klub | G131: =VALUE(Tabel_DDBU_Data3[Klubnr]) -> 2 | H131: Nordbornh. BK | J131: =IF(Tabel_DDBU_Data3[Kegle]>0,Tabel_DDBU_Data3[Kegle]/1000,"") ->  | L131: =IF(Tabel_DDBU_Data3[Caram_3B]>0,Tabel_DDBU_Data3[Caram_3B]/1000,"") ->  | N131: =IF(Tabel_DDBU_Data3[Caram_1B]>0,Tabel_DDBU_Data3[Caram_1B]/1000,"") ->  | P131: =IF(Tabel_DDBU_Data3[Caram_Fri]>0,Tabel_DDBU_Data3[Caram_Fri]/1000,"") ->  | S131: 0 | T131: 0 | U131: 1994-08-08 | X131: =Tabel_DDBU_Data3[Aktiv_status] &"-" & Tabel_DDBU_Data3[Licenskort] -> 0-0 | Y131: =IF(Tabel_DDBU_Data3[Kegle]+Tabel_DDBU_Data3[Caram_3B]+Tabel_DDBU_Data3[Caram_1B]+Tabel_DDBU_Data3[Caram_Fri]>0,1,0) -> 0
A132: 112117 | B132: Kaj | C132: Keldsen | D132: =Tabel_DDBU_Data3[Fornavn]&" "&Tabel_DDBU_Data3[Efternavn] -> Kaj Keldsen | E132: 002 | F132: Nordbornholms Billard Klub | G132: =VALUE(Tabel_DDBU_Data3[Klubnr]) -> 2 | H132: Nordbornh. BK | I132: 3820 | J132: =IF(Tabel_DDBU_Data3[Kegle]>0,Tabel_DDBU_Data3[Kegle]/1000,"") -> 3.82 | L132: =IF(Tabel_DDBU_Data3[Caram_3B]>0,Tabel_DDBU_Data3[Caram_3B]/1000,"") ->  | N132: =IF(Tabel_DDBU_Data3[Caram_1B]>0,Tabel_DDBU_Data3[Caram_1B]/1000,"") ->  | O132: 390 | P132: =IF(Tabel_DDBU_Data3[Caram_Fri]>0,Tabel_DDBU_Data3[Caram_Fri]/1000,"") -> 0.39 | S132: 0 | T132: 0 | U132: 1941-01-09 | X132: =Tabel_DDBU_Data3[Aktiv_status] &"-" & Tabel_DDBU_Data3[Licenskort] -> 0-0 | Y132: =IF(Tabel_DDBU_Data3[Kegle]+Tabel_DDBU_Data3[Caram_3B]+Tabel_DDBU_Data3[Caram_1B]+Tabel_DDBU_Data3[Caram_Fri]>0,1,0) -> 1
A133: 113071 | B133: Peder J. | C133: Christensen | D133: =Tabel_DDBU_Data3[Fornavn]&" "&Tabel_DDBU_Data3[Efternavn] -> Peder J. Christensen | E133: 002 | F133: Nordbornholms Billard Klub | G133: =VALUE(Tabel_DDBU_Data3[Klubnr]) -> 2 | H133: Nordbornh. BK | I133: 2980 | J133: =IF(Tabel_DDBU_Data3[Kegle]>0,Tabel_DDBU_Data3[Kegle]/1000,"") -> 2.98 | L133: =IF(Tabel_DDBU_Data3[Caram_3B]>0,Tabel_DDBU_Data3[Caram_3B]/1000,"") ->  | N133: =IF(Tabel_DDBU_Data3[Caram_1B]>0,Tabel_DDBU_Data3[Caram_1B]/1000,"") ->  | P133: =IF(Tabel_DDBU_Data3[Caram_Fri]>0,Tabel_DDBU_Data3[Caram_Fri]/1000,"") ->  | S133: 0 | T133: 0 | U133: 1942-07-12 | X133: =Tabel_DDBU_Data3[Aktiv_status] &"-" & Tabel_DDBU_Data3[Licenskort] -> 0-0 | Y133: =IF(Tabel_DDBU_Data3[Kegle]+Tabel_DDBU_Data3[Caram_3B]+Tabel_DDBU_Data3[Caram_1B]+Tabel_DDBU_Data3[Caram_Fri]>0,1,0) -> 1
A134: 113262 | B134: Lis | C134: Gorel | D134: =Tabel_DDBU_Data3[Fornavn]&" "&Tabel_DDBU_Data3[Efternavn] -> Lis Gorel | E134: 002 | F134: Nordbornholms Billard Klub | G134: =VALUE(Tabel_DDBU_Data3[Klubnr]) -> 2 | H134: Nordbornh. BK | J134: =IF(Tabel_DDBU_Data3[Kegle]>0,Tabel_DDBU_Data3[Kegle]/1000,"") ->  | L134: =IF(Tabel_DDBU_Data3[Caram_3B]>0,Tabel_DDBU_Data3[Caram_3B]/1000,"") ->  | N134: =IF(Tabel_DDBU_Data3[Caram_1B]>0,Tabel_DDBU_Data3[Caram_1B]/1000,"") ->  | P134: =IF(Tabel_DDBU_Data3[Caram_Fri]>0,Tabel_DDBU_Data3[Caram_Fri]/1000,"") ->  | S134: 0 | T134: 0 | U134: 1941-04-13 | X134: =Tabel_DDBU_Data3[Aktiv_status] &"-" & Tabel_DDBU_Data3[Licenskort] -> 0-0 | Y134: =IF(Tabel_DDBU_Data3[Kegle]+Tabel_DDBU_Data3[Caram_3B]+Tabel_DDBU_Data3[Caram_1B]+Tabel_DDBU_Data3[Caram_Fri]>0,1,0) -> 0
A135: 113532 | B135: Martin | C135: Randrup | D135: =Tabel_DDBU_Data3[Fornavn]&" "&Tabel_DDBU_Data3[Efternavn] -> Martin Randrup | E135: 002 | F135: Nordbornholms Billard Klub | G135: =VALUE(Tabel_DDBU_Data3[Klubnr]) -> 2 | H135: Nordbornh. BK | I135: 12880 | J135: =IF(Tabel_DDBU_Data3[Kegle]>0,Tabel_DDBU_Data3[Kegle]/1000,"") -> 12.88 | L135: =IF(Tabel_DDBU_Data3[Caram_3B]>0,Tabel_DDBU_Data3[Caram_3B]/1000,"") ->  | N135: =IF(Tabel_DDBU_Data3[Caram_1B]>0,Tabel_DDBU_Data3[Caram_1B]/1000,"") ->  | P135: =IF(Tabel_DDBU_Data3[Caram_Fri]>0,Tabel_DDBU_Data3[Caram_Fri]/1000,"") ->  | S135: 1 | T135: 2 | U135: 1971-04-14 | X135: =Tabel_DDBU_Data3[Aktiv_status] &"-" & Tabel_DDBU_Data3[Licenskort] -> 1-2 | Y135: =IF(Tabel_DDBU_Data3[Kegle]+Tabel_DDBU_Data3[Caram_3B]+Tabel_DDBU_Data3[Caram_1B]+Tabel_DDBU_Data3[Caram_Fri]>0,1,0) -> 1
A136: 113581 | B136: Palle | C136: Skærbæk Jensen | D136: =Tabel_DDBU_Data3[Fornavn]&" "&Tabel_DDBU_Data3[Efternavn] -> Palle Skærbæk Jensen | E136: 002 | F136: Nordbornholms Billard Klub | G136: =VALUE(Tabel_DDBU_Data3[Klubnr]) -> 2 | H136: Nordbornh. BK | I136: 5870 | J136: =IF(Tabel_DDBU_Data3[Kegle]>0,Tabel_DDBU_Data3[Kegle]/1000,"") -> 5.87 | L136: =IF(Tabel_DDBU_Data3[Caram_3B]>0,Tabel_DDBU_Data3[Caram_3B]/1000,"") ->  | N136: =IF(Tabel_DDBU_Data3[Caram_1B]>0,Tabel_DDBU_Data3[Caram_1B]/1000,"") ->  | O136: 440 | P136: =IF(Tabel_DDBU_Data3[Caram_Fri]>0,Tabel_DDBU_Data3[Caram_Fri]/1000,"") -> 0.44 | S136: 1 | T136: 2 | U136: 1944-07-14 | X136: =Tabel_DDBU_Data3[Aktiv_status] &"-" & Tabel_DDBU_Data3[Licenskort] -> 1-2 | Y136: =IF(Tabel_DDBU_Data3[Kegle]+Tabel_DDBU_Data3[Caram_3B]+Tabel_DDBU_Data3[Caram_1B]+Tabel_DDBU_Data3[Caram_Fri]>0,1,0) -> 1
A137: 114104 | B137: Birger K. | C137: Madsen | D137: =Tabel_DDBU_Data3[Fornavn]&" "&Tabel_DDBU_Data3[Efternavn] -> Birger K. Madsen | E137: 002 | F137: Nordbornholms Billard Klub | G137: =VALUE(Tabel_DDBU_Data3[Klubnr]) -> 2 | H137: Nordbornh. BK | I137: 9230 | J137: =IF(Tabel_DDBU_Data3[Kegle]>0,Tabel_DDBU_Data3[Kegle]/1000,"") -> 9.23 | L137: =IF(Tabel_DDBU_Data3[Caram_3B]>0,Tabel_DDBU_Data3[Caram_3B]/1000,"") ->  | N137: =IF(Tabel_DDBU_Data3[Caram_1B]>0,Tabel_DDBU_Data3[Caram_1B]/1000,"") ->  | O137: 770 | P137: =IF(Tabel_DDBU_Data3[Caram_Fri]>0,Tabel_DDBU_Data3[Caram_Fri]/1000,"") -> 0.77 | S137: 1 | T137: 2 | U137: 1962-08-16 | X137: =Tabel_DDBU_Data3[Aktiv_status] &"-" & Tabel_DDBU_Data3[Licenskort] -> 1-2 | Y137: =IF(Tabel_DDBU_Data3[Kegle]+Tabel_DDBU_Data3[Caram_3B]+Tabel_DDBU_Data3[Caram_1B]+Tabel_DDBU_Data3[Caram_Fri]>0,1,0) -> 1
A138: 114332 | B138: Achim | C138: Jensen | D138: =Tabel_DDBU_Data3[Fornavn]&" "&Tabel_DDBU_Data3[Efternavn] -> Achim Jensen | E138: 002 | F138: Nordbornholms Billard Klub | G138: =VALUE(Tabel_DDBU_Data3[Klubnr]) -> 2 | H138: Nordbornh. BK | J138: =IF(Tabel_DDBU_Data3[Kegle]>0,Tabel_DDBU_Data3[Kegle]/1000,"") ->  | L138: =IF(Tabel_DDBU_Data3[Caram_3B]>0,Tabel_DDBU_Data3[Caram_3B]/1000,"") ->  | N138: =IF(Tabel_DDBU_Data3[Caram_1B]>0,Tabel_DDBU_Data3[Caram_1B]/1000,"") ->  | P138: =IF(Tabel_DDBU_Data3[Caram_Fri]>0,Tabel_DDBU_Data3[Caram_Fri]/1000,"") ->  | S138: 0 | T138: 0 | U138: 1963-05-17 | X138: =Tabel_DDBU_Data3[Aktiv_status] &"-" & Tabel_DDBU_Data3[Licenskort] -> 0-0 | Y138: =IF(Tabel_DDBU_Data3[Kegle]+Tabel_DDBU_Data3[Caram_3B]+Tabel_DDBU_Data3[Caram_1B]+Tabel_DDBU_Data3[Caram_Fri]>0,1,0) -> 0
A139: 114344 | B139: Mogens Chr. | C139: Jensen | D139: =Tabel_DDBU_Data3[Fornavn]&" "&Tabel_DDBU_Data3[Efternavn] -> Mogens Chr. Jensen | E139: 002 | F139: Nordbornholms Billard Klub | G139: =VALUE(Tabel_DDBU_Data3[Klubnr]) -> 2 | H139: Nordbornh. BK | I139: 5110 | J139: =IF(Tabel_DDBU_Data3[Kegle]>0,Tabel_DDBU_Data3[Kegle]/1000,"") -> 5.11 | L139: =IF(Tabel_DDBU_Data3[Caram_3B]>0,Tabel_DDBU_Data3[Caram_3B]/1000,"") ->  | N139: =IF(Tabel_DDBU_Data3[Caram_1B]>0,Tabel_DDBU_Data3[Caram_1B]/1000,"") ->  | P139: =IF(Tabel_DDBU_Data3[Caram_Fri]>0,Tabel_DDBU_Data3[Caram_Fri]/1000,"") ->  | S139: 0 | T139: 0 | U139: 1937-06-17 | X139: =Tabel_DDBU_Data3[Aktiv_status] &"-" & Tabel_DDBU_Data3[Licenskort] -> 0-0 | Y139: =IF(Tabel_DDBU_Data3[Kegle]+Tabel_DDBU_Data3[Caram_3B]+Tabel_DDBU_Data3[Caram_1B]+Tabel_DDBU_Data3[Caram_Fri]>0,1,0) -> 1
A140: 114490 | B140: Jan | C140: Jensen | D140: =Tabel_DDBU_Data3[Fornavn]&" "&Tabel_DDBU_Data3[Efternavn] -> Jan Jensen | E140: 002 | F140: Nordbornholms Billard Klub | G140: =VALUE(Tabel_DDBU_Data3[Klubnr]) -> 2 | H140: Nordbornh. BK | I140: 5520 | J140: =IF(Tabel_DDBU_Data3[Kegle]>0,Tabel_DDBU_Data3[Kegle]/1000,"") -> 5.52 | L140: =IF(Tabel_DDBU_Data3[Caram_3B]>0,Tabel_DDBU_Data3[Caram_3B]/1000,"") ->  | N140: =IF(Tabel_DDBU_Data3[Caram_1B]>0,Tabel_DDBU_Data3[Caram_1B]/1000,"") ->  | P140: =IF(Tabel_DDBU_Data3[Caram_Fri]>0,Tabel_DDBU_Data3[Caram_Fri]/1000,"") ->  | S140: 1 | T140: 2 | U140: 1935-01-18 | X140: =Tabel_DDBU_Data3[Aktiv_status] &"-" & Tabel_DDBU_Data3[Licenskort] -> 1-2 | Y140: =IF(Tabel_DDBU_Data3[Kegle]+Tabel_DDBU_Data3[Caram_3B]+Tabel_DDBU_Data3[Caram_1B]+Tabel_DDBU_Data3[Caram_Fri]>0,1,0) -> 1
A141: 114865 | B141: Ulla | C141: Jensen | D141: =Tabel_DDBU_Data3[Fornavn]&" "&Tabel_DDBU_Data3[Efternavn] -> Ulla Jensen | E141: 002 | F141: Nordbornholms Billard Klub | G141: =VALUE(Tabel_DDBU_Data3[Klubnr]) -> 2 | H141: Nordbornh. BK | J141: =IF(Tabel_DDBU_Data3[Kegle]>0,Tabel_DDBU_Data3[Kegle]/1000,"") ->  | L141: =IF(Tabel_DDBU_Data3[Caram_3B]>0,Tabel_DDBU_Data3[Caram_3B]/1000,"") ->  | N141: =IF(Tabel_DDBU_Data3[Caram_1B]>0,Tabel_DDBU_Data3[Caram_1B]/1000,"") ->  | P141: =IF(Tabel_DDBU_Data3[Caram_Fri]>0,Tabel_DDBU_Data3[Caram_Fri]/1000,"") ->  | S141: 1 | T141: 0 | U141: 1939-04-19 | X141: =Tabel_DDBU_Data3[Aktiv_status] &"-" & Tabel_DDBU_Data3[Licenskort] -> 1-0 | Y141: =IF(Tabel_DDBU_Data3[Kegle]+Tabel_DDBU_Data3[Caram_3B]+Tabel_DDBU_Data3[Caram_1B]+Tabel_DDBU_Data3[Caram_Fri]>0,1,0) -> 0
A142: 114906 | B142: Rene | C142: Holm Petersen | D142: =Tabel_DDBU_Data3[Fornavn]&" "&Tabel_DDBU_Data3[Efternavn] -> Rene Holm Petersen | E142: 002 | F142: Nordbornholms Billard Klub | G142: =VALUE(Tabel_DDBU_Data3[Klubnr]) -> 2 | H142: Nordbornh. BK | J142: =IF(Tabel_DDBU_Data3[Kegle]>0,Tabel_DDBU_Data3[Kegle]/1000,"") ->  | L142: =IF(Tabel_DDBU_Data3[Caram_3B]>0,Tabel_DDBU_Data3[Caram_3B]/1000,"") ->  | N142: =IF(Tabel_DDBU_Data3[Caram_1B]>0,Tabel_DDBU_Data3[Caram_1B]/1000,"") ->  | P142: =IF(Tabel_DDBU_Data3[Caram_Fri]>0,Tabel_DDBU_Data3[Caram_Fri]/1000,"") ->  | S142: 0 | T142: 0 | U142: 1992-05-19 | X142: =Tabel_DDBU_Data3[Aktiv_status] &"-" & Tabel_DDBU_Data3[Licenskort] -> 0-0 | Y142: =IF(Tabel_DDBU_Data3[Kegle]+Tabel_DDBU_Data3[Caram_3B]+Tabel_DDBU_Data3[Caram_1B]+Tabel_DDBU_Data3[Caram_Fri]>0,1,0) -> 0
A143: 115123 | B143: Ivar | C143: Nielsen | D143: =Tabel_DDBU_Data3[Fornavn]&" "&Tabel_DDBU_Data3[Efternavn] -> Ivar Nielsen | E143: 002 | F143: Nordbornholms Billard Klub | G143: =VALUE(Tabel_DDBU_Data3[Klubnr]) -> 2 | H143: Nordbornh. BK | J143: =IF(Tabel_DDBU_Data3[Kegle]>0,Tabel_DDBU_Data3[Kegle]/1000,"") ->  | L143: =IF(Tabel_DDBU_Data3[Caram_3B]>0,Tabel_DDBU_Data3[Caram_3B]/1000,"") ->  | N143: =IF(Tabel_DDBU_Data3[Caram_1B]>0,Tabel_DDBU_Data3[Caram_1B]/1000,"") ->  | P143: =IF(Tabel_DDBU_Data3[Caram_Fri]>0,Tabel_DDBU_Data3[Caram_Fri]/1000,"") ->  | S143: 1 | T143: 0 | U143: 1945-03-20 | X143: =Tabel_DDBU_Data3[Aktiv_status] &"-" & Tabel_DDBU_Data3[Licenskort] -> 1-0 | Y143: =IF(Tabel_DDBU_Data3[Kegle]+Tabel_DDBU_Data3[Caram_3B]+Tabel_DDBU_Data3[Caram_1B]+Tabel_DDBU_Data3[Caram_Fri]>0,1,0) -> 0
A144: 116189 | B144: Kai B. | C144: Andersen | D144: =Tabel_DDBU_Data3[Fornavn]&" "&Tabel_DDBU_Data3[Efternavn] -> Kai B. Andersen | E144: 002 | F144: Nordbornholms Billard Klub | G144: =VALUE(Tabel_DDBU_Data3[Klubnr]) -> 2 | H144: Nordbornh. BK | I144: 2460 | J144: =IF(Tabel_DDBU_Data3[Kegle]>0,Tabel_DDBU_Data3[Kegle]/1000,"") -> 2.46 | L144: =IF(Tabel_DDBU_Data3[Caram_3B]>0,Tabel_DDBU_Data3[Caram_3B]/1000,"") ->  | N144: =IF(Tabel_DDBU_Data3[Caram_1B]>0,Tabel_DDBU_Data3[Caram_1B]/1000,"") ->  | P144: =IF(Tabel_DDBU_Data3[Caram_Fri]>0,Tabel_DDBU_Data3[Caram_Fri]/1000,"") ->  | S144: 0 | T144: 0 | U144: 1935-05-24 | X144: =Tabel_DDBU_Data3[Aktiv_status] &"-" & Tabel_DDBU_Data3[Licenskort] -> 0-0 | Y144: =IF(Tabel_DDBU_Data3[Kegle]+Tabel_DDBU_Data3[Caram_3B]+Tabel_DDBU_Data3[Caram_1B]+Tabel_DDBU_Data3[Caram_Fri]>0,1,0) -> 1
A145: 116354 | B145: Flemming | C145: Nielsen | D145: =Tabel_DDBU_Data3[Fornavn]&" "&Tabel_DDBU_Data3[Efternavn] -> Flemming Nielsen | E145: 002 | F145: Nordbornholms Billard Klub | G145: =VALUE(Tabel_DDBU_Data3[Klubnr]) -> 2 | H145: Nordbornh. BK | I145: 7910 | J145: =IF(Tabel_DDBU_Data3[Kegle]>0,Tabel_DDBU_Data3[Kegle]/1000,"") -> 7.91 | L145: =IF(Tabel_DDBU_Data3[Caram_3B]>0,Tabel_DDBU_Data3[Caram_3B]/1000,"") ->  | N145: =IF(Tabel_DDBU_Data3[Caram_1B]>0,Tabel_DDBU_Data3[Caram_1B]/1000,"") ->  | P145: =IF(Tabel_DDBU_Data3[Caram_Fri]>0,Tabel_DDBU_Data3[Caram_Fri]/1000,"") ->  | S145: 1 | T145: 2 | U145: 1938-12-24 | X145: =Tabel_DDBU_Data3[Aktiv_status] &"-" & Tabel_DDBU_Data3[Licenskort] -> 1-2 | Y145: =IF(Tabel_DDBU_Data3[Kegle]+Tabel_DDBU_Data3[Caram_3B]+Tabel_DDBU_Data3[Caram_1B]+Tabel_DDBU_Data3[Caram_Fri]>0,1,0) -> 1
A146: 116773 | B146: Gunnar | C146: Dam | D146: =Tabel_DDBU_Data3[Fornavn]&" "&Tabel_DDBU_Data3[Efternavn] -> Gunnar Dam | E146: 002 | F146: Nordbornholms Billard Klub | G146: =VALUE(Tabel_DDBU_Data3[Klubnr]) -> 2 | H146: Nordbornh. BK | J146: =IF(Tabel_DDBU_Data3[Kegle]>0,Tabel_DDBU_Data3[Kegle]/1000,"") ->  | L146: =IF(Tabel_DDBU_Data3[Caram_3B]>0,Tabel_DDBU_Data3[Caram_3B]/1000,"") ->  | N146: =IF(Tabel_DDBU_Data3[Caram_1B]>0,Tabel_DDBU_Data3[Caram_1B]/1000,"") ->  | P146: =IF(Tabel_DDBU_Data3[Caram_Fri]>0,Tabel_DDBU_Data3[Caram_Fri]/1000,"") ->  | S146: 0 | T146: 0 | U146: 1935-07-26 | X146: =Tabel_DDBU_Data3[Aktiv_status] &"-" & Tabel_DDBU_Data3[Licenskort] -> 0-0 | Y146: =IF(Tabel_DDBU_Data3[Kegle]+Tabel_DDBU_Data3[Caram_3B]+Tabel_DDBU_Data3[Caram_1B]+Tabel_DDBU_Data3[Caram_Fri]>0,1,0) -> 0
A147: 116870 | B147: Erik | C147: Høst | D147: =Tabel_DDBU_Data3[Fornavn]&" "&Tabel_DDBU_Data3[Efternavn] -> Erik Høst | E147: 002 | F147: Nordbornholms Billard Klub | G147: =VALUE(Tabel_DDBU_Data3[Klubnr]) -> 2 | H147: Nordbornh. BK | I147: 11610 | J147: =IF(Tabel_DDBU_Data3[Kegle]>0,Tabel_DDBU_Data3[Kegle]/1000,"") -> 11.61 | L147: =IF(Tabel_DDBU_Data3[Caram_3B]>0,Tabel_DDBU_Data3[Caram_3B]/1000,"") ->  | M147: 540 | N147: =IF(Tabel_DDBU_Data3[Caram_1B]>0,Tabel_DDBU_Data3[Caram_1B]/1000,"") -> 0.54 | O147: 1140 | P147: =IF(Tabel_DDBU_Data3[Caram_Fri]>0,Tabel_DDBU_Data3[Caram_Fri]/1000,"") -> 1.14 | S147: 1 | T147: 2 | U147: 1956-11-26 | X147: =Tabel_DDBU_Data3[Aktiv_status] &"-" & Tabel_DDBU_Data3[Licenskort] -> 1-2 | Y147: =IF(Tabel_DDBU_Data3[Kegle]+Tabel_DDBU_Data3[Caram_3B]+Tabel_DDBU_Data3[Caram_1B]+Tabel_DDBU_Data3[Caram_Fri]>0,1,0) -> 1
A148: 117383 | B148: Gordon | C148: Schou | D148: =Tabel_DDBU_Data3[Fornavn]&" "&Tabel_DDBU_Data3[Efternavn] -> Gordon Schou | E148: 002 | F148: Nordbornholms Billard Klub | G148: =VALUE(Tabel_DDBU_Data3[Klubnr]) -> 2 | H148: Nordbornh. BK | I148: 4850 | J148: =IF(Tabel_DDBU_Data3[Kegle]>0,Tabel_DDBU_Data3[Kegle]/1000,"") -> 4.85 | L148: =IF(Tabel_DDBU_Data3[Caram_3B]>0,Tabel_DDBU_Data3[Caram_3B]/1000,"") ->  | N148: =IF(Tabel_DDBU_Data3[Caram_1B]>0,Tabel_DDBU_Data3[Caram_1B]/1000,"") ->  | O148: 470 | P148: =IF(Tabel_DDBU_Data3[Caram_Fri]>0,Tabel_DDBU_Data3[Caram_Fri]/1000,"") -> 0.47 | S148: 1 | T148: 0 | U148: 1945-10-28 | X148: =Tabel_DDBU_Data3[Aktiv_status] &"-" & Tabel_DDBU_Data3[Licenskort] -> 1-0 | Y148: =IF(Tabel_DDBU_Data3[Kegle]+Tabel_DDBU_Data3[Caram_3B]+Tabel_DDBU_Data3[Caram_1B]+Tabel_DDBU_Data3[Caram_Fri]>0,1,0) -> 1
A149: 117445 | B149: Kurt | C149: Ipsen | D149: =Tabel_DDBU_Data3[Fornavn]&" "&Tabel_DDBU_Data3[Efternavn] -> Kurt Ipsen | E149: 002 | F149: Nordbornholms Billard Klub | G149: =VALUE(Tabel_DDBU_Data3[Klubnr]) -> 2 | H149: Nordbornh. BK | I149: 6380 | J149: =IF(Tabel_DDBU_Data3[Kegle]>0,Tabel_DDBU_Data3[Kegle]/1000,"") -> 6.38 | L149: =IF(Tabel_DDBU_Data3[Caram_3B]>0,Tabel_DDBU_Data3[Caram_3B]/1000,"") ->  | N149: =IF(Tabel_DDBU_Data3[Caram_1B]>0,Tabel_DDBU_Data3[Caram_1B]/1000,"") ->  | O149: 500 | P149: =IF(Tabel_DDBU_Data3[Caram_Fri]>0,Tabel_DDBU_Data3[Caram_Fri]/1000,"") -> 0.5 | S149: 1 | T149: 2 | U149: 1947-01-29 | X149: =Tabel_DDBU_Data3[Aktiv_status] &"-" & Tabel_DDBU_Data3[Licenskort] -> 1-2 | Y149: =IF(Tabel_DDBU_Data3[Kegle]+Tabel_DDBU_Data3[Caram_3B]+Tabel_DDBU_Data3[Caram_1B]+Tabel_DDBU_Data3[Caram_Fri]>0,1,0) -> 1
A150: 117767 | B150: Trygve | C150: Høst | D150: =Tabel_DDBU_Data3[Fornavn]&" "&Tabel_DDBU_Data3[Efternavn] -> Trygve Høst | E150: 002 | F150: Nordbornholms Billard Klub | G150: =VALUE(Tabel_DDBU_Data3[Klubnr]) -> 2 | H150: Nordbornh. BK | I150: 8290 | J150: =IF(Tabel_DDBU_Data3[Kegle]>0,Tabel_DDBU_Data3[Kegle]/1000,"") -> 8.29 | L150: =IF(Tabel_DDBU_Data3[Caram_3B]>0,Tabel_DDBU_Data3[Caram_3B]/1000,"") ->  | M150: 430 | N150: =IF(Tabel_DDBU_Data3[Caram_1B]>0,Tabel_DDBU_Data3[Caram_1B]/1000,"") -> 0.43 | O150: 720 | P150: =IF(Tabel_DDBU_Data3[Caram_Fri]>0,Tabel_DDBU_Data3[Caram_Fri]/1000,"") -> 0.72 | S150: 1 | T150: 2 | U150: 1949-05-30 | X150: =Tabel_DDBU_Data3[Aktiv_status] &"-" & Tabel_DDBU_Data3[Licenskort] -> 1-2 | Y150: =IF(Tabel_DDBU_Data3[Kegle]+Tabel_DDBU_Data3[Caram_3B]+Tabel_DDBU_Data3[Caram_1B]+Tabel_DDBU_Data3[Caram_Fri]>0,1,0) -> 1
A151: 117783 | B151: Birthe | C151: Ipsen | D151: =Tabel_DDBU_Data3[Fornavn]&" "&Tabel_DDBU_Data3[Efternavn] -> Birthe Ipsen | E151: 002 | F151: Nordbornholms Billard Klub | G151: =VALUE(Tabel_DDBU_Data3[Klubnr]) -> 2 | H151: Nordbornh. BK | I151: 4110 | J151: =IF(Tabel_DDBU_Data3[Kegle]>0,Tabel_DDBU_Data3[Kegle]/1000,"") -> 4.11 | L151: =IF(Tabel_DDBU_Data3[Caram_3B]>0,Tabel_DDBU_Data3[Caram_3B]/1000,"") ->  | N151: =IF(Tabel_DDBU_Data3[Caram_1B]>0,Tabel_DDBU_Data3[Caram_1B]/1000,"") ->  | P151: =IF(Tabel_DDBU_Data3[Caram_Fri]>0,Tabel_DDBU_Data3[Caram_Fri]/1000,"") ->  | S151: 1 | T151: 2 | U151: 1946-06-30 | X151: =Tabel_DDBU_Data3[Aktiv_status] &"-" & Tabel_DDBU_Data3[Licenskort] -> 1-2 | Y151: =IF(Tabel_DDBU_Data3[Kegle]+Tabel_DDBU_Data3[Caram_3B]+Tabel_DDBU_Data3[Caram_1B]+Tabel_DDBU_Data3[Caram_Fri]>0,1,0) -> 1
A152: 118623 | B152: Eivind | C152: Rasmussen | D152: =Tabel_DDBU_Data3[Fornavn]&" "&Tabel_DDBU_Data3[Efternavn] -> Eivind Rasmussen | E152: 002 | F152: Nordbornholms Billard Klub | G152: =VALUE(Tabel_DDBU_Data3[Klubnr]) -> 2 | H152: Nordbornh. BK | J152: =IF(Tabel_DDBU_Data3[Kegle]>0,Tabel_DDBU_Data3[Kegle]/1000,"") ->  | L152: =IF(Tabel_DDBU_Data3[Caram_3B]>0,Tabel_DDBU_Data3[Caram_3B]/1000,"") ->  | N152: =IF(Tabel_DDBU_Data3[Caram_1B]>0,Tabel_DDBU_Data3[Caram_1B]/1000,"") ->  | P152: =IF(Tabel_DDBU_Data3[Caram_Fri]>0,Tabel_DDBU_Data3[Caram_Fri]/1000,"") ->  | S152: 0 | T152: 0 | U152: 1949-11-22 | X152: =Tabel_DDBU_Data3[Aktiv_status] &"-" & Tabel_DDBU_Data3[Licenskort] -> 0-0 | Y152: =IF(Tabel_DDBU_Data3[Kegle]+Tabel_DDBU_Data3[Caram_3B]+Tabel_DDBU_Data3[Caram_1B]+Tabel_DDBU_Data3[Caram_Fri]>0,1,0) -> 0
A153: 118780 | B153: Mie | C153: Høst | D153: =Tabel_DDBU_Data3[Fornavn]&" "&Tabel_DDBU_Data3[Efternavn] -> Mie Høst | E153: 002 | F153: Nordbornholms Billard Klub | G153: =VALUE(Tabel_DDBU_Data3[Klubnr]) -> 2 | H153: Nordbornh. BK | J153: =IF(Tabel_DDBU_Data3[Kegle]>0,Tabel_DDBU_Data3[Kegle]/1000,"") ->  | L153: =IF(Tabel_DDBU_Data3[Caram_3B]>0,Tabel_DDBU_Data3[Caram_3B]/1000,"") ->  | N153: =IF(Tabel_DDBU_Data3[Caram_1B]>0,Tabel_DDBU_Data3[Caram_1B]/1000,"") ->  | P153: =IF(Tabel_DDBU_Data3[Caram_Fri]>0,Tabel_DDBU_Data3[Caram_Fri]/1000,"") ->  | S153: 1 | T153: 0 | U153: 1996-04-18 | X153: =Tabel_DDBU_Data3[Aktiv_status] &"-" & Tabel_DDBU_Data3[Licenskort] -> 1-0 | Y153: =IF(Tabel_DDBU_Data3[Kegle]+Tabel_DDBU_Data3[Caram_3B]+Tabel_DDBU_Data3[Caram_1B]+Tabel_DDBU_Data3[Caram_Fri]>0,1,0) -> 0
A154: 118781 | B154: Søren | C154: Høst | D154: =Tabel_DDBU_Data3[Fornavn]&" "&Tabel_DDBU_Data3[Efternavn] -> Søren Høst | E154: 002 | F154: Nordbornholms Billard Klub | G154: =VALUE(Tabel_DDBU_Data3[Klubnr]) -> 2 | H154: Nordbornh. BK | J154: =IF(Tabel_DDBU_Data3[Kegle]>0,Tabel_DDBU_Data3[Kegle]/1000,"") ->  | L154: =IF(Tabel_DDBU_Data3[Caram_3B]>0,Tabel_DDBU_Data3[Caram_3B]/1000,"") ->  | N154: =IF(Tabel_DDBU_Data3[Caram_1B]>0,Tabel_DDBU_Data3[Caram_1B]/1000,"") ->  | P154: =IF(Tabel_DDBU_Data3[Caram_Fri]>0,Tabel_DDBU_Data3[Caram_Fri]/1000,"") ->  | S154: 0 | T154: 0 | U154: 1993-12-02 | X154: =Tabel_DDBU_Data3[Aktiv_status] &"-" & Tabel_DDBU_Data3[Licenskort] -> 0-0 | Y154: =IF(Tabel_DDBU_Data3[Kegle]+Tabel_DDBU_Data3[Caram_3B]+Tabel_DDBU_Data3[Caram_1B]+Tabel_DDBU_Data3[Caram_Fri]>0,1,0) -> 0
A155: 118782 | B155: Svend | C155: Klausen | D155: =Tabel_DDBU_Data3[Fornavn]&" "&Tabel_DDBU_Data3[Efternavn] -> Svend Klausen | E155: 002 | F155: Nordbornholms Billard Klub | G155: =VALUE(Tabel_DDBU_Data3[Klubnr]) -> 2 | H155: Nordbornh. BK | J155: =IF(Tabel_DDBU_Data3[Kegle]>0,Tabel_DDBU_Data3[Kegle]/1000,"") ->  | L155: =IF(Tabel_DDBU_Data3[Caram_3B]>0,Tabel_DDBU_Data3[Caram_3B]/1000,"") ->  | N155: =IF(Tabel_DDBU_Data3[Caram_1B]>0,Tabel_DDBU_Data3[Caram_1B]/1000,"") ->  | P155: =IF(Tabel_DDBU_Data3[Caram_Fri]>0,Tabel_DDBU_Data3[Caram_Fri]/1000,"") ->  | S155: 0 | T155: 0 | U155: 1928-03-14 | X155: =Tabel_DDBU_Data3[Aktiv_status] &"-" & Tabel_DDBU_Data3[Licenskort] -> 0-0 | Y155: =IF(Tabel_DDBU_Data3[Kegle]+Tabel_DDBU_Data3[Caram_3B]+Tabel_DDBU_Data3[Caram_1B]+Tabel_DDBU_Data3[Caram_Fri]>0,1,0) -> 0
A156: 118783 | B156: Preben | C156: Myhre | D156: =Tabel_DDBU_Data3[Fornavn]&" "&Tabel_DDBU_Data3[Efternavn] -> Preben Myhre | E156: 002 | F156: Nordbornholms Billard Klub | G156: =VALUE(Tabel_DDBU_Data3[Klubnr]) -> 2 | H156: Nordbornh. BK | J156: =IF(Tabel_DDBU_Data3[Kegle]>0,Tabel_DDBU_Data3[Kegle]/1000,"") ->  | L156: =IF(Tabel_DDBU_Data3[Caram_3B]>0,Tabel_DDBU_Data3[Caram_3B]/1000,"") ->  | N156: =IF(Tabel_DDBU_Data3[Caram_1B]>0,Tabel_DDBU_Data3[Caram_1B]/1000,"") ->  | P156: =IF(Tabel_DDBU_Data3[Caram_Fri]>0,Tabel_DDBU_Data3[Caram_Fri]/1000,"") ->  | S156: 0 | T156: 0 | U156: 1948-04-21 | X156: =Tabel_DDBU_Data3[Aktiv_status] &"-" & Tabel_DDBU_Data3[Licenskort] -> 0-0 | Y156: =IF(Tabel_DDBU_Data3[Kegle]+Tabel_DDBU_Data3[Caram_3B]+Tabel_DDBU_Data3[Caram_1B]+Tabel_DDBU_Data3[Caram_Fri]>0,1,0) -> 0
A157: 118784 | B157: Rino | C157: Rasmussen | D157: =Tabel_DDBU_Data3[Fornavn]&" "&Tabel_DDBU_Data3[Efternavn] -> Rino Rasmussen | E157: 002 | F157: Nordbornholms Billard Klub | G157: =VALUE(Tabel_DDBU_Data3[Klubnr]) -> 2 | H157: Nordbornh. BK | I157: 6170 | J157: =IF(Tabel_DDBU_Data3[Kegle]>0,Tabel_DDBU_Data3[Kegle]/1000,"") -> 6.17 | L157: =IF(Tabel_DDBU_Data3[Caram_3B]>0,Tabel_DDBU_Data3[Caram_3B]/1000,"") ->  | N157: =IF(Tabel_DDBU_Data3[Caram_1B]>0,Tabel_DDBU_Data3[Caram_1B]/1000,"") ->  | P157: =IF(Tabel_DDBU_Data3[Caram_Fri]>0,Tabel_DDBU_Data3[Caram_Fri]/1000,"") ->  | S157: 0 | T157: 0 | U157: 1945-05-13 | X157: =Tabel_DDBU_Data3[Aktiv_status] &"-" & Tabel_DDBU_Data3[Licenskort] -> 0-0 | Y157: =IF(Tabel_DDBU_Data3[Kegle]+Tabel_DDBU_Data3[Caram_3B]+Tabel_DDBU_Data3[Caram_1B]+Tabel_DDBU_Data3[Caram_Fri]>0,1,0) -> 1
A158: 118820 | B158: Per | C158: Hønningen | D158: =Tabel_DDBU_Data3[Fornavn]&" "&Tabel_DDBU_Data3[Efternavn] -> Per Hønningen | E158: 002 | F158: Nordbornholms Billard Klub | G158: =VALUE(Tabel_DDBU_Data3[Klubnr]) -> 2 | H158: Nordbornh. BK | J158: =IF(Tabel_DDBU_Data3[Kegle]>0,Tabel_DDBU_Data3[Kegle]/1000,"") ->  | L158: =IF(Tabel_DDBU_Data3[Caram_3B]>0,Tabel_DDBU_Data3[Caram_3B]/1000,"") ->  | N158: =IF(Tabel_DDBU_Data3[Caram_1B]>0,Tabel_DDBU_Data3[Caram_1B]/1000,"") ->  | P158: =IF(Tabel_DDBU_Data3[Caram_Fri]>0,Tabel_DDBU_Data3[Caram_Fri]/1000,"") ->  | S158: 0 | T158: 0 | U158: 1947-12-10 | X158: =Tabel_DDBU_Data3[Aktiv_status] &"-" & Tabel_DDBU_Data3[Licenskort] -> 0-0 | Y158: =IF(Tabel_DDBU_Data3[Kegle]+Tabel_DDBU_Data3[Caram_3B]+Tabel_DDBU_Data3[Caram_1B]+Tabel_DDBU_Data3[Caram_Fri]>0,1,0) -> 0
A159: 118859 | B159: Henning | C159: Dahl Olsen | D159: =Tabel_DDBU_Data3[Fornavn]&" "&Tabel_DDBU_Data3[Efternavn] -> Henning Dahl Olsen | E159: 002 | F159: Nordbornholms Billard Klub | G159: =VALUE(Tabel_DDBU_Data3[Klubnr]) -> 2 | H159: Nordbornh. BK | I159: 3280 | J159: =IF(Tabel_DDBU_Data3[Kegle]>0,Tabel_DDBU_Data3[Kegle]/1000,"") -> 3.28 | L159: =IF(Tabel_DDBU_Data3[Caram_3B]>0,Tabel_DDBU_Data3[Caram_3B]/1000,"") ->  | N159: =IF(Tabel_DDBU_Data3[Caram_1B]>0,Tabel_DDBU_Data3[Caram_1B]/1000,"") ->  | O159: 290 | P159: =IF(Tabel_DDBU_Data3[Caram_Fri]>0,Tabel_DDBU_Data3[Caram_Fri]/1000,"") -> 0.29 | S159: 1 | T159: 2 | U159: 1947-10-01 | X159: =Tabel_DDBU_Data3[Aktiv_status] &"-" & Tabel_DDBU_Data3[Licenskort] -> 1-2 | Y159: =IF(Tabel_DDBU_Data3[Kegle]+Tabel_DDBU_Data3[Caram_3B]+Tabel_DDBU_Data3[Caram_1B]+Tabel_DDBU_Data3[Caram_Fri]>0,1,0) -> 1
A160: 119723 | B160: Poul | C160: Bloch | D160: =Tabel_DDBU_Data3[Fornavn]&" "&Tabel_DDBU_Data3[Efternavn] -> Poul Bloch | E160: 002 | F160: Nordbornholms Billard Klub | G160: =VALUE(Tabel_DDBU_Data3[Klubnr]) -> 2 | H160: Nordbornh. BK | I160: 5780 | J160: =IF(Tabel_DDBU_Data3[Kegle]>0,Tabel_DDBU_Data3[Kegle]/1000,"") -> 5.78 | L160: =IF(Tabel_DDBU_Data3[Caram_3B]>0,Tabel_DDBU_Data3[Caram_3B]/1000,"") ->  | N160: =IF(Tabel_DDBU_Data3[Caram_1B]>0,Tabel_DDBU_Data3[Caram_1B]/1000,"") ->  | O160: 560 | P160: =IF(Tabel_DDBU_Data3[Caram_Fri]>0,Tabel_DDBU_Data3[Caram_Fri]/1000,"") -> 0.56 | S160: 1 | T160: 2 | U160: 1961-11-30 | X160: =Tabel_DDBU_Data3[Aktiv_status] &"-" & Tabel_DDBU_Data3[Licenskort] -> 1-2 | Y160: =IF(Tabel_DDBU_Data3[Kegle]+Tabel_DDBU_Data3[Caram_3B]+Tabel_DDBU_Data3[Caram_1B]+Tabel_DDBU_Data3[Caram_Fri]>0,1,0) -> 1
A161: 120019 | B161: Bent | C161: Hansen | D161: =Tabel_DDBU_Data3[Fornavn]&" "&Tabel_DDBU_Data3[Efternavn] -> Bent Hansen | E161: 002 | F161: Nordbornholms Billard Klub | G161: =VALUE(Tabel_DDBU_Data3[Klubnr]) -> 2 | H161: Nordbornh. BK | I161: 3230 | J161: =IF(Tabel_DDBU_Data3[Kegle]>0,Tabel_DDBU_Data3[Kegle]/1000,"") -> 3.23 | L161: =IF(Tabel_DDBU_Data3[Caram_3B]>0,Tabel_DDBU_Data3[Caram_3B]/1000,"") ->  | N161: =IF(Tabel_DDBU_Data3[Caram_1B]>0,Tabel_DDBU_Data3[Caram_1B]/1000,"") ->  | P161: =IF(Tabel_DDBU_Data3[Caram_Fri]>0,Tabel_DDBU_Data3[Caram_Fri]/1000,"") ->  | S161: 1 | T161: 2 | U161: 1941-04-05 | X161: =Tabel_DDBU_Data3[Aktiv_status] &"-" & Tabel_DDBU_Data3[Licenskort] -> 1-2 | Y161: =IF(Tabel_DDBU_Data3[Kegle]+Tabel_DDBU_Data3[Caram_3B]+Tabel_DDBU_Data3[Caram_1B]+Tabel_DDBU_Data3[Caram_Fri]>0,1,0) -> 1
A162: 120048 | B162: Jacob | C162: Jørgensen | D162: =Tabel_DDBU_Data3[Fornavn]&" "&Tabel_DDBU_Data3[Efternavn] -> Jacob Jørgensen | E162: 002 | F162: Nordbornholms Billard Klub | G162: =VALUE(Tabel_DDBU_Data3[Klubnr]) -> 2 | H162: Nordbornh. BK | I162: 3730 | J162: =IF(Tabel_DDBU_Data3[Kegle]>0,Tabel_DDBU_Data3[Kegle]/1000,"") -> 3.73 | L162: =IF(Tabel_DDBU_Data3[Caram_3B]>0,Tabel_DDBU_Data3[Caram_3B]/1000,"") ->  | N162: =IF(Tabel_DDBU_Data3[Caram_1B]>0,Tabel_DDBU_Data3[Caram_1B]/1000,"") ->  | P162: =IF(Tabel_DDBU_Data3[Caram_Fri]>0,Tabel_DDBU_Data3[Caram_Fri]/1000,"") ->  | S162: 1 | T162: 2 | U162: 1949-12-23 | X162: =Tabel_DDBU_Data3[Aktiv_status] &"-" & Tabel_DDBU_Data3[Licenskort] -> 1-2 | Y162: =IF(Tabel_DDBU_Data3[Kegle]+Tabel_DDBU_Data3[Caram_3B]+Tabel_DDBU_Data3[Caram_1B]+Tabel_DDBU_Data3[Caram_Fri]>0,1,0) -> 1
A163: 120815 | B163: Henning | C163: Dahl Olsen | D163: =Tabel_DDBU_Data3[Fornavn]&" "&Tabel_DDBU_Data3[Efternavn] -> Henning Dahl Olsen | E163: 002 | F163: Nordbornholms Billard Klub | G163: =VALUE(Tabel_DDBU_Data3[Klubnr]) -> 2 | H163: Nordbornh. BK | J163: =IF(Tabel_DDBU_Data3[Kegle]>0,Tabel_DDBU_Data3[Kegle]/1000,"") ->  | L163: =IF(Tabel_DDBU_Data3[Caram_3B]>0,Tabel_DDBU_Data3[Caram_3B]/1000,"") ->  | N163: =IF(Tabel_DDBU_Data3[Caram_1B]>0,Tabel_DDBU_Data3[Caram_1B]/1000,"") ->  | P163: =IF(Tabel_DDBU_Data3[Caram_Fri]>0,Tabel_DDBU_Data3[Caram_Fri]/1000,"") ->  | S163: 0 | T163: 0 | U163: 0000-00-00 | X163: =Tabel_DDBU_Data3[Aktiv_status] &"-" & Tabel_DDBU_Data3[Licenskort] -> 0-0 | Y163: =IF(Tabel_DDBU_Data3[Kegle]+Tabel_DDBU_Data3[Caram_3B]+Tabel_DDBU_Data3[Caram_1B]+Tabel_DDBU_Data3[Caram_Fri]>0,1,0) -> 0
A164: 120891 | B164: Preben | C164: Myhre | D164: =Tabel_DDBU_Data3[Fornavn]&" "&Tabel_DDBU_Data3[Efternavn] -> Preben Myhre | E164: 002 | F164: Nordbornholms Billard Klub | G164: =VALUE(Tabel_DDBU_Data3[Klubnr]) -> 2 | H164: Nordbornh. BK | I164: 5150 | J164: =IF(Tabel_DDBU_Data3[Kegle]>0,Tabel_DDBU_Data3[Kegle]/1000,"") -> 5.15 | L164: =IF(Tabel_DDBU_Data3[Caram_3B]>0,Tabel_DDBU_Data3[Caram_3B]/1000,"") ->  | N164: =IF(Tabel_DDBU_Data3[Caram_1B]>0,Tabel_DDBU_Data3[Caram_1B]/1000,"") ->  | P164: =IF(Tabel_DDBU_Data3[Caram_Fri]>0,Tabel_DDBU_Data3[Caram_Fri]/1000,"") ->  | S164: 1 | T164: 2 | U164: 1948-04-21 | X164: =Tabel_DDBU_Data3[Aktiv_status] &"-" & Tabel_DDBU_Data3[Licenskort] -> 1-2 | Y164: =IF(Tabel_DDBU_Data3[Kegle]+Tabel_DDBU_Data3[Caram_3B]+Tabel_DDBU_Data3[Caram_1B]+Tabel_DDBU_Data3[Caram_Fri]>0,1,0) -> 1
A165: 121163 | B165: Hans | C165: Tranberg | D165: =Tabel_DDBU_Data3[Fornavn]&" "&Tabel_DDBU_Data3[Efternavn] -> Hans Tranberg | E165: 002 | F165: Nordbornholms Billard Klub | G165: =VALUE(Tabel_DDBU_Data3[Klubnr]) -> 2 | H165: Nordbornh. BK | I165: 3840 | J165: =IF(Tabel_DDBU_Data3[Kegle]>0,Tabel_DDBU_Data3[Kegle]/1000,"") -> 3.84 | L165: =IF(Tabel_DDBU_Data3[Caram_3B]>0,Tabel_DDBU_Data3[Caram_3B]/1000,"") ->  | N165: =IF(Tabel_DDBU_Data3[Caram_1B]>0,Tabel_DDBU_Data3[Caram_1B]/1000,"") ->  | P165: =IF(Tabel_DDBU_Data3[Caram_Fri]>0,Tabel_DDBU_Data3[Caram_Fri]/1000,"") ->  | S165: 0 | T165: 0 | U165: 1952-11-06 | X165: =Tabel_DDBU_Data3[Aktiv_status] &"-" & Tabel_DDBU_Data3[Licenskort] -> 0-0 | Y165: =IF(Tabel_DDBU_Data3[Kegle]+Tabel_DDBU_Data3[Caram_3B]+Tabel_DDBU_Data3[Caram_1B]+Tabel_DDBU_Data3[Caram_Fri]>0,1,0) -> 1
A166: 121628 | B166: Thomas | C166: Augustssen | D166: =Tabel_DDBU_Data3[Fornavn]&" "&Tabel_DDBU_Data3[Efternavn] -> Thomas Augustssen | E166: 002 | F166: Nordbornholms Billard Klub | G166: =VALUE(Tabel_DDBU_Data3[Klubnr]) -> 2 | H166: Nordbornh. BK | I166: 4120 | J166: =IF(Tabel_DDBU_Data3[Kegle]>0,Tabel_DDBU_Data3[Kegle]/1000,"") -> 4.12 | L166: =IF(Tabel_DDBU_Data3[Caram_3B]>0,Tabel_DDBU_Data3[Caram_3B]/1000,"") ->  | N166: =IF(Tabel_DDBU_Data3[Caram_1B]>0,Tabel_DDBU_Data3[Caram_1B]/1000,"") ->  | P166: =IF(Tabel_DDBU_Data3[Caram_Fri]>0,Tabel_DDBU_Data3[Caram_Fri]/1000,"") ->  | S166: 0 | T166: 0 | U166: 1970-01-17 | X166: =Tabel_DDBU_Data3[Aktiv_status] &"-" & Tabel_DDBU_Data3[Licenskort] -> 0-0 | Y166: =IF(Tabel_DDBU_Data3[Kegle]+Tabel_DDBU_Data3[Caram_3B]+Tabel_DDBU_Data3[Caram_1B]+Tabel_DDBU_Data3[Caram_Fri]>0,1,0) -> 1
A167: 121629 | B167: Hans-Henrik | C167: Nielsen | D167: =Tabel_DDBU_Data3[Fornavn]&" "&Tabel_DDBU_Data3[Efternavn] -> Hans-Henrik Nielsen | E167: 002 | F167: Nordbornholms Billard Klub | G167: =VALUE(Tabel_DDBU_Data3[Klubnr]) -> 2 | H167: Nordbornh. BK | I167: 9670 | J167: =IF(Tabel_DDBU_Data3[Kegle]>0,Tabel_DDBU_Data3[Kegle]/1000,"") -> 9.67 | L167: =IF(Tabel_DDBU_Data3[Caram_3B]>0,Tabel_DDBU_Data3[Caram_3B]/1000,"") ->  | N167: =IF(Tabel_DDBU_Data3[Caram_1B]>0,Tabel_DDBU_Data3[Caram_1B]/1000,"") ->  | P167: =IF(Tabel_DDBU_Data3[Caram_Fri]>0,Tabel_DDBU_Data3[Caram_Fri]/1000,"") ->  | S167: 1 | T167: 2 | U167: 1961-11-27 | X167: =Tabel_DDBU_Data3[Aktiv_status] &"-" & Tabel_DDBU_Data3[Licenskort] -> 1-2 | Y167: =IF(Tabel_DDBU_Data3[Kegle]+Tabel_DDBU_Data3[Caram_3B]+Tabel_DDBU_Data3[Caram_1B]+Tabel_DDBU_Data3[Caram_Fri]>0,1,0) -> 1
A168: 121630 | B168: Brian | C168: Jensen | D168: =Tabel_DDBU_Data3[Fornavn]&" "&Tabel_DDBU_Data3[Efternavn] -> Brian Jensen | E168: 002 | F168: Nordbornholms Billard Klub | G168: =VALUE(Tabel_DDBU_Data3[Klubnr]) -> 2 | H168: Nordbornh. BK | I168: 12400 | J168: =IF(Tabel_DDBU_Data3[Kegle]>0,Tabel_DDBU_Data3[Kegle]/1000,"") -> 12.4 | L168: =IF(Tabel_DDBU_Data3[Caram_3B]>0,Tabel_DDBU_Data3[Caram_3B]/1000,"") ->  | N168: =IF(Tabel_DDBU_Data3[Caram_1B]>0,Tabel_DDBU_Data3[Caram_1B]/1000,"") ->  | O168: 930 | P168: =IF(Tabel_DDBU_Data3[Caram_Fri]>0,Tabel_DDBU_Data3[Caram_Fri]/1000,"") -> 0.93 | S168: 1 | T168: 2 | U168: 1966-10-20 | X168: =Tabel_DDBU_Data3[Aktiv_status] &"-" & Tabel_DDBU_Data3[Licenskort] -> 1-2 | Y168: =IF(Tabel_DDBU_Data3[Kegle]+Tabel_DDBU_Data3[Caram_3B]+Tabel_DDBU_Data3[Caram_1B]+Tabel_DDBU_Data3[Caram_Fri]>0,1,0) -> 1
A169: 121665 | B169: Ellen | C169: Andersen | D169: =Tabel_DDBU_Data3[Fornavn]&" "&Tabel_DDBU_Data3[Efternavn] -> Ellen Andersen | E169: 002 | F169: Nordbornholms Billard Klub | G169: =VALUE(Tabel_DDBU_Data3[Klubnr]) -> 2 | H169: Nordbornh. BK | I169: 1980 | J169: =IF(Tabel_DDBU_Data3[Kegle]>0,Tabel_DDBU_Data3[Kegle]/1000,"") -> 1.98 | L169: =IF(Tabel_DDBU_Data3[Caram_3B]>0,Tabel_DDBU_Data3[Caram_3B]/1000,"") ->  | N169: =IF(Tabel_DDBU_Data3[Caram_1B]>0,Tabel_DDBU_Data3[Caram_1B]/1000,"") ->  | P169: =IF(Tabel_DDBU_Data3[Caram_Fri]>0,Tabel_DDBU_Data3[Caram_Fri]/1000,"") ->  | S169: 0 | T169: 0 | U169: 1940-06-28 | X169: =Tabel_DDBU_Data3[Aktiv_status] &"-" & Tabel_DDBU_Data3[Licenskort] -> 0-0 | Y169: =IF(Tabel_DDBU_Data3[Kegle]+Tabel_DDBU_Data3[Caram_3B]+Tabel_DDBU_Data3[Caram_1B]+Tabel_DDBU_Data3[Caram_Fri]>0,1,0) -> 1
A170: 121751 | B170: Michael | C170: Andersen | D170: =Tabel_DDBU_Data3[Fornavn]&" "&Tabel_DDBU_Data3[Efternavn] -> Michael Andersen | E170: 002 | F170: Nordbornholms Billard Klub | G170: =VALUE(Tabel_DDBU_Data3[Klubnr]) -> 2 | H170: Nordbornh. BK | I170: 6000 | J170: =IF(Tabel_DDBU_Data3[Kegle]>0,Tabel_DDBU_Data3[Kegle]/1000,"") -> 6 | L170: =IF(Tabel_DDBU_Data3[Caram_3B]>0,Tabel_DDBU_Data3[Caram_3B]/1000,"") ->  | N170: =IF(Tabel_DDBU_Data3[Caram_1B]>0,Tabel_DDBU_Data3[Caram_1B]/1000,"") ->  | O170: 540 | P170: =IF(Tabel_DDBU_Data3[Caram_Fri]>0,Tabel_DDBU_Data3[Caram_Fri]/1000,"") -> 0.54 | S170: 1 | T170: 2 | U170: 1962-03-08 | X170: =Tabel_DDBU_Data3[Aktiv_status] &"-" & Tabel_DDBU_Data3[Licenskort] -> 1-2 | Y170: =IF(Tabel_DDBU_Data3[Kegle]+Tabel_DDBU_Data3[Caram_3B]+Tabel_DDBU_Data3[Caram_1B]+Tabel_DDBU_Data3[Caram_Fri]>0,1,0) -> 1
A171: 121970 | B171: Jonas | C171: Nielsen | D171: =Tabel_DDBU_Data3[Fornavn]&" "&Tabel_DDBU_Data3[Efternavn] -> Jonas Nielsen | E171: 002 | F171: Nordbornholms Billard Klub | G171: =VALUE(Tabel_DDBU_Data3[Klubnr]) -> 2 | H171: Nordbornh. BK | I171: 11820 | J171: =IF(Tabel_DDBU_Data3[Kegle]>0,Tabel_DDBU_Data3[Kegle]/1000,"") -> 11.82 | L171: =IF(Tabel_DDBU_Data3[Caram_3B]>0,Tabel_DDBU_Data3[Caram_3B]/1000,"") ->  | N171: =IF(Tabel_DDBU_Data3[Caram_1B]>0,Tabel_DDBU_Data3[Caram_1B]/1000,"") ->  | P171: =IF(Tabel_DDBU_Data3[Caram_Fri]>0,Tabel_DDBU_Data3[Caram_Fri]/1000,"") ->  | S171: 1 | T171: 2 | U171: 1970-01-24 | X171: =Tabel_DDBU_Data3[Aktiv_status] &"-" & Tabel_DDBU_Data3[Licenskort] -> 1-2 | Y171: =IF(Tabel_DDBU_Data3[Kegle]+Tabel_DDBU_Data3[Caram_3B]+Tabel_DDBU_Data3[Caram_1B]+Tabel_DDBU_Data3[Caram_Fri]>0,1,0) -> 1
A172: 122114 | B172: Ole Bjørn | C172: Gjøg | D172: =Tabel_DDBU_Data3[Fornavn]&" "&Tabel_DDBU_Data3[Efternavn] -> Ole Bjørn Gjøg | E172: 002 | F172: Nordbornholms Billard Klub | G172: =VALUE(Tabel_DDBU_Data3[Klubnr]) -> 2 | H172: Nordbornh. BK | I172: 3880 | J172: =IF(Tabel_DDBU_Data3[Kegle]>0,Tabel_DDBU_Data3[Kegle]/1000,"") -> 3.88 | L172: =IF(Tabel_DDBU_Data3[Caram_3B]>0,Tabel_DDBU_Data3[Caram_3B]/1000,"") ->  | N172: =IF(Tabel_DDBU_Data3[Caram_1B]>0,Tabel_DDBU_Data3[Caram_1B]/1000,"") ->  | P172: =IF(Tabel_DDBU_Data3[Caram_Fri]>0,Tabel_DDBU_Data3[Caram_Fri]/1000,"") ->  | S172: 1 | T172: 2 | U172: 1943-09-03 | X172: =Tabel_DDBU_Data3[Aktiv_status] &"-" & Tabel_DDBU_Data3[Licenskort] -> 1-2 | Y172: =IF(Tabel_DDBU_Data3[Kegle]+Tabel_DDBU_Data3[Caram_3B]+Tabel_DDBU_Data3[Caram_1B]+Tabel_DDBU_Data3[Caram_Fri]>0,1,0) -> 1
A173: 122506 | B173: Bo Palle | C173: Jensen | D173: =Tabel_DDBU_Data3[Fornavn]&" "&Tabel_DDBU_Data3[Efternavn] -> Bo Palle Jensen | E173: 002 | F173: Nordbornholms Billard Klub | G173: =VALUE(Tabel_DDBU_Data3[Klubnr]) -> 2 | H173: Nordbornh. BK | J173: =IF(Tabel_DDBU_Data3[Kegle]>0,Tabel_DDBU_Data3[Kegle]/1000,"") ->  | L173: =IF(Tabel_DDBU_Data3[Caram_3B]>0,Tabel_DDBU_Data3[Caram_3B]/1000,"") ->  | N173: =IF(Tabel_DDBU_Data3[Caram_1B]>0,Tabel_DDBU_Data3[Caram_1B]/1000,"") ->  | P173: =IF(Tabel_DDBU_Data3[Caram_Fri]>0,Tabel_DDBU_Data3[Caram_Fri]/1000,"") ->  | S173: 1 | T173: 0 | U173: 1956-02-15 | X173: =Tabel_DDBU_Data3[Aktiv_status] &"-" & Tabel_DDBU_Data3[Licenskort] -> 1-0 | Y173: =IF(Tabel_DDBU_Data3[Kegle]+Tabel_DDBU_Data3[Caram_3B]+Tabel_DDBU_Data3[Caram_1B]+Tabel_DDBU_Data3[Caram_Fri]>0,1,0) -> 0
A174: 122507 | B174: Rasmus | C174: Knudsen | D174: =Tabel_DDBU_Data3[Fornavn]&" "&Tabel_DDBU_Data3[Efternavn] -> Rasmus Knudsen | E174: 002 | F174: Nordbornholms Billard Klub | G174: =VALUE(Tabel_DDBU_Data3[Klubnr]) -> 2 | H174: Nordbornh. BK | I174: 4600 | J174: =IF(Tabel_DDBU_Data3[Kegle]>0,Tabel_DDBU_Data3[Kegle]/1000,"") -> 4.6 | L174: =IF(Tabel_DDBU_Data3[Caram_3B]>0,Tabel_DDBU_Data3[Caram_3B]/1000,"") ->  | N174: =IF(Tabel_DDBU_Data3[Caram_1B]>0,Tabel_DDBU_Data3[Caram_1B]/1000,"") ->  | P174: =IF(Tabel_DDBU_Data3[Caram_Fri]>0,Tabel_DDBU_Data3[Caram_Fri]/1000,"") ->  | S174: 1 | T174: 2 | U174: 1952-06-19 | X174: =Tabel_DDBU_Data3[Aktiv_status] &"-" & Tabel_DDBU_Data3[Licenskort] -> 1-2 | Y174: =IF(Tabel_DDBU_Data3[Kegle]+Tabel_DDBU_Data3[Caram_3B]+Tabel_DDBU_Data3[Caram_1B]+Tabel_DDBU_Data3[Caram_Fri]>0,1,0) -> 1
A175: 122648 | B175: Carsten | C175: Reker Hansen | D175: =Tabel_DDBU_Data3[Fornavn]&" "&Tabel_DDBU_Data3[Efternavn] -> Carsten Reker Hansen | E175: 002 | F175: Nordbornholms Billard Klub | G175: =VALUE(Tabel_DDBU_Data3[Klubnr]) -> 2 | H175: Nordbornh. BK | I175: 3200 | J175: =IF(Tabel_DDBU_Data3[Kegle]>0,Tabel_DDBU_Data3[Kegle]/1000,"") -> 3.2 | L175: =IF(Tabel_DDBU_Data3[Caram_3B]>0,Tabel_DDBU_Data3[Caram_3B]/1000,"") ->  | N175: =IF(Tabel_DDBU_Data3[Caram_1B]>0,Tabel_DDBU_Data3[Caram_1B]/1000,"") ->  | P175: =IF(Tabel_DDBU_Data3[Caram_Fri]>0,Tabel_DDBU_Data3[Caram_Fri]/1000,"") ->  | S175: 1 | T175: 2 | U175: 1952-06-01 | X175: =Tabel_DDBU_Data3[Aktiv_status] &"-" & Tabel_DDBU_Data3[Licenskort] -> 1-2 | Y175: =IF(Tabel_DDBU_Data3[Kegle]+Tabel_DDBU_Data3[Caram_3B]+Tabel_DDBU_Data3[Caram_1B]+Tabel_DDBU_Data3[Caram_Fri]>0,1,0) -> 1
A176: 110078 | B176: Torben Hallberg | C176: Dellgren | D176: =Tabel_DDBU_Data3[Fornavn]&" "&Tabel_DDBU_Data3[Efternavn] -> Torben Hallberg Dellgren | E176: 003 | F176: Rønne Billard Klub | G176: =VALUE(Tabel_DDBU_Data3[Klubnr]) -> 3 | H176: Rønne BK | J176: =IF(Tabel_DDBU_Data3[Kegle]>0,Tabel_DDBU_Data3[Kegle]/1000,"") ->  | L176: =IF(Tabel_DDBU_Data3[Caram_3B]>0,Tabel_DDBU_Data3[Caram_3B]/1000,"") ->  | N176: =IF(Tabel_DDBU_Data3[Caram_1B]>0,Tabel_DDBU_Data3[Caram_1B]/1000,"") ->  | P176: =IF(Tabel_DDBU_Data3[Caram_Fri]>0,Tabel_DDBU_Data3[Caram_Fri]/1000,"") ->  | S176: 0 | T176: 0 | U176: 1966-04-01 | X176: =Tabel_DDBU_Data3[Aktiv_status] &"-" & Tabel_DDBU_Data3[Licenskort] -> 0-0 | Y176: =IF(Tabel_DDBU_Data3[Kegle]+Tabel_DDBU_Data3[Caram_3B]+Tabel_DDBU_Data3[Caram_1B]+Tabel_DDBU_Data3[Caram_Fri]>0,1,0) -> 0
A177: 110143 | B177: Cim | C177: Andreasen | D177: =Tabel_DDBU_Data3[Fornavn]&" "&Tabel_DDBU_Data3[Efternavn] -> Cim Andreasen | E177: 003 | F177: Rønne Billard Klub | G177: =VALUE(Tabel_DDBU_Data3[Klubnr]) -> 3 | H177: Rønne BK | J177: =IF(Tabel_DDBU_Data3[Kegle]>0,Tabel_DDBU_Data3[Kegle]/1000,"") ->  | L177: =IF(Tabel_DDBU_Data3[Caram_3B]>0,Tabel_DDBU_Data3[Caram_3B]/1000,"") ->  | N177: =IF(Tabel_DDBU_Data3[Caram_1B]>0,Tabel_DDBU_Data3[Caram_1B]/1000,"") ->  | P177: =IF(Tabel_DDBU_Data3[Caram_Fri]>0,Tabel_DDBU_Data3[Caram_Fri]/1000,"") ->  | S177: 0 | T177: 0 | U177: 1986-07-01 | X177: =Tabel_DDBU_Data3[Aktiv_status] &"-" & Tabel_DDBU_Data3[Licenskort] -> 0-0 | Y177: =IF(Tabel_DDBU_Data3[Kegle]+Tabel_DDBU_Data3[Caram_3B]+Tabel_DDBU_Data3[Caram_1B]+Tabel_DDBU_Data3[Caram_Fri]>0,1,0) -> 0
A178: 110212 | B178: Georg | C178: Jensen | D178: =Tabel_DDBU_Data3[Fornavn]&" "&Tabel_DDBU_Data3[Efternavn] -> Georg Jensen | E178: 003 | F178: Rønne Billard Klub | G178: =VALUE(Tabel_DDBU_Data3[Klubnr]) -> 3 | H178: Rønne BK | I178: 4310 | J178: =IF(Tabel_DDBU_Data3[Kegle]>0,Tabel_DDBU_Data3[Kegle]/1000,"") -> 4.31 | L178: =IF(Tabel_DDBU_Data3[Caram_3B]>0,Tabel_DDBU_Data3[Caram_3B]/1000,"") ->  | N178: =IF(Tabel_DDBU_Data3[Caram_1B]>0,Tabel_DDBU_Data3[Caram_1B]/1000,"") ->  | P178: =IF(Tabel_DDBU_Data3[Caram_Fri]>0,Tabel_DDBU_Data3[Caram_Fri]/1000,"") ->  | S178: 0 | T178: 0 | U178: 1940-10-01 | X178: =Tabel_DDBU_Data3[Aktiv_status] &"-" & Tabel_DDBU_Data3[Licenskort] -> 0-0 | Y178: =IF(Tabel_DDBU_Data3[Kegle]+Tabel_DDBU_Data3[Caram_3B]+Tabel_DDBU_Data3[Caram_1B]+Tabel_DDBU_Data3[Caram_Fri]>0,1,0) -> 1
A179: 110341 | B179: Verner | C179: Jensen | D179: =Tabel_DDBU_Data3[Fornavn]&" "&Tabel_DDBU_Data3[Efternavn] -> Verner Jensen | E179: 003 | F179: Rønne Billard Klub | G179: =VALUE(Tabel_DDBU_Data3[Klubnr]) -> 3 | H179: Rønne BK | J179: =IF(Tabel_DDBU_Data3[Kegle]>0,Tabel_DDBU_Data3[Kegle]/1000,"") ->  | L179: =IF(Tabel_DDBU_Data3[Caram_3B]>0,Tabel_DDBU_Data3[Caram_3B]/1000,"") ->  | N179: =IF(Tabel_DDBU_Data3[Caram_1B]>0,Tabel_DDBU_Data3[Caram_1B]/1000,"") ->  | P179: =IF(Tabel_DDBU_Data3[Caram_Fri]>0,Tabel_DDBU_Data3[Caram_Fri]/1000,"") ->  | S179: 0 | T179: 0 | U179: 1926-05-02 | X179: =Tabel_DDBU_Data3[Aktiv_status] &"-" & Tabel_DDBU_Data3[Licenskort] -> 0-0 | Y179: =IF(Tabel_DDBU_Data3[Kegle]+Tabel_DDBU_Data3[Caram_3B]+Tabel_DDBU_Data3[Caram_1B]+Tabel_DDBU_Data3[Caram_Fri]>0,1,0) -> 0
A180: 110561 | B180: Kim | C180: Delhi | D180: =Tabel_DDBU_Data3[Fornavn]&" "&Tabel_DDBU_Data3[Efternavn] -> Kim Delhi | E180: 003 | F180: Rønne Billard Klub | G180: =VALUE(Tabel_DDBU_Data3[Klubnr]) -> 3 | H180: Rønne BK | I180: 6680 | J180: =IF(Tabel_DDBU_Data3[Kegle]>0,Tabel_DDBU_Data3[Kegle]/1000,"") -> 6.68 | L180: =IF(Tabel_DDBU_Data3[Caram_3B]>0,Tabel_DDBU_Data3[Caram_3B]/1000,"") ->  | N180: =IF(Tabel_DDBU_Data3[Caram_1B]>0,Tabel_DDBU_Data3[Caram_1B]/1000,"") ->  | P180: =IF(Tabel_DDBU_Data3[Caram_Fri]>0,Tabel_DDBU_Data3[Caram_Fri]/1000,"") ->  | S180: 0 | T180: 0 | U180: 1972-02-03 | X180: =Tabel_DDBU_Data3[Aktiv_status] &"-" & Tabel_DDBU_Data3[Licenskort] -> 0-0 | Y180: =IF(Tabel_DDBU_Data3[Kegle]+Tabel_DDBU_Data3[Caram_3B]+Tabel_DDBU_Data3[Caram_1B]+Tabel_DDBU_Data3[Caram_Fri]>0,1,0) -> 1
A181: 110887 | B181: Svend | C181: Hansen | D181: =Tabel_DDBU_Data3[Fornavn]&" "&Tabel_DDBU_Data3[Efternavn] -> Svend Hansen | E181: 003 | F181: Rønne Billard Klub | G181: =VALUE(Tabel_DDBU_Data3[Klubnr]) -> 3 | H181: Rønne BK | I181: 3040 | J181: =IF(Tabel_DDBU_Data3[Kegle]>0,Tabel_DDBU_Data3[Kegle]/1000,"") -> 3.04 | L181: =IF(Tabel_DDBU_Data3[Caram_3B]>0,Tabel_DDBU_Data3[Caram_3B]/1000,"") ->  | N181: =IF(Tabel_DDBU_Data3[Caram_1B]>0,Tabel_DDBU_Data3[Caram_1B]/1000,"") ->  | P181: =IF(Tabel_DDBU_Data3[Caram_Fri]>0,Tabel_DDBU_Data3[Caram_Fri]/1000,"") ->  | S181: 0 | T181: 0 | U181: 1944-06-18 | X181: =Tabel_DDBU_Data3[Aktiv_status] &"-" & Tabel_DDBU_Data3[Licenskort] -> 0-0 | Y181: =IF(Tabel_DDBU_Data3[Kegle]+Tabel_DDBU_Data3[Caram_3B]+Tabel_DDBU_Data3[Caram_1B]+Tabel_DDBU_Data3[Caram_Fri]>0,1,0) -> 1
A182: 110890 | B182: Kim Dalsgaard | C182: Jørgensen | D182: =Tabel_DDBU_Data3[Fornavn]&" "&Tabel_DDBU_Data3[Efternavn] -> Kim Dalsgaard Jørgensen | E182: 003 | F182: Rønne Billard Klub | G182: =VALUE(Tabel_DDBU_Data3[Klubnr]) -> 3 | H182: Rønne BK | I182: 39930 | J182: =IF(Tabel_DDBU_Data3[Kegle]>0,Tabel_DDBU_Data3[Kegle]/1000,"") -> 39.93 | K182: 455 | L182: =IF(Tabel_DDBU_Data3[Caram_3B]>0,Tabel_DDBU_Data3[Caram_3B]/1000,"") -> 0.455 | M182: 1810 | N182: =IF(Tabel_DDBU_Data3[Caram_1B]>0,Tabel_DDBU_Data3[Caram_1B]/1000,"") -> 1.81 | O182: 2430 | P182: =IF(Tabel_DDBU_Data3[Caram_Fri]>0,Tabel_DDBU_Data3[Caram_Fri]/1000,"") -> 2.43 | S182: 1 | T182: 0 | U182: 1966-06-04 | X182: =Tabel_DDBU_Data3[Aktiv_status] &"-" & Tabel_DDBU_Data3[Licenskort] -> 1-0 | Y182: =IF(Tabel_DDBU_Data3[Kegle]+Tabel_DDBU_Data3[Caram_3B]+Tabel_DDBU_Data3[Caram_1B]+Tabel_DDBU_Data3[Caram_Fri]>0,1,0) -> 1
A183: 111211 | B183: Leif | C183: Jensen | D183: =Tabel_DDBU_Data3[Fornavn]&" "&Tabel_DDBU_Data3[Efternavn] -> Leif Jensen | E183: 003 | F183: Rønne Billard Klub | G183: =VALUE(Tabel_DDBU_Data3[Klubnr]) -> 3 | H183: Rønne BK | I183: 4640 | J183: =IF(Tabel_DDBU_Data3[Kegle]>0,Tabel_DDBU_Data3[Kegle]/1000,"") -> 4.64 | L183: =IF(Tabel_DDBU_Data3[Caram_3B]>0,Tabel_DDBU_Data3[Caram_3B]/1000,"") ->  | N183: =IF(Tabel_DDBU_Data3[Caram_1B]>0,Tabel_DDBU_Data3[Caram_1B]/1000,"") ->  | P183: =IF(Tabel_DDBU_Data3[Caram_Fri]>0,Tabel_DDBU_Data3[Caram_Fri]/1000,"") ->  | S183: 0 | T183: 0 | U183: 1938-08-05 | X183: =Tabel_DDBU_Data3[Aktiv_status] &"-" & Tabel_DDBU_Data3[Licenskort] -> 0-0 | Y183: =IF(Tabel_DDBU_Data3[Kegle]+Tabel_DDBU_Data3[Caram_3B]+Tabel_DDBU_Data3[Caram_1B]+Tabel_DDBU_Data3[Caram_Fri]>0,1,0) -> 1
A184: 111439 | B184: Søren | C184: Nielsen | D184: =Tabel_DDBU_Data3[Fornavn]&" "&Tabel_DDBU_Data3[Efternavn] -> Søren Nielsen | E184: 003 | F184: Rønne Billard Klub | G184: =VALUE(Tabel_DDBU_Data3[Klubnr]) -> 3 | H184: Rønne BK | I184: 3110 | J184: =IF(Tabel_DDBU_Data3[Kegle]>0,Tabel_DDBU_Data3[Kegle]/1000,"") -> 3.11 | L184: =IF(Tabel_DDBU_Data3[Caram_3B]>0,Tabel_DDBU_Data3[Caram_3B]/1000,"") ->  | N184: =IF(Tabel_DDBU_Data3[Caram_1B]>0,Tabel_DDBU_Data3[Caram_1B]/1000,"") ->  | P184: =IF(Tabel_DDBU_Data3[Caram_Fri]>0,Tabel_DDBU_Data3[Caram_Fri]/1000,"") ->  | S184: 0 | T184: 0 | U184: 1952-06-06 | X184: =Tabel_DDBU_Data3[Aktiv_status] &"-" & Tabel_DDBU_Data3[Licenskort] -> 0-0 | Y184: =IF(Tabel_DDBU_Data3[Kegle]+Tabel_DDBU_Data3[Caram_3B]+Tabel_DDBU_Data3[Caram_1B]+Tabel_DDBU_Data3[Caram_Fri]>0,1,0) -> 1
A185: 111442 | B185: Michael | C185: Rasmussen | D185: =Tabel_DDBU_Data3[Fornavn]&" "&Tabel_DDBU_Data3[Efternavn] -> Michael Rasmussen | E185: 003 | F185: Rønne Billard Klub | G185: =VALUE(Tabel_DDBU_Data3[Klubnr]) -> 3 | H185: Rønne BK | I185: 9190 | J185: =IF(Tabel_DDBU_Data3[Kegle]>0,Tabel_DDBU_Data3[Kegle]/1000,"") -> 9.19 | L185: =IF(Tabel_DDBU_Data3[Caram_3B]>0,Tabel_DDBU_Data3[Caram_3B]/1000,"") ->  | M185: 480 | N185: =IF(Tabel_DDBU_Data3[Caram_1B]>0,Tabel_DDBU_Data3[Caram_1B]/1000,"") -> 0.48 | O185: 940 | P185: =IF(Tabel_DDBU_Data3[Caram_Fri]>0,Tabel_DDBU_Data3[Caram_Fri]/1000,"") -> 0.94 | S185: 1 | T185: 0 | U185: 1961-06-06 | X185: =Tabel_DDBU_Data3[Aktiv_status] &"-" & Tabel_DDBU_Data3[Licenskort] -> 1-0 | Y185: =IF(Tabel_DDBU_Data3[Kegle]+Tabel_DDBU_Data3[Caram_3B]+Tabel_DDBU_Data3[Caram_1B]+Tabel_DDBU_Data3[Caram_Fri]>0,1,0) -> 1
A186: 111714 | B186: Martin | C186: Carstensen | D186: =Tabel_DDBU_Data3[Fornavn]&" "&Tabel_DDBU_Data3[Efternavn] -> Martin Carstensen | E186: 003 | F186: Rønne Billard Klub | G186: =VALUE(Tabel_DDBU_Data3[Klubnr]) -> 3 | H186: Rønne BK | I186: 27000 | J186: =IF(Tabel_DDBU_Data3[Kegle]>0,Tabel_DDBU_Data3[Kegle]/1000,"") -> 27 | L186: =IF(Tabel_DDBU_Data3[Caram_3B]>0,Tabel_DDBU_Data3[Caram_3B]/1000,"") ->  | N186: =IF(Tabel_DDBU_Data3[Caram_1B]>0,Tabel_DDBU_Data3[Caram_1B]/1000,"") ->  | O186: 1790 | P186: =IF(Tabel_DDBU_Data3[Caram_Fri]>0,Tabel_DDBU_Data3[Caram_Fri]/1000,"") -> 1.79 | S186: 0 | T186: 0 | U186: 1981-07-07 | X186: =Tabel_DDBU_Data3[Aktiv_status] &"-" & Tabel_DDBU_Data3[Licenskort] -> 0-0 | Y186: =IF(Tabel_DDBU_Data3[Kegle]+Tabel_DDBU_Data3[Caram_3B]+Tabel_DDBU_Data3[Caram_1B]+Tabel_DDBU_Data3[Caram_Fri]>0,1,0) -> 1
A187: 111984 | B187: Hampus | C187: Andreasen | D187: =Tabel_DDBU_Data3[Fornavn]&" "&Tabel_DDBU_Data3[Efternavn] -> Hampus Andreasen | E187: 003 | F187: Rønne Billard Klub | G187: =VALUE(Tabel_DDBU_Data3[Klubnr]) -> 3 | H187: Rønne BK | J187: =IF(Tabel_DDBU_Data3[Kegle]>0,Tabel_DDBU_Data3[Kegle]/1000,"") ->  | L187: =IF(Tabel_DDBU_Data3[Caram_3B]>0,Tabel_DDBU_Data3[Caram_3B]/1000,"") ->  | N187: =IF(Tabel_DDBU_Data3[Caram_1B]>0,Tabel_DDBU_Data3[Caram_1B]/1000,"") ->  | P187: =IF(Tabel_DDBU_Data3[Caram_Fri]>0,Tabel_DDBU_Data3[Caram_Fri]/1000,"") ->  | S187: 0 | T187: 0 | U187: 1993-07-08 | X187: =Tabel_DDBU_Data3[Aktiv_status] &"-" & Tabel_DDBU_Data3[Licenskort] -> 0-0 | Y187: =IF(Tabel_DDBU_Data3[Kegle]+Tabel_DDBU_Data3[Caram_3B]+Tabel_DDBU_Data3[Caram_1B]+Tabel_DDBU_Data3[Caram_Fri]>0,1,0) -> 0
A188: 112042 | B188: Katja | C188: Westh | D188: =Tabel_DDBU_Data3[Fornavn]&" "&Tabel_DDBU_Data3[Efternavn] -> Katja Westh | E188: 003 | F188: Rønne Billard Klub | G188: =VALUE(Tabel_DDBU_Data3[Klubnr]) -> 3 | H188: Rønne BK | J188: =IF(Tabel_DDBU_Data3[Kegle]>0,Tabel_DDBU_Data3[Kegle]/1000,"") ->  | L188: =IF(Tabel_DDBU_Data3[Caram_3B]>0,Tabel_DDBU_Data3[Caram_3B]/1000,"") ->  | N188: =IF(Tabel_DDBU_Data3[Caram_1B]>0,Tabel_DDBU_Data3[Caram_1B]/1000,"") ->  | P188: =IF(Tabel_DDBU_Data3[Caram_Fri]>0,Tabel_DDBU_Data3[Caram_Fri]/1000,"") ->  | S188: 0 | T188: 0 | U188: 1996-09-08 | X188: =Tabel_DDBU_Data3[Aktiv_status] &"-" & Tabel_DDBU_Data3[Licenskort] -> 0-0 | Y188: =IF(Tabel_DDBU_Data3[Kegle]+Tabel_DDBU_Data3[Caram_3B]+Tabel_DDBU_Data3[Caram_1B]+Tabel_DDBU_Data3[Caram_Fri]>0,1,0) -> 0
A189: 112105 | B189: Jørgen | C189: Madsen | D189: =Tabel_DDBU_Data3[Fornavn]&" "&Tabel_DDBU_Data3[Efternavn] -> Jørgen Madsen | E189: 003 | F189: Rønne Billard Klub | G189: =VALUE(Tabel_DDBU_Data3[Klubnr]) -> 3 | H189: Rønne BK | J189: =IF(Tabel_DDBU_Data3[Kegle]>0,Tabel_DDBU_Data3[Kegle]/1000,"") ->  | L189: =IF(Tabel_DDBU_Data3[Caram_3B]>0,Tabel_DDBU_Data3[Caram_3B]/1000,"") ->  | N189: =IF(Tabel_DDBU_Data3[Caram_1B]>0,Tabel_DDBU_Data3[Caram_1B]/1000,"") ->  | P189: =IF(Tabel_DDBU_Data3[Caram_Fri]>0,Tabel_DDBU_Data3[Caram_Fri]/1000,"") ->  | S189: 0 | T189: 0 | U189: 1967-12-08 | X189: =Tabel_DDBU_Data3[Aktiv_status] &"-" & Tabel_DDBU_Data3[Licenskort] -> 0-0 | Y189: =IF(Tabel_DDBU_Data3[Kegle]+Tabel_DDBU_Data3[Caram_3B]+Tabel_DDBU_Data3[Caram_1B]+Tabel_DDBU_Data3[Caram_Fri]>0,1,0) -> 0
A190: 112174 | B190: Henrik O. L. | C190: Jørgensen | D190: =Tabel_DDBU_Data3[Fornavn]&" "&Tabel_DDBU_Data3[Efternavn] -> Henrik O. L. Jørgensen | E190: 003 | F190: Rønne Billard Klub | G190: =VALUE(Tabel_DDBU_Data3[Klubnr]) -> 3 | H190: Rønne BK | I190: 13950 | J190: =IF(Tabel_DDBU_Data3[Kegle]>0,Tabel_DDBU_Data3[Kegle]/1000,"") -> 13.95 | L190: =IF(Tabel_DDBU_Data3[Caram_3B]>0,Tabel_DDBU_Data3[Caram_3B]/1000,"") ->  | N190: =IF(Tabel_DDBU_Data3[Caram_1B]>0,Tabel_DDBU_Data3[Caram_1B]/1000,"") ->  | O190: 860 | P190: =IF(Tabel_DDBU_Data3[Caram_Fri]>0,Tabel_DDBU_Data3[Caram_Fri]/1000,"") -> 0.86 | S190: 1 | T190: 2 | U190: 1966-03-09 | X190: =Tabel_DDBU_Data3[Aktiv_status] &"-" & Tabel_DDBU_Data3[Licenskort] -> 1-2 | Y190: =IF(Tabel_DDBU_Data3[Kegle]+Tabel_DDBU_Data3[Caram_3B]+Tabel_DDBU_Data3[Caram_1B]+Tabel_DDBU_Data3[Caram_Fri]>0,1,0) -> 1
A191: 112386 | B191: Elmer | C191: Vang | D191: =Tabel_DDBU_Data3[Fornavn]&" "&Tabel_DDBU_Data3[Efternavn] -> Elmer Vang | E191: 003 | F191: Rønne Billard Klub | G191: =VALUE(Tabel_DDBU_Data3[Klubnr]) -> 3 | H191: Rønne BK | I191: 4540 | J191: =IF(Tabel_DDBU_Data3[Kegle]>0,Tabel_DDBU_Data3[Kegle]/1000,"") -> 4.54 | L191: =IF(Tabel_DDBU_Data3[Caram_3B]>0,Tabel_DDBU_Data3[Caram_3B]/1000,"") ->  | N191: =IF(Tabel_DDBU_Data3[Caram_1B]>0,Tabel_DDBU_Data3[Caram_1B]/1000,"") ->  | P191: =IF(Tabel_DDBU_Data3[Caram_Fri]>0,Tabel_DDBU_Data3[Caram_Fri]/1000,"") ->  | S191: 1 | T191: 0 | U191: 1945-01-10 | X191: =Tabel_DDBU_Data3[Aktiv_status] &"-" & Tabel_DDBU_Data3[Licenskort] -> 1-0 | Y191: =IF(Tabel_DDBU_Data3[Kegle]+Tabel_DDBU_Data3[Caram_3B]+Tabel_DDBU_Data3[Caram_1B]+Tabel_DDBU_Data3[Caram_Fri]>0,1,0) -> 1
A192: 112550 | B192: Martin Pihl | C192: Andersen | D192: =Tabel_DDBU_Data3[Fornavn]&" "&Tabel_DDBU_Data3[Efternavn] -> Martin Pihl Andersen | E192: 003 | F192: Rønne Billard Klub | G192: =VALUE(Tabel_DDBU_Data3[Klubnr]) -> 3 | H192: Rønne BK | J192: =IF(Tabel_DDBU_Data3[Kegle]>0,Tabel_DDBU_Data3[Kegle]/1000,"") ->  | L192: =IF(Tabel_DDBU_Data3[Caram_3B]>0,Tabel_DDBU_Data3[Caram_3B]/1000,"") ->  | N192: =IF(Tabel_DDBU_Data3[Caram_1B]>0,Tabel_DDBU_Data3[Caram_1B]/1000,"") ->  | P192: =IF(Tabel_DDBU_Data3[Caram_Fri]>0,Tabel_DDBU_Data3[Caram_Fri]/1000,"") ->  | S192: 0 | T192: 0 | U192: 1995-07-10 | X192: =Tabel_DDBU_Data3[Aktiv_status] &"-" & Tabel_DDBU_Data3[Licenskort] -> 0-0 | Y192: =IF(Tabel_DDBU_Data3[Kegle]+Tabel_DDBU_Data3[Caram_3B]+Tabel_DDBU_Data3[Caram_1B]+Tabel_DDBU_Data3[Caram_Fri]>0,1,0) -> 0
A193: 112582 | B193: Konrad | C193: Pedersen | D193: =Tabel_DDBU_Data3[Fornavn]&" "&Tabel_DDBU_Data3[Efternavn] -> Konrad Pedersen | E193: 003 | F193: Rønne Billard Klub | G193: =VALUE(Tabel_DDBU_Data3[Klubnr]) -> 3 | H193: Rønne BK | I193: 6230 | J193: =IF(Tabel_DDBU_Data3[Kegle]>0,Tabel_DDBU_Data3[Kegle]/1000,"") -> 6.23 | L193: =IF(Tabel_DDBU_Data3[Caram_3B]>0,Tabel_DDBU_Data3[Caram_3B]/1000,"") ->  | N193: =IF(Tabel_DDBU_Data3[Caram_1B]>0,Tabel_DDBU_Data3[Caram_1B]/1000,"") ->  | P193: =IF(Tabel_DDBU_Data3[Caram_Fri]>0,Tabel_DDBU_Data3[Caram_Fri]/1000,"") ->  | S193: 1 | T193: 2 | U193: 1946-09-10 | X193: =Tabel_DDBU_Data3[Aktiv_status] &"-" & Tabel_DDBU_Data3[Licenskort] -> 1-2 | Y193: =IF(Tabel_DDBU_Data3[Kegle]+Tabel_DDBU_Data3[Caram_3B]+Tabel_DDBU_Data3[Caram_1B]+Tabel_DDBU_Data3[Caram_Fri]>0,1,0) -> 1
A194: 112672 | B194: Jørgen | C194: Nielsen | D194: =Tabel_DDBU_Data3[Fornavn]&" "&Tabel_DDBU_Data3[Efternavn] -> Jørgen Nielsen | E194: 003 | F194: Rønne Billard Klub | G194: =VALUE(Tabel_DDBU_Data3[Klubnr]) -> 3 | H194: Rønne BK | J194: =IF(Tabel_DDBU_Data3[Kegle]>0,Tabel_DDBU_Data3[Kegle]/1000,"") ->  | L194: =IF(Tabel_DDBU_Data3[Caram_3B]>0,Tabel_DDBU_Data3[Caram_3B]/1000,"") ->  | N194: =IF(Tabel_DDBU_Data3[Caram_1B]>0,Tabel_DDBU_Data3[Caram_1B]/1000,"") ->  | P194: =IF(Tabel_DDBU_Data3[Caram_Fri]>0,Tabel_DDBU_Data3[Caram_Fri]/1000,"") ->  | S194: 0 | T194: 0 | U194: 1923-01-11 | X194: =Tabel_DDBU_Data3[Aktiv_status] &"-" & Tabel_DDBU_Data3[Licenskort] -> 0-0 | Y194: =IF(Tabel_DDBU_Data3[Kegle]+Tabel_DDBU_Data3[Caram_3B]+Tabel_DDBU_Data3[Caram_1B]+Tabel_DDBU_Data3[Caram_Fri]>0,1,0) -> 0
A195: 112766 | B195: Michael | C195: Mortensen | D195: =Tabel_DDBU_Data3[Fornavn]&" "&Tabel_DDBU_Data3[Efternavn] -> Michael Mortensen | E195: 003 | F195: Rønne Billard Klub | G195: =VALUE(Tabel_DDBU_Data3[Klubnr]) -> 3 | H195: Rønne BK | J195: =IF(Tabel_DDBU_Data3[Kegle]>0,Tabel_DDBU_Data3[Kegle]/1000,"") ->  | L195: =IF(Tabel_DDBU_Data3[Caram_3B]>0,Tabel_DDBU_Data3[Caram_3B]/1000,"") ->  | N195: =IF(Tabel_DDBU_Data3[Caram_1B]>0,Tabel_DDBU_Data3[Caram_1B]/1000,"") ->  | P195: =IF(Tabel_DDBU_Data3[Caram_Fri]>0,Tabel_DDBU_Data3[Caram_Fri]/1000,"") ->  | S195: 0 | T195: 0 | U195: 1985-04-11 | X195: =Tabel_DDBU_Data3[Aktiv_status] &"-" & Tabel_DDBU_Data3[Licenskort] -> 0-0 | Y195: =IF(Tabel_DDBU_Data3[Kegle]+Tabel_DDBU_Data3[Caram_3B]+Tabel_DDBU_Data3[Caram_1B]+Tabel_DDBU_Data3[Caram_Fri]>0,1,0) -> 0
A196: 112816 | B196: Susanne | C196: Andersen | D196: =Tabel_DDBU_Data3[Fornavn]&" "&Tabel_DDBU_Data3[Efternavn] -> Susanne Andersen | E196: 003 | F196: Rønne Billard Klub | G196: =VALUE(Tabel_DDBU_Data3[Klubnr]) -> 3 | H196: Rønne BK | I196: 7030 | J196: =IF(Tabel_DDBU_Data3[Kegle]>0,Tabel_DDBU_Data3[Kegle]/1000,"") -> 7.03 | L196: =IF(Tabel_DDBU_Data3[Caram_3B]>0,Tabel_DDBU_Data3[Caram_3B]/1000,"") ->  | N196: =IF(Tabel_DDBU_Data3[Caram_1B]>0,Tabel_DDBU_Data3[Caram_1B]/1000,"") ->  | P196: =IF(Tabel_DDBU_Data3[Caram_Fri]>0,Tabel_DDBU_Data3[Caram_Fri]/1000,"") ->  | S196: 0 | T196: 0 | U196: 1958-07-11 | X196: =Tabel_DDBU_Data3[Aktiv_status] &"-" & Tabel_DDBU_Data3[Licenskort] -> 0-0 | Y196: =IF(Tabel_DDBU_Data3[Kegle]+Tabel_DDBU_Data3[Caram_3B]+Tabel_DDBU_Data3[Caram_1B]+Tabel_DDBU_Data3[Caram_Fri]>0,1,0) -> 1
A197: 112888 | B197: Erik | C197: Glenstrøm | D197: =Tabel_DDBU_Data3[Fornavn]&" "&Tabel_DDBU_Data3[Efternavn] -> Erik Glenstrøm | E197: 003 | F197: Rønne Billard Klub | G197: =VALUE(Tabel_DDBU_Data3[Klubnr]) -> 3 | H197: Rønne BK | I197: 4090 | J197: =IF(Tabel_DDBU_Data3[Kegle]>0,Tabel_DDBU_Data3[Kegle]/1000,"") -> 4.09 | L197: =IF(Tabel_DDBU_Data3[Caram_3B]>0,Tabel_DDBU_Data3[Caram_3B]/1000,"") ->  | N197: =IF(Tabel_DDBU_Data3[Caram_1B]>0,Tabel_DDBU_Data3[Caram_1B]/1000,"") ->  | P197: =IF(Tabel_DDBU_Data3[Caram_Fri]>0,Tabel_DDBU_Data3[Caram_Fri]/1000,"") ->  | S197: 0 | T197: 0 | U197: 1937-10-11 | X197: =Tabel_DDBU_Data3[Aktiv_status] &"-" & Tabel_DDBU_Data3[Licenskort] -> 0-0 | Y197: =IF(Tabel_DDBU_Data3[Kegle]+Tabel_DDBU_Data3[Caram_3B]+Tabel_DDBU_Data3[Caram_1B]+Tabel_DDBU_Data3[Caram_Fri]>0,1,0) -> 1
A198: 113265 | B198: Stie von | C198: Elling | D198: =Tabel_DDBU_Data3[Fornavn]&" "&Tabel_DDBU_Data3[Efternavn] -> Stie von Elling | E198: 003 | F198: Rønne Billard Klub | G198: =VALUE(Tabel_DDBU_Data3[Klubnr]) -> 3 | H198: Rønne BK | J198: =IF(Tabel_DDBU_Data3[Kegle]>0,Tabel_DDBU_Data3[Kegle]/1000,"") ->  | L198: =IF(Tabel_DDBU_Data3[Caram_3B]>0,Tabel_DDBU_Data3[Caram_3B]/1000,"") ->  | N198: =IF(Tabel_DDBU_Data3[Caram_1B]>0,Tabel_DDBU_Data3[Caram_1B]/1000,"") ->  | P198: =IF(Tabel_DDBU_Data3[Caram_Fri]>0,Tabel_DDBU_Data3[Caram_Fri]/1000,"") ->  | S198: 0 | T198: 0 | U198: 1945-04-13 | X198: =Tabel_DDBU_Data3[Aktiv_status] &"-" & Tabel_DDBU_Data3[Licenskort] -> 0-0 | Y198: =IF(Tabel_DDBU_Data3[Kegle]+Tabel_DDBU_Data3[Caram_3B]+Tabel_DDBU_Data3[Caram_1B]+Tabel_DDBU_Data3[Caram_Fri]>0,1,0) -> 0
A199: 113392 | B199: Christian | C199: Göttig | D199: =Tabel_DDBU_Data3[Fornavn]&" "&Tabel_DDBU_Data3[Efternavn] -> Christian Göttig | E199: 003 | F199: Rønne Billard Klub | G199: =VALUE(Tabel_DDBU_Data3[Klubnr]) -> 3 | H199: Rønne BK | I199: 5060 | J199: =IF(Tabel_DDBU_Data3[Kegle]>0,Tabel_DDBU_Data3[Kegle]/1000,"") -> 5.06 | L199: =IF(Tabel_DDBU_Data3[Caram_3B]>0,Tabel_DDBU_Data3[Caram_3B]/1000,"") ->  | N199: =IF(Tabel_DDBU_Data3[Caram_1B]>0,Tabel_DDBU_Data3[Caram_1B]/1000,"") ->  | P199: =IF(Tabel_DDBU_Data3[Caram_Fri]>0,Tabel_DDBU_Data3[Caram_Fri]/1000,"") ->  | S199: 1 | T199: 2 | U199: 1943-10-13 | X199: =Tabel_DDBU_Data3[Aktiv_status] &"-" & Tabel_DDBU_Data3[Licenskort] -> 1-2 | Y199: =IF(Tabel_DDBU_Data3[Kegle]+Tabel_DDBU_Data3[Caram_3B]+Tabel_DDBU_Data3[Caram_1B]+Tabel_DDBU_Data3[Caram_Fri]>0,1,0) -> 1
A200: 113409 | B200: Henning | C200: Skovgaard | D200: =Tabel_DDBU_Data3[Fornavn]&" "&Tabel_DDBU_Data3[Efternavn] -> Henning Skovgaard | E200: 003 | F200: Rønne Billard Klub | G200: =VALUE(Tabel_DDBU_Data3[Klubnr]) -> 3 | H200: Rønne BK | J200: =IF(Tabel_DDBU_Data3[Kegle]>0,Tabel_DDBU_Data3[Kegle]/1000,"") ->  | L200: =IF(Tabel_DDBU_Data3[Caram_3B]>0,Tabel_DDBU_Data3[Caram_3B]/1000,"") ->  | N200: =IF(Tabel_DDBU_Data3[Caram_1B]>0,Tabel_DDBU_Data3[Caram_1B]/1000,"") ->  | P200: =IF(Tabel_DDBU_Data3[Caram_Fri]>0,Tabel_DDBU_Data3[Caram_Fri]/1000,"") ->  | S200: 0 | T200: 0 | U200: 1935-11-13 | X200: =Tabel_DDBU_Data3[Aktiv_status] &"-" & Tabel_DDBU_Data3[Licenskort] -> 0-0 | Y200: =IF(Tabel_DDBU_Data3[Kegle]+Tabel_DDBU_Data3[Caram_3B]+Tabel_DDBU_Data3[Caram_1B]+Tabel_DDBU_Data3[Caram_Fri]>0,1,0) -> 0
... 2050 more rows
